Workbook

Sheet Information Requirements
A1: INFORMATION REQUIREMENTS
B2: Under the Pre-qualifying tool assessment the following documentation need only be requested for files with an overall risk grade that 'meets qualifying criteria'. Some files with an overall risk grade that advises 'discuss with BDM' may require additional information at the request of the BDM or allocated Broker Banker.
A3: Please Select Loan Purpose | B3: Please select loan purpose
A4: Industry | B4: Please Select
A5: Enter Your Unique BUID below
A6: 420353213 | B6: =IFERROR(IF(B4<>"",VLOOKUP(B4,'Dropdown Menu'!AG3:AH28,2,FALSE),""),"") -> 
A7: =IF(B4="Other","Please Specify Industry","") -> 
A9: Loan Purpose | B9: INFORMATION REQUIRED
A10: Working Capital
B11: =IF(Lookups!$AA$2="Yes","- (1) Customer Consent and Statement of Position or (2) Business Finance Application Form","- Business Finance Application Form") -> - Business Finance Application Form
B12: - NAB Commercial Broker commission consent Form
B13: - NAB Broker Customer ID check Form and copy of Photo ID
B14: =IF(Lookups!$AA$2="Yes","","- NAB Broker Living expense calculator ") -> - NAB Broker Living expense calculator
B15: - ATO Portal Statements (Individual & Trading Entities - Itemised Account & Activity Statement)
B16: - Income Verification:
B17: =IF(Lookups!$AA$2="Yes","o 1 Year management accounts from an accounting package covering 12 months trading income and no older than 6 months","o 2 years accountant prepared financial statements (or annual management accounts for more recent year end)") -> o 2 years accountant prepared financial statements (or annual management accounts for more recent year end)
B18: =IF(Lookups!$AA$2="Yes","o 1 Year personal tax returns (all Directors & Guarantors) [required where entered into financial inputs - explain period variances where appropriate]","o 2 years personal tax returns (all Directors & Guarantors) and Associated Notices of Assessment") -> o 2 years personal tax returns (all Directors & Guarantors) and Associated Notices of Assessment
B19: =IF(Lookups!$AA$2="Yes","o Income Verification (PAYG – Last 2 payslips, Rental – Rental Statement or Account Credits) [required where entered into financial inputs]","o Income Verification (PAYG – Last 2 payslips, Rental – Rental Statement or Account Credits)") -> o Income Verification (PAYG – Last 2 payslips, Rental – Rental Statement or Account Credits)
B20: =IF(Lookups!$AA$2="Yes","o Minimum 1 Business Activity Statement (BAS) no older than 4 months old [not required if Accountant prepared year end financials]","") -> 
B21: =IF(Lookups!$AA$2="Yes","- Confirmation that Customer meets or will meet NAB's My Bank Requirements"," ") -> 
B22: =IF(Lookups!$AA$2="Yes","","- 6 Months Statements of business transaction statements") -> - 6 Months Statements of business transaction statements
B23: =IF(Lookups!$AA$2="Yes","","- 6 Months Statements of Non-Nab Transaction & Loan Accounts") -> - 6 Months Statements of Non-Nab Transaction & Loan Accounts
B24: - Trust Deed (if Applicable)
B25: =IF(B3='Dropdown Menu'!P6,"- Simple Trade Finance Job Aid (accredited brokers only)","") -> 
A26: Refinance
B27: =IF(Lookups!$AA$2="Yes","- (1) Customer Consent and Statement of Position or (2) Business Finance Application Form","- Business Finance Application Form") -> - Business Finance Application Form
B28: - NAB Commercial Broker commission consent Form
B29: - NAB Broker Customer ID check Form and copy of Photo ID
B30: =IF(Lookups!$AA$2="Yes","","- NAB Broker Living expense calculator ") -> - NAB Broker Living expense calculator
B31: - ATO Portal Statements (Individual & Trading Entities - Itemised Account & Activity Statement)
B32: - Income Verification:
B33: =IF(Lookups!$AA$2="Yes","o 1 Year management accounts from an accounting package covering 12 months trading income and no older than 6 months","o 2 years accountant prepared financial statements (or annual management accounts for more recent year end)") -> o 2 years accountant prepared financial statements (or annual management accounts for more recent year end)
B34: =IF(Lookups!$AA$2="Yes","o 1 Year personal tax returns (all Directors & Guarantors) [required where entered into financial inputs - explain period variances where appropriate]","o 2 years personal tax returns (all Directors & Guarantors) and Associated Notices of Assessment") -> o 2 years personal tax returns (all Directors & Guarantors) and Associated Notices of Assessment
B35: =IF(Lookups!$AA$2="Yes","o Income Verification (PAYG – Last 2 payslips, Rental – Rental Statement or Account Credits) [required where entered into financial inputs]","o Income Verification (PAYG – Last 2 payslips, Rental – Rental Statement or Account Credits)") -> o Income Verification (PAYG – Last 2 payslips, Rental – Rental Statement or Account Credits)
B36: =IF(Lookups!$AA$2="Yes","o Minimum 1 Business Activity Statement (BAS) no older than 4 months old [not required if Accountant prepared year end financials]","") -> 
B37: =IF(Lookups!$AA$2="Yes","- Confirmation that Customer meets or will meet NAB's My Bank Requirements"," ") -> 
B38: =IF(Lookups!$AA$2="Yes","","- 6 Months Statements for facilities being refinanced") -> - 6 Months Statements for facilities being refinanced
B39: =IF(Lookups!$AA$2="Yes","- 6 Months Statements or Transaction Listings for refinance Loan Accounts","- 6 Months Statements of Non-Nab Transaction & Loan Accounts") -> - 6 Months Statements of Non-Nab Transaction & Loan Accounts
B40: - Trust Deed (if Applicable)
A41: Buy Business/Fund Renovations to Business
B42: =IF(Lookups!$AA$2="Yes","- (1) Customer Consent and Statement of Position or (2) Business Finance Application Form","- Business Finance Application Form") -> - Business Finance Application Form
B43: - NAB Commercial Broker commission consent Form
B44: - NAB Broker Customer ID check Form and copy of Photo ID
B45: =IF(Lookups!$AA$2="Yes","","- NAB Broker Living expense calculator ") -> - NAB Broker Living expense calculator
B46: - ATO Portal Statements (Individual & Trading Entities - Itemised Account & Activity Statement)
B47: - Income Verification:
B48: =IF(Lookups!$AA$2="Yes","o 1 Year management accounts from an accounting package covering 12 months trading income and no older than 6 months","o 2 years accountant prepared financial statements (or annual management accounts for more recent year end)") -> o 2 years accountant prepared financial statements (or annual management accounts for more recent year end)
B49: =IF(Lookups!$AA$2="Yes","o 1 Year personal tax returns (all Directors & Guarantors) [required where entered into financial inputs - explain period variances where appropriate]","o 2 years personal tax returns (all Directors & Guarantors) and Associated Notices of Assessment") -> o 2 years personal tax returns (all Directors & Guarantors) and Associated Notices of Assessment
B50: =IF(Lookups!$AA$2="Yes","o Income Verification (PAYG – Last 2 payslips, Rental – Rental Statement or Account Credits) [required where entered into financial inputs]","o Income Verification (PAYG – Last 2 payslips, Rental – Rental Statement or Account Credits)") -> o Income Verification (PAYG – Last 2 payslips, Rental – Rental Statement or Account Credits)
B51: =IF(Lookups!$AA$2="Yes","o Minimum 1 Business Activity Statement (BAS) no older than 4 months old [not required if Accountant prepared year end financials]","") -> 
B52: =IF(Lookups!$AA$2="Yes","- Confirmation that Customer meets or will meet NAB's My Bank Requirements"," ") -> 
B53: =IF(Lookups!$AA$2="Yes","","- 6 Months Statements of Non-Nab Transaction & Loan Accounts") -> - 6 Months Statements of Non-Nab Transaction & Loan Accounts
B54: - Trust Deed (if Applicable)
B55: - Contract of Sale
B56: - Costings & Quotes (Renovations Only)
B57: - Business Plan (Buy Business Only)
A58: Purchase Asset – Owner Occupied Property / Other Assets
B59: =IF(Lookups!$AA$2="Yes","- (1) Customer Consent and Statement of Position or (2) Business Finance Application Form","- Business Finance Application Form") -> - Business Finance Application Form
B60: - NAB Commercial Broker commission consent Form
B61: - NAB Broker Customer ID check Form and copy of Photo ID
B62: =IF(Lookups!$AA$2="Yes","","- NAB Broker Living expense calculator ") -> - NAB Broker Living expense calculator
B63: - ATO Portal Statements (Individual & Trading Entities - Itemised Account & Activity Statement)
B64: - Income Verification:
B65: =IF(Lookups!$AA$2="Yes","o 1 Year management accounts from an accounting package covering 12 months trading income and no older than 6 months","o 2 years accountant prepared financial statements (or annual management accounts for more recent year end)") -> o 2 years accountant prepared financial statements (or annual management accounts for more recent year end)
B66: =IF(Lookups!$AA$2="Yes","o 1 Year personal tax returns (all Directors & Guarantors) [required where entered into financial inputs - explain period variances where appropriate]","o 2 years personal tax returns (all Directors & Guarantors) and Associated Notices of Assessment") -> o 2 years personal tax returns (all Directors & Guarantors) and Associated Notices of Assessment
B67: =IF(Lookups!$AA$2="Yes","o Income Verification (PAYG – Last 2 payslips, Rental – Rental Statement or Account Credits) [required where entered into financial inputs]","o Income Verification (PAYG – Last 2 payslips, Rental – Rental Statement or Account Credits)") -> o Income Verification (PAYG – Last 2 payslips, Rental – Rental Statement or Account Credits)
B68: =IF(Lookups!$AA$2="Yes","o Minimum 1 Business Activity Statement (BAS) no older than 4 months old [not required if Accountant prepared year end financials]","") -> 
B69: =IF(Lookups!$AA$2="Yes","- Confirmation that Customer meets or will meet NAB's My Bank Requirements"," ") -> 
B70: - Funds to complete (can be provisioned via CP)
B71: =IF(Lookups!$AA$2="Yes","","- 6 Months Statements of Non-Nab Transaction & Loan Accounts") -> - 6 Months Statements of Non-Nab Transaction & Loan Accounts
B72: - Trust Deed (if Applicable)
B73: - Contract of Sale
B74: =IF(Lookups!$AA$2="Yes","","- Copy of Lease (if Applicable) ") -> - Copy of Lease (if Applicable)
A75: Purchase Asset/Refinance –Commercial Investment Property, Commercial/Residential Development Property
B76: =IF(Lookups!$AA$2="Yes","- (1) Customer Consent and Statement of Position or (2) Business Finance Application Form","- Business Finance Application Form") -> - Business Finance Application Form
B77: - NAB Commercial Broker commission consent Form
B78: - NAB Broker Customer ID check Form and copy of Photo ID
B79: =IF(Lookups!$AA$2="Yes","","- NAB Broker Living expense calculator ") -> - NAB Broker Living expense calculator
B80: - ATO Portal Statements (Individual & Trading Entities - Itemised Account & Activity Statement)
B81: - Income Verification:
B82: =IF(Lookups!$AA$2="Yes","o 1 Year management accounts from an accounting package covering 12 months trading income and no older than 6 months","o 2 years accountant prepared financial statements (or annual management accounts for more recent year end)") -> o 2 years accountant prepared financial statements (or annual management accounts for more recent year end)
B83: =IF(Lookups!$AA$2="Yes","o 1 Year personal tax returns (all Directors & Guarantors) [required where entered into financial inputs - explain period variances where appropriate]","o 2 years personal tax returns (all Directors & Guarantors) and Associated Notices of Assessment") -> o 2 years personal tax returns (all Directors & Guarantors) and Associated Notices of Assessment
B84: =IF(Lookups!$AA$2="Yes","o Income Verification (PAYG – Last 2 payslips, Rental – Rental Statement or Account Credits) [required where entered into financial inputs]","o Income Verification (PAYG – Last 2 payslips, Rental – Rental Statement or Account Credits)") -> o Income Verification (PAYG – Last 2 payslips, Rental – Rental Statement or Account Credits)
B85: =IF(Lookups!$AA$2="Yes","o Minimum 1 Business Activity Statement (BAS) no older than 4 months old [not required if Accountant prepared year end financials]","") -> 
B86: =IF(Lookups!$AA$2="Yes","- Confirmation that Customer meets or will meet NAB's My Bank Requirements"," ") -> 
B87: - Funds to complete (can be provisioned via CP)
B88: =IF(Lookups!$AA$2="Yes","","- 6 Months Statements of Non-Nab Transaction & Loan Accounts (if applicable, include statements for facilities being refinanced)") -> - 6 Months Statements of Non-Nab Transaction & Loan Accounts (if applicable, include statements for facilities being refinanced)
B89: - Trust Deed (if Applicable)
B90: - Contract of Sale
B91: =IF(Lookups!$AA$2="Yes","","- Copy of Lease (if Applicable) ") -> - Copy of Lease (if Applicable)
A92: Purchase Asset – Equipment Finance (NB: This application may be eligible for the 'Simplified Equipment Finance Assessment Tool'. Speak to your Small Business BDM for more information).
B93: - Business Finance Application Form
B94: - NAB Commercial Broker commission consent Form
B95: - NAB Broker Customer ID check Form and copy of Photo ID
B96: - NAB Broker Living Expense Calculator
B97: - ATO Portal Statements (Individual & Trading Entities - Itemised Account & Activity Statement)
B98: - Income Verification:
B99: o 2 years accountant prepared financial statements (or annual management accounts for more recent year end)
B100: o 2 years personal tax returns (All Directors & Guarantors) and Associated Notices of Assessment
B101: o Income Verification (PAYG – Last 2 payslips, Rental – Rental Statement or Account Credits)
B104: - Funds to complete (can be provisioned via CP)
B105: - 6 Months Statements of Non-Nab Transaction & Loan Accounts
B106: - Trust Deed (if Applicable)
B107: - Contract of Sale
B108: - Copy of Insurance (If Already Held)
A109: Debt Restructure (Further details might be required after submission)
B110: =IF(Lookups!$AA$2="Yes","- (1) Customer Consent and Statement of Position or (2) Business Finance Application Form","- Business Finance Application Form") -> - Business Finance Application Form
B111: - NAB Commercial Broker commission consent Form
B112: - NAB Broker Customer ID check Form and copy of Photo ID
B113: =IF(Lookups!$AA$2="Yes","","- NAB Broker Living expense calculator ") -> - NAB Broker Living expense calculator
B114: - ATO Portal Statements (Individual & Trading Entities - Itemised Account & Activity Statement)
B115: - Income Verification:
B116: =IF(Lookups!$AA$2="Yes","o 1 Year management accounts from an accounting package covering 12 months trading income and no older than 6 months","o 2 years accountant prepared financial statements (or annual management accounts for more recent year end)") -> o 2 years accountant prepared financial statements (or annual management accounts for more recent year end)
B117: =IF(Lookups!$AA$2="Yes","o 1 Year personal tax returns (all Directors & Guarantors) [required where entered into financial inputs - explain period variances where appropriate]","o 2 years personal tax returns (all Directors & Guarantors) and Associated Notices of Assessment") -> o 2 years personal tax returns (all Directors & Guarantors) and Associated Notices of Assessment
B118: =IF(Lookups!$AA$2="Yes","o Income Verification (PAYG – Last 2 payslips, Rental – Rental Statement or Account Credits) [required where entered into financial inputs]","o Income Verification (PAYG – Last 2 payslips, Rental – Rental Statement or Account Credits)") -> o Income Verification (PAYG – Last 2 payslips, Rental – Rental Statement or Account Credits)
B119: =IF(Lookups!$AA$2="Yes","o Minimum 1 Business Activity Statement (BAS) no older than 4 months old [not required if Accountant prepared year end financials]","") -> 
B120: =IF(Lookups!$AA$2="Yes","- Confirmation that Customer meets or will meet NAB's My Bank Requirements"," ") -> 
B121: =IF(Lookups!$AA$2="Yes","","- 6 Months Statements of Non-Nab Transaction & Loan Accounts") -> - 6 Months Statements of Non-Nab Transaction & Loan Accounts
B122: - Trust Deed (if Applicable)
A123: Funding to address unexpected cash shortfall and/or slow-paying debtors (Further details might be required after submission)
B124: - Business Finance Application Form
B125: - NAB Commercial Broker commission consent Form
B126: - NAB Broker Customer ID check Form and copy of Photo ID
B127: - NAB Broker Living Expense Calculator
B128: - ATO Portal Statements (Individual & Trading Entities - Itemised Account & Activity Statement)
B129: - Income Verification:
B130: o 2 years accountant prepared financial statements (or annual management accounts for more recent year end)
B131: o 2 years personal tax returns (All Directors & Guarantors) and Associated Notices of Assessment
B132: o Income Verification (PAYG – Last 2 payslips, Rental – Rental Statement or Account Credits)
B135: - 6 Months business transactional statements
B136: - 6 Months Statements of Non-Nab Transaction & Loan Accounts
B137: - Trust Deed (if Applicable)
B138: - List of current creditors and debtors (30/60/90 days)
B139: - Details of unexpected shortfall (Invoices, bills etc)
A140: Debt consolidation to managed financial distress (Further details might be required after submission)
B141: - Business Finance Application Form
B142: - NAB Commercial Broker commission consent Form
B143: - NAB Broker Customer ID check Form and copy of Photo ID
B144: - NAB Broker Living Expense Calculator
B145: - ATO Portal Statements (Individual & Trading Entities - Itemised Account & Activity Statement)
B146: - Income Verification:
B147: o 2 years accountant prepared financial statements (or annual management accounts for more recent year end)
B148: o 2 years personal tax returns (All Directors & Guarantors) and Associated Notices of Assessment
B149: o Income Verification (PAYG – Last 2 payslips, Rental – Rental Statement or Account Credits)
B152: - 6 Months Statements of Non-Nab Transaction & Loan Accounts
B153: - Trust Deed (if Applicable)
B154: - 6 Months Statements for facilities being refinanced
B155: - List of current creditors and debtors (30/60/90 days)
B156: - Details of financial stress and plan to rectify
A157: Refinance debt to manage financial distress (Further details might be required after submission)
B158: - Business Finance Application Form
B159: - NAB Commercial Broker commission consent Form
B160: - NAB Broker Customer ID check Form and copy of Photo ID
B161: - NAB Broker Living Expense Calculator
B162: - ATO Portal Statements (Individual & Trading Entities - Itemised Account & Activity Statement)
B163: - Income Verification:
B164: o 2 years accountant prepared financial statements (or annual management accounts for more recent year end)
B165: o 2 years personal tax returns (All Directors & Guarantors) and Associated Notices of Assessment
B166: o Income Verification (PAYG – Last 2 payslips, Rental – Rental Statement or Account Credits)
B169: - 6 Months Statements for facilities being refinanced
B170: - 6 Months Statements of Non-Nab Transaction & Loan Accounts
B171: - Trust Deed (if Applicable)
B172: - List of current creditors and debtors (30/60/90 days)
B173: - Details of financial stress and plan to rectify
A174: Clearing ATO arrears (Further details might be required after submission)
B175: - Business Finance Application Form
B176: - NAB Commercial Broker commission consent Form
B177: - NAB Broker Customer ID check Form and copy of Photo ID
B178: - NAB Broker Living Expense Calculator
B179: - ATO Portal Statements (Individual & Trading Entities - Itemised Account & Activity Statement)
B180: - Income Verification:
B181: o 2 years accountant prepared financial statements (or annual management accounts for more recent year end)
B182: o 2 years personal tax returns (All Directors & Guarantors) and Associated Notices of Assessment
B183: o Income Verification (PAYG – Last 2 payslips, Rental – Rental Statement or Account Credits)
B186: - 6 Months Statements of Non-Nab Transaction & Loan Accounts
B187: - Trust Deed (if Applicable)
B188: - List of current creditors and debtors (30/60/90 days)
B189: - ATO payment plan correspondence
B190: - Proof of payments made within ATO payment plan
A191: SMSF Commercial Property Purchase
B192: - SMSF Finance Application Form
B193: - NAB Commercial Broker commission consent Form
B194: - NAB Broker Customer ID check Form and copy of Photo ID
B195: - NAB Broker Living expense calculator
B196: - Letter from accountant or financial planner to confirm the ongoing SMSF member contributions for self-employed customers
B197: - Letter from accountant or financial planner to confirm the proposed purchase is within the SMSF’s strategy and appropriate for clients' circumstances (or a copy of their statement of advice)
B198: - Certified copy of SMSF Trust Deed (including all amendments)
B199: - Security Trust Deed (Unless using NAB SAF Deed)
B200: - Contract of Sale
B201: - Last 2 years SMSF financial statements
B202: - Evidence of Current and/or proposed rental income (lease agreement)
B203: - 6 Months Statements of Non-Nab Transaction & Loan Accounts (SMSF & Directors/Guarantors)
B204: - ATO Portal Statements (Individual & SMSF Entities - Itemised Account & Activity Statement)
B205: - Evidence of income for all directors/guarantors (Self Employed – Last 2 years financial statements (or annual management accounts for more recent year end), personal tax returns and Associated Notices of Assessment, PAYG – Last 2 payslips, Rental – Rental Statement of Account Credit)
A207: ©2017 National Australia Bank Limited ABN 12 004 044 937 AFSL and Australian Credit Licence

Sheet Financial Inputs
B2: FINANCIAL INPUTS | V2: Hide these columns on completion
D6: Version: | E6: =MAX(Table1[Version]) -> 4.6 | G6: Date Modified: | I6: =MAX(Table1[Date]) -> 2025-04-07
D8: FINANCIAL INPUTS
C9: NAB USE ONLY | D9: =IF(E14<>"","Save Worksheet as: 'MSBCA - Aggregation Number - Submission Number'. Attach to eBL as a credit memorandum.","") -> 
D10: Aggregation Name | I10: Loan Purpose 1 * | J10: Please select loan purpose
D12: Aggregation Number* | I12: Loan Purpose 2 | J12: Please select loan purpose
D14: Submission Number * | I14: Loan Purpose 3 | J14: Please select loan purpose
D16: Application Type | E16: Please Select | I16: Loan Purpose 4 | J16: Please select loan purpose
D18: No. of Business Entities | E18: Please Select
D19: No. of Individual/Sole Traders | E19: Please Select
D20: Funding Table - Loan 1 | L20: =IF(J10="ATO Arrears Payout",J31,IF(J10="Debt Consolidation",J59,IF(J10="Refinance",J87,IF(J10="Working Capital",J94,IF(J10="Buy Business or Fund Renovations to business",J112,IF(J10="Any Asset Finance/Purchase",J124,"")))))) ->  | M20: Funding table check against the facilities table (Funding = New Facilities)
D21: Clearing ATO Arrears
I23: Total Arrears Amount *
I25: Paid Arrears
I27: Arrears Remaining | J27: =J23-J25 -> 0
I29: Customer Contribution
I31: Funding Required | J31: =J27-J29 -> 0
D33: Debt Consolidation to Manage Financial Distress
I35: No. of Debt Facilities * | J35: Please Select
I37: Facility 1 limit
I39: Facility 2 limit
I41: Facility 3 limit
I43: Facility 4 limit
I45: Facility 5 limit
I47: Facility 6 limit
I49: Facility 7 limit
I51: Facility 8 limit
I53: Facility 9 limit
I55: Facility 10 limit
I57: Fees & Charges
I59: Funding Required | J59: =IF($J35=1,SUM($J37)+$J57,IF($J35=2,SUM($J37:$K39)+$J57,IF($J35=3,SUM($J37:$K41)+$J57,IF($J35=4,SUM($J37:$K43)+$J57,IF($J35=5,SUM($J37:$K45)+$J57,IF($J35=6,SUM($J37:$K47)+$J57,IF($J35=7,SUM($J37:$K49)+$J57,IF($J35=8,SUM($J37:$K51)+$J57,IF($J35=9,SUM($J37:$K53)+$J57,IF($J35=10,SUM($J37:$K55)+$J57,"-")))))))))) -> -
D61: Refinance Debt to Manage Financial Distress
I63: No. of Debt Facilities * | J63: Please Select
I65: Facility 1 limit
I67: Facility 2 limit
I69: Facility 3 limit
I71: Facility 4 limit
I73: Facility 5 limit
I75: Facility 6 limit
I77: Facility 7 limit
I79: Facility 8 limit
I81: Facility 9 limit
I83: Facility 10 limit
I85: Fees & Charges
I87: Funding Required | J87: =IF($J63=1,SUM($J65)+$J85,IF($J63=2,SUM($J65:$K67)+$J85,IF($J63=3,SUM($J65:$K69)+$J85,IF($J63=4,SUM($J65:$K71)+$J85,IF($J63=5,SUM($J65:$K73)+$J85,IF($J63=6,SUM($J65:$K75)+$J85,IF($J63=7,SUM($J65:$K77)+$J85,IF($J63=8,SUM($J65:$K79)+$J85,IF($J63=9,SUM($J65:$K81)+$J85,IF($J63=10,SUM($J65:$K83)+$J85,"-")))))))))) -> -
D89: Funding to Address Unexpected Cash Shortfall / Slow Paying Debtors
I91: Funding Required
D93: Debt Restructure
I95: No. of Debt Facilities * | J95: Please Select
I97: Facility 1 limit
I99: Facility 2 limit
I101: Facility 3 limit
I103: Facility 4 limit
I105: Facility 5 limit
I107: Facility 6 limit
I109: Facility 7 limit
I111: Facility 8 limit
I113: Facility 9 limit
I115: Facility 10 limit
I117: Fees & Charges
I119: Funding Required | J119: =IF($J95=1,SUM($J97)+$J117,IF($J95=2,SUM($J97:$K99)+$J117,IF($J95=3,SUM($J97:$K101)+$J117,IF($J95=4,SUM($J97:$K103)+$J117,IF($J95=5,SUM($J97:$K105)+$J117,IF($J95=6,SUM($J97:$K107)+$J117,IF($J95=7,SUM($J97:$K109)+$J117,IF($J95=8,SUM($J97:$K111)+$J117,IF($J95=9,SUM($J97:$K113)+$J117,IF($J95=10,SUM($J97:$K115)+$J117,"-")))))))))) -> -
D121: Refinance
I123: No. of Debt Facilities * | J123: Please Select
I125: Facility 1 limit
I127: Facility 2 limit
I129: Facility 3 limit
I131: Facility 4 limit
I133: Facility 5 limit
I135: Facility 6 limit
I137: Facility 7 limit
I139: Facility 8 limit
I141: Facility 9 limit
I143: Facility 10 limit
I145: Fees & Charges
I147: Funding Required | J147: =IF($J123=1,SUM($J125)+$J145,IF($J123=2,SUM($J125:$K127)+$J145,IF($J123=3,SUM($J125:$K129)+$J145,IF($J123=4,SUM($J125:$K131)+$J145,IF($J123=5,SUM($J125:$K133)+$J145,IF($J123=6,SUM($J125:$K135)+$J145,IF($J123=7,SUM($J125:$K137)+$J145,IF($J123=8,SUM($J125:$K139)+$J145,IF($J123=9,SUM($J125:$K141)+$J145,IF($J123=10,SUM($J125:$K143)+$J145,"-")))))))))) -> -
D150: Working Capital
J151: =IF(AND(J154<>"",J152=""),"You must select a cash driver","") -> 
I152: Cash Driver *
I154: Funding Required *
D156: Buy Business or Fund Renovations to Business
I158: Purchase Price *
I160: Fees & Charges
I162: Rental Bond
I164: Stock
D166: Ratios | I166: Working Capital
D168: Loan to Purchase Price | E168: =IFERROR(J172/J158,"-") -> - | I168: Total Transaction Cost | J168: =J158+J160+J162+J164+J166 -> 0
D170: Loan to Transaction Cost | E170: =IFERROR(J172/J168,"-") -> - | I170: Customer Contribution
D172: Loan to Equity | E172: =IFERROR(J170/J172,"-") -> - | I172: Funding Required | J172: =J168-J170 -> 0
D174: Purchase Asset/Refinance – Commercial Investment Property, Commercial/Residential Development Property
I176: Purchase Price *
D178: Ratios | I178: Fees & Charges
D180: Loan to Purchase Price | E180: =IFERROR(J184/J176,"-") -> - | I180: Total Transaction Cost | J180: =J176+J178 -> 0
D182: Loan to Transaction Cost | E182: =IFERROR(J184/J180,"-") -> - | I182: Customer Contribution
D184: Loan to Equity | E184: =IFERROR(J182/J184,"-") -> - | I184: Funding Required | J184: =J180-J182 -> 0
D187: Funding Table - Loan 2 | L187: =IF(J177="ATO Arrears Payout",J198,IF(J177="Debt Consolidation",J226,IF(J177="Refinance",J254,IF(J177="Working Capital",J261,IF(J177="Buy Business or Fund Renovations to business",J279,IF(J177="Any Asset Finance/Purchase",J291,"")))))) ->  | M187: Funding table check against the facilities table (Funding = New Facilities)
D188: Clearing ATO Arrears
I190: Total Arrears Amount *
I192: Paid Arrears
I194: Arrears Remaining | J194: =J190-J192 -> 0
I196: Customer Contribution
I198: Funding Required | J198: =J194-J196 -> 0
D200: Debt Consolidation to Manage Financial Distress
I202: No. of Debt Facilities * | J202: Please Select
I204: Facility 1 limit
I206: Facility 2 limit
I208: Facility 3 limit
I210: Facility 4 limit
I212: Facility 5 limit
I214: Facility 6 limit
I216: Facility 7 limit
I218: Facility 8 limit
I220: Facility 9 limit
I222: Facility 10 limit
I224: Fees & Charges
I226: Funding Required | J226: =IF($J202=1,SUM($J204)+$J224,IF($J202=2,SUM($J204:$K206)+$J224,IF($J202=3,SUM($J204:$K208)+$J224,IF($J202=4,SUM($J204:$K210)+$J224,IF($J202=5,SUM($J204:$K212)+$J224,IF($J202=6,SUM($J204:$K214)+$J224,IF($J202=7,SUM($J204:$K216)+$J224,IF($J202=8,SUM($J204:$K218)+$J224,IF($J202=9,SUM($J204:$K220)+$J224,IF($J202=10,SUM($J204:$K222)+$J224,"-")))))))))) -> -
D228: Refinance Debt to Manage Financial Distress
I230: No. of Debt Facilities * | J230: Please Select
I232: Facility 1 limit
I234: Facility 2 limit
I236: Facility 3 limit
I238: Facility 4 limit
I240: Facility 5 limit
I242: Facility 6 limit
I244: Facility 7 limit
I246: Facility 8 limit
I248: Facility 9 limit
I250: Facility 10 limit
I252: Fees & Charges
I254: Funding Required | J254: =IF($J230=1,SUM($J232)+$J252,IF($J230=2,SUM($J232:$K234)+$J252,IF($J230=3,SUM($J232:$K236)+$J252,IF($J230=4,SUM($J232:$K238)+$J252,IF($J230=5,SUM($J232:$K240)+$J252,IF($J230=6,SUM($J232:$K242)+$J252,IF($J230=7,SUM($J232:$K244)+$J252,IF($J230=8,SUM($J232:$K246)+$J252,IF($J230=9,SUM($J232:$K248)+$J252,IF($J230=10,SUM($J232:$K250)+$J252,"-")))))))))) -> -
D256: Funding to Address Unexpected Cash Shortfall / Slow Paying Debtors
I258: Funding Required
D260: Debt Restructure
I262: No. of Debt Facilities * | J262: Please Select
I264: Facility 1 limit
I266: Facility 2 limit
I268: Facility 3 limit
I270: Facility 4 limit
I272: Facility 5 limit
I274: Facility 6 limit
I276: Facility 7 limit
I278: Facility 8 limit
I280: Facility 9 limit
I282: Facility 10 limit
I284: Fees & Charges
I286: Funding Required | J286: =IF($J262=1,SUM($J264)+$J284,IF($J262=2,SUM($J264:$K266)+$J284,IF($J262=3,SUM($J264:$K268)+$J284,IF($J262=4,SUM($J264:$K270)+$J284,IF($J262=5,SUM($J264:$K272)+$J284,IF($J262=6,SUM($J264:$K274)+$J284,IF($J262=7,SUM($J264:$K276)+$J284,IF($J262=8,SUM($J264:$K278)+$J284,IF($J262=9,SUM($J264:$K280)+$J284,IF($J262=10,SUM($J264:$K282)+$J284,"-")))))))))) -> -
D288: Refinance
I290: No. of Debt Facilities * | J290: Please Select
I292: Facility 1 limit
I294: Facility 2 limit
I296: Facility 3 limit
I298: Facility 4 limit
I300: Facility 5 limit
I302: Facility 6 limit
I304: Facility 7 limit
I306: Facility 8 limit
I308: Facility 9 limit
I310: Facility 10 limit
I312: Fees & Charges
I314: Funding Required | J314: =IF($J290=1,SUM($J292)+$J312,IF($J290=2,SUM($J292:$K294)+$J312,IF($J290=3,SUM($J292:$K296)+$J312,IF($J290=4,SUM($J292:$K298)+$J312,IF($J290=5,SUM($J292:$K300)+$J312,IF($J290=6,SUM($J292:$K302)+$J312,IF($J290=7,SUM($J292:$K304)+$J312,IF($J290=8,SUM($J292:$K306)+$J312,IF($J290=9,SUM($J292:$K308)+$J312,IF($J290=10,SUM($J292:$K310)+$J312,"-")))))))))) -> -
D317: Working Capital
J318: =IF(AND(J321<>"",J319=""),"You must select a cash driver","") -> 
I319: Cash Driver *
I321: Funding Required *
D323: Buy Business or Fund Renovations to Business
I325: Purchase Price *
I327: Fees & Charges
I329: Rental Bond
I331: Stock
D333: Ratios | I333: Working Capital
D335: Loan to Purchase Price | E335: =IFERROR(J339/J325,"-") -> - | I335: Total Transaction Cost | J335: =J325+J327+J329+J331+J333 -> 0
D337: Loan to Transaction Cost | E337: =IFERROR(J339/J335,"-") -> - | I337: Customer Contribution
D339: Loan to Equity | E339: =IFERROR(J337/J339,"-") -> - | I339: Funding Required | J339: =J335-J337 -> 0
D341: Purchase Asset/Refinance – Commercial Investment Property, Commercial/Residential Development Property
I343: Purchase Price *
D345: Ratios | I345: Fees & Charges
D347: Loan to Purchase Price | E347: =IFERROR(J351/J343,"-") -> - | I347: Total Transaction Cost | J347: =J343+J345 -> 0
D349: Loan to Transaction Cost | E349: =IFERROR(J351/J347,"-") -> - | I349: Customer Contribution
D351: Loan to Equity | E351: =IFERROR(J349/J351,"-") -> - | I351: Funding Required | J351: =J347-J349 -> 0
D354: Funding Table - Loan 3 | L354: =IF(J344="ATO Arrears Payout",J365,IF(J344="Debt Consolidation",J393,IF(J344="Refinance",J421,IF(J344="Working Capital",J428,IF(J344="Buy Business or Fund Renovations to business",J446,IF(J344="Any Asset Finance/Purchase",J458,"")))))) ->  | M354: Funding table check against the facilities table (Funding = New Facilities)
D355: Clearing ATO Arrears
I357: Total Arrears Amount *
I359: Paid Arrears
I361: Arrears Remaining | J361: =J357-J359 -> 0
I363: Customer Contribution
I365: Funding Required | J365: =J361-J363 -> 0
D367: Debt Consolidation to Manage Financial Distress
I369: No. of Debt Facilities * | J369: Please Select
I371: Facility 1 limit
I373: Facility 2 limit
I375: Facility 3 limit
I377: Facility 4 limit
I379: Facility 5 limit
I381: Facility 6 limit
I383: Facility 7 limit
I385: Facility 8 limit
I387: Facility 9 limit
I389: Facility 10 limit
I391: Fees & Charges
I393: Funding Required | J393: =IF($J369=1,SUM($J371)+$J391,IF($J369=2,SUM($J371:$K373)+$J391,IF($J369=3,SUM($J371:$K375)+$J391,IF($J369=4,SUM($J371:$K377)+$J391,IF($J369=5,SUM($J371:$K379)+$J391,IF($J369=6,SUM($J371:$K381)+$J391,IF($J369=7,SUM($J371:$K383)+$J391,IF($J369=8,SUM($J371:$K385)+$J391,IF($J369=9,SUM($J371:$K387)+$J391,IF($J369=10,SUM($J371:$K389)+$J391,"-")))))))))) -> -
D395: Refinance Debt to Manage Financial Distress
... 889 more rows

Sheet Security
B2: FINANCIAL INPUTS | T2: hide these columns
D6: Version: | G6: ='Financial Inputs'!E6 -> 4.6 | I6: Date Modified: | K6: ='Financial Inputs'!I6 -> 2025-04-07
D8: SECURITY
D10: Security/ies | V10: =IF('Information Requirements'!B4='Dropdown Menu'!AK3,"Yes","No") -> No
S11: =L12+P12 -> 0
I12: Existing NAB Secured Lending * | O12: Proposed NAB New Lending * | Q12: =IF(AND(Lookups!AA2="Yes",S11>S16),"Pause, talk to your BDM","") ->  | T12: this is to calc the min security rank | U12: =SUM(V12:X12) -> 0 | V12: =S16 -> 0 | W12: =SUM(W18:W37) -> 0 | X12: =SUM(X18:X37) -> 0
S13: Fast Track LVR (hide on release)
D14: No. Of Securities * | G14: 1 | N14: Not all lending automatically qualifies at the $ amount reflected as Bank Value.
D15: Important: Please enter data for all mandatory fields marked as *
D16: Security Type * | E16: =IF(Lookups!AA2="No","Postcode (not required)","Postcode (Enter only for Residential security)") -> Postcode (not required) | G16: Security Subtype * | N16: Residual Market Value | O16: BV(%) | P16: Bank Value | Q16: Bank Value of 'Other' Security | S16: =SUM(S18:S37) -> 0 | T16: =MIN(T18:T37) -> 0 | V16: LVR adv | W16: Comm | X16: Resi
C18: 1 | F18: =IF(ISERROR(VLOOKUP(""&E18,'High Risk Postcodes'!$B$5:$B$199,1,FALSE)),"","Pause, Talk to BDM") ->  | O18: =IFERROR(VLOOKUP(G18,'Security LBVR LookUP Table'!Z:AB,3,FALSE),"-") -> - | P18: =IF(G18="Other","Insert BV in next column",IF(AND(D18<>"",G18<>""),N18*(VLOOKUP(G18,'Security LBVR LookUP Table'!Z:AB,3,FALSE)),"-")) -> - | S18: =IF(OR(N18="",G18=""),"",VLOOKUP(G18,'Security LBVR LookUP Table'!$Z$2:$AC$65,4,FALSE)*Security!N18) ->  | T18: =IF(D18="","",VLOOKUP(D18,'Security LBVR LookUP Table'!$F$2:$G$14,2,FALSE)) ->  | U18: =IF(D18="","",VLOOKUP(D18,'Security LBVR LookUP Table'!$F$2:$G$14,2,FALSE)) ->  | V18: =IF(U18=0,0.8*N18,IF(U18=1,1*N18,0)) -> 0 | W18: =IF(T18=0,V18,0) -> 0 | X18: =IF(U18=1,V18,0) -> 0
C19: 2 | F19: =IF(ISERROR(VLOOKUP(""&E19,'High Risk Postcodes'!$B$5:$B$199,1,FALSE)),"","Pause, Talk to BDM") ->  | O19: =IFERROR(VLOOKUP(G19,'Security LBVR LookUP Table'!Z:AB,3,FALSE),"-") -> - | P19: =IF(G19="Other","Insert BV in next column",IF(AND(D19<>"",G19<>""),N19*(VLOOKUP(G19,'Security LBVR LookUP Table'!Z:AB,3,FALSE)),"-")) -> - | S19: =IF(OR(N19="",G19=""),"",VLOOKUP(G19,'Security LBVR LookUP Table'!$Z$2:$AC$65,4,FALSE)*Security!N19) ->  | T19: =IF(D19="","",VLOOKUP(D19,'Security LBVR LookUP Table'!$F$2:$G$14,2,FALSE)) ->  | U19: =IF(D19="","",VLOOKUP(D19,'Security LBVR LookUP Table'!$F$2:$G$14,2,FALSE)) ->  | V19: =IF(U19=0,0.8*N19,IF(U19=1,1*N19,0)) -> 0 | W19: =IF(T19=0,V19,0) -> 0 | X19: =IF(U19=1,V19,0) -> 0
C20: 3 | F20: =IF(ISERROR(VLOOKUP(""&E20,'High Risk Postcodes'!$B$5:$B$199,1,FALSE)),"","Pause, Talk to BDM") ->  | O20: =IFERROR(VLOOKUP(G20,'Security LBVR LookUP Table'!Z:AB,3,FALSE),"-") -> - | P20: =IF(G20="Other","Insert BV in next column",IF(AND(D20<>"",G20<>""),N20*(VLOOKUP(G20,'Security LBVR LookUP Table'!Z:AB,3,FALSE)),"-")) -> - | S20: =IF(OR(N20="",G20=""),"",VLOOKUP(G20,'Security LBVR LookUP Table'!$Z$2:$AC$65,4,FALSE)*Security!N20) ->  | T20: =IF(D20="","",VLOOKUP(D20,'Security LBVR LookUP Table'!$F$2:$G$14,2,FALSE)) ->  | U20: =IF(D20="","",VLOOKUP(D20,'Security LBVR LookUP Table'!$F$2:$G$14,2,FALSE)) ->  | V20: 0 | W20: 0 | X20: 0
C21: 4 | F21: =IF(ISERROR(VLOOKUP(""&E21,'High Risk Postcodes'!$B$5:$B$199,1,FALSE)),"","Pause, Talk to BDM") ->  | O21: =IFERROR(VLOOKUP(G21,'Security LBVR LookUP Table'!Z:AB,3,FALSE),"-") -> - | P21: =IF(G21="Other","Insert BV in next column",IF(AND(D21<>"",G21<>""),N21*(VLOOKUP(G21,'Security LBVR LookUP Table'!Z:AB,3,FALSE)),"-")) -> - | S21: =IF(OR(N21="",G21=""),"",VLOOKUP(G21,'Security LBVR LookUP Table'!$Z$2:$AC$65,4,FALSE)*Security!N21) ->  | T21: =IF(D21="","",VLOOKUP(D21,'Security LBVR LookUP Table'!$F$2:$G$14,2,FALSE)) ->  | U21: =IF(D21="","",VLOOKUP(D21,'Security LBVR LookUP Table'!$F$2:$G$14,2,FALSE)) ->  | V21: 0 | W21: 0 | X21: 0
C22: 5 | F22: =IF(ISERROR(VLOOKUP(""&E22,'High Risk Postcodes'!$B$5:$B$199,1,FALSE)),"","Pause, Talk to BDM") ->  | O22: =IFERROR(VLOOKUP(G22,'Security LBVR LookUP Table'!Z:AB,3,FALSE),"-") -> - | P22: =IF(G22="Other","Insert BV in next column",IF(AND(D22<>"",G22<>""),N22*(VLOOKUP(G22,'Security LBVR LookUP Table'!Z:AB,3,FALSE)),"-")) -> - | S22: =IF(OR(N22="",G22=""),"",VLOOKUP(G22,'Security LBVR LookUP Table'!$Z$2:$AC$65,4,FALSE)*Security!N22) ->  | T22: =IF(D22="","",VLOOKUP(D22,'Security LBVR LookUP Table'!$F$2:$G$14,2,FALSE)) ->  | U22: =IF(D22="","",VLOOKUP(D22,'Security LBVR LookUP Table'!$F$2:$G$14,2,FALSE)) ->  | V22: 0 | W22: 0 | X22: 0
C23: 6 | F23: =IF(ISERROR(VLOOKUP(""&E23,'High Risk Postcodes'!$B$5:$B$199,1,FALSE)),"","Pause, Talk to BDM") ->  | O23: =IFERROR(VLOOKUP(G23,'Security LBVR LookUP Table'!Z:AB,3,FALSE),"-") -> - | P23: =IF(G23="Other","Insert BV in next column",IF(AND(D23<>"",G23<>""),N23*(VLOOKUP(G23,'Security LBVR LookUP Table'!Z:AB,3,FALSE)),"-")) -> - | S23: =IF(OR(N23="",G23=""),"",VLOOKUP(G23,'Security LBVR LookUP Table'!$Z$2:$AC$65,4,FALSE)*Security!N23) ->  | T23: =IF(D23="","",VLOOKUP(D23,'Security LBVR LookUP Table'!$F$2:$G$14,2,FALSE)) ->  | U23: =IF(D23="","",VLOOKUP(D23,'Security LBVR LookUP Table'!$F$2:$G$14,2,FALSE)) ->  | V23: 0 | W23: 0 | X23: 0
C24: 7 | F24: =IF(ISERROR(VLOOKUP(""&E24,'High Risk Postcodes'!$B$5:$B$199,1,FALSE)),"","Pause, Talk to BDM") ->  | O24: =IFERROR(VLOOKUP(G24,'Security LBVR LookUP Table'!Z:AB,3,FALSE),"-") -> - | P24: =IF(G24="Other","Insert BV in next column",IF(AND(D24<>"",G24<>""),N24*(VLOOKUP(G24,'Security LBVR LookUP Table'!Z:AB,3,FALSE)),"-")) -> - | S24: =IF(OR(N24="",G24=""),"",VLOOKUP(G24,'Security LBVR LookUP Table'!$Z$2:$AC$65,4,FALSE)*Security!N24) ->  | T24: =IF(D24="","",VLOOKUP(D24,'Security LBVR LookUP Table'!$F$2:$G$14,2,FALSE)) ->  | U24: =IF(D24="","",VLOOKUP(D24,'Security LBVR LookUP Table'!$F$2:$G$14,2,FALSE)) ->  | V24: 0 | W24: 0 | X24: 0
C25: 8 | F25: =IF(ISERROR(VLOOKUP(""&E25,'High Risk Postcodes'!$B$5:$B$199,1,FALSE)),"","Pause, Talk to BDM") ->  | O25: =IFERROR(VLOOKUP(G25,'Security LBVR LookUP Table'!Z:AB,3,FALSE),"-") -> - | P25: =IF(G25="Other","Insert BV in next column",IF(AND(D25<>"",G25<>""),N25*(VLOOKUP(G25,'Security LBVR LookUP Table'!Z:AB,3,FALSE)),"-")) -> - | S25: =IF(OR(N25="",G25=""),"",VLOOKUP(G25,'Security LBVR LookUP Table'!$Z$2:$AC$65,4,FALSE)*Security!N25) ->  | T25: =IF(D25="","",VLOOKUP(D25,'Security LBVR LookUP Table'!$F$2:$G$14,2,FALSE)) ->  | U25: =IF(D25="","",VLOOKUP(D25,'Security LBVR LookUP Table'!$F$2:$G$14,2,FALSE)) ->  | V25: 0 | W25: 0 | X25: 0
C26: 9 | F26: =IF(ISERROR(VLOOKUP(""&E26,'High Risk Postcodes'!$B$5:$B$199,1,FALSE)),"","Pause, Talk to BDM") ->  | O26: =IFERROR(VLOOKUP(G26,'Security LBVR LookUP Table'!Z:AB,3,FALSE),"-") -> - | P26: =IF(G26="Other","Insert BV in next column",IF(AND(D26<>"",G26<>""),N26*(VLOOKUP(G26,'Security LBVR LookUP Table'!Z:AB,3,FALSE)),"-")) -> - | S26: =IF(OR(N26="",G26=""),"",VLOOKUP(G26,'Security LBVR LookUP Table'!$Z$2:$AC$65,4,FALSE)*Security!N26) ->  | T26: =IF(D26="","",VLOOKUP(D26,'Security LBVR LookUP Table'!$F$2:$G$14,2,FALSE)) ->  | U26: =IF(D26="","",VLOOKUP(D26,'Security LBVR LookUP Table'!$F$2:$G$14,2,FALSE)) ->  | V26: 0 | W26: 0 | X26: 0
C27: 10 | F27: =IF(ISERROR(VLOOKUP(""&E27,'High Risk Postcodes'!$B$5:$B$199,1,FALSE)),"","Pause, Talk to BDM") ->  | O27: =IFERROR(VLOOKUP(G27,'Security LBVR LookUP Table'!Z:AB,3,FALSE),"-") -> - | P27: =IF(G27="Other","Insert BV in next column",IF(AND(D27<>"",G27<>""),N27*(VLOOKUP(G27,'Security LBVR LookUP Table'!Z:AB,3,FALSE)),"-")) -> - | S27: =IF(OR(N27="",G27=""),"",VLOOKUP(G27,'Security LBVR LookUP Table'!$Z$2:$AC$65,4,FALSE)*Security!N27) ->  | T27: =IF(D27="","",VLOOKUP(D27,'Security LBVR LookUP Table'!$F$2:$G$14,2,FALSE)) ->  | U27: =IF(D27="","",VLOOKUP(D27,'Security LBVR LookUP Table'!$F$2:$G$14,2,FALSE)) ->  | V27: 0 | W27: 0 | X27: 0
C28: 11 | F28: =IF(ISERROR(VLOOKUP(""&E28,'High Risk Postcodes'!$B$5:$B$199,1,FALSE)),"","Pause, Talk to BDM") ->  | O28: =IFERROR(VLOOKUP(G28,'Security LBVR LookUP Table'!Z:AB,3,FALSE),"-") -> - | P28: =IF(G28="Other","Insert BV in next column",IF(AND(D28<>"",G28<>""),N28*(VLOOKUP(G28,'Security LBVR LookUP Table'!Z:AB,3,FALSE)),"-")) -> - | S28: =IF(OR(N28="",G28=""),"",VLOOKUP(G28,'Security LBVR LookUP Table'!$Z$2:$AC$65,4,FALSE)*Security!N28) ->  | T28: =IF(D28="","",VLOOKUP(D28,'Security LBVR LookUP Table'!$F$2:$G$14,2,FALSE)) ->  | U28: =IF(D28="","",VLOOKUP(D28,'Security LBVR LookUP Table'!$F$2:$G$14,2,FALSE)) ->  | V28: 0 | W28: 0 | X28: 0
C29: 12 | F29: =IF(ISERROR(VLOOKUP(""&E29,'High Risk Postcodes'!$B$5:$B$199,1,FALSE)),"","Pause, Talk to BDM") ->  | O29: =IFERROR(VLOOKUP(G29,'Security LBVR LookUP Table'!Z:AB,3,FALSE),"-") -> - | P29: =IF(G29="Other","Insert BV in next column",IF(AND(D29<>"",G29<>""),N29*(VLOOKUP(G29,'Security LBVR LookUP Table'!Z:AB,3,FALSE)),"-")) -> - | S29: =IF(OR(N29="",G29=""),"",VLOOKUP(G29,'Security LBVR LookUP Table'!$Z$2:$AC$65,4,FALSE)*Security!N29) ->  | T29: =IF(D29="","",VLOOKUP(D29,'Security LBVR LookUP Table'!$F$2:$G$14,2,FALSE)) ->  | U29: =IF(D29="","",VLOOKUP(D29,'Security LBVR LookUP Table'!$F$2:$G$14,2,FALSE)) ->  | V29: 0 | W29: 0 | X29: 0
C30: 13 | F30: =IF(ISERROR(VLOOKUP(""&E30,'High Risk Postcodes'!$B$5:$B$199,1,FALSE)),"","Pause, Talk to BDM") ->  | O30: =IFERROR(VLOOKUP(G30,'Security LBVR LookUP Table'!Z:AB,3,FALSE),"-") -> - | P30: =IF(G30="Other","Insert BV in next column",IF(AND(D30<>"",G30<>""),N30*(VLOOKUP(G30,'Security LBVR LookUP Table'!Z:AB,3,FALSE)),"-")) -> - | S30: =IF(OR(N30="",G30=""),"",VLOOKUP(G30,'Security LBVR LookUP Table'!$Z$2:$AC$65,4,FALSE)*Security!N30) ->  | T30: =IF(D30="","",VLOOKUP(D30,'Security LBVR LookUP Table'!$F$2:$G$14,2,FALSE)) ->  | U30: =IF(D30="","",VLOOKUP(D30,'Security LBVR LookUP Table'!$F$2:$G$14,2,FALSE)) ->  | V30: 0 | W30: 0 | X30: 0
C31: 14 | F31: =IF(ISERROR(VLOOKUP(""&E31,'High Risk Postcodes'!$B$5:$B$199,1,FALSE)),"","Pause, Talk to BDM") ->  | O31: =IFERROR(VLOOKUP(G31,'Security LBVR LookUP Table'!Z:AB,3,FALSE),"-") -> - | P31: =IF(G31="Other","Insert BV in next column",IF(AND(D31<>"",G31<>""),N31*(VLOOKUP(G31,'Security LBVR LookUP Table'!Z:AB,3,FALSE)),"-")) -> - | S31: =IF(OR(N31="",G31=""),"",VLOOKUP(G31,'Security LBVR LookUP Table'!$Z$2:$AC$65,4,FALSE)*Security!N31) ->  | T31: =IF(D31="","",VLOOKUP(D31,'Security LBVR LookUP Table'!$F$2:$G$14,2,FALSE)) ->  | U31: =IF(D31="","",VLOOKUP(D31,'Security LBVR LookUP Table'!$F$2:$G$14,2,FALSE)) ->  | V31: 0 | W31: 0 | X31: 0
C32: 15 | F32: =IF(ISERROR(VLOOKUP(""&E32,'High Risk Postcodes'!$B$5:$B$199,1,FALSE)),"","Pause, Talk to BDM") ->  | O32: =IFERROR(VLOOKUP(G32,'Security LBVR LookUP Table'!Z:AB,3,FALSE),"-") -> - | P32: =IF(G32="Other","Insert BV in next column",IF(AND(D32<>"",G32<>""),N32*(VLOOKUP(G32,'Security LBVR LookUP Table'!Z:AB,3,FALSE)),"-")) -> - | S32: =IF(OR(N32="",G32=""),"",VLOOKUP(G32,'Security LBVR LookUP Table'!$Z$2:$AC$65,4,FALSE)*Security!N32) ->  | T32: =IF(D32="","",VLOOKUP(D32,'Security LBVR LookUP Table'!$F$2:$G$14,2,FALSE)) ->  | U32: =IF(D32="","",VLOOKUP(D32,'Security LBVR LookUP Table'!$F$2:$G$14,2,FALSE)) ->  | V32: 0 | W32: 0 | X32: 0
C33: 16 | F33: =IF(ISERROR(VLOOKUP(""&E33,'High Risk Postcodes'!$B$5:$B$199,1,FALSE)),"","Pause, Talk to BDM") ->  | O33: =IFERROR(VLOOKUP(G33,'Security LBVR LookUP Table'!Z:AB,3,FALSE),"-") -> - | P33: =IF(G33="Other","Insert BV in next column",IF(AND(D33<>"",G33<>""),N33*(VLOOKUP(G33,'Security LBVR LookUP Table'!Z:AB,3,FALSE)),"-")) -> - | S33: =IF(OR(N33="",G33=""),"",VLOOKUP(G33,'Security LBVR LookUP Table'!$Z$2:$AC$65,4,FALSE)*Security!N33) ->  | T33: =IF(D33="","",VLOOKUP(D33,'Security LBVR LookUP Table'!$F$2:$G$14,2,FALSE)) ->  | U33: =IF(D33="","",VLOOKUP(D33,'Security LBVR LookUP Table'!$F$2:$G$14,2,FALSE)) ->  | V33: 0 | W33: 0 | X33: 0
C34: 17 | F34: =IF(ISERROR(VLOOKUP(""&E34,'High Risk Postcodes'!$B$5:$B$199,1,FALSE)),"","Pause, Talk to BDM") ->  | O34: =IFERROR(VLOOKUP(G34,'Security LBVR LookUP Table'!Z:AB,3,FALSE),"-") -> - | P34: =IF(G34="Other","Insert BV in next column",IF(AND(D34<>"",G34<>""),N34*(VLOOKUP(G34,'Security LBVR LookUP Table'!Z:AB,3,FALSE)),"-")) -> - | S34: =IF(OR(N34="",G34=""),"",VLOOKUP(G34,'Security LBVR LookUP Table'!$Z$2:$AC$65,4,FALSE)*Security!N34) ->  | T34: =IF(D34="","",VLOOKUP(D34,'Security LBVR LookUP Table'!$F$2:$G$14,2,FALSE)) ->  | U34: =IF(D34="","",VLOOKUP(D34,'Security LBVR LookUP Table'!$F$2:$G$14,2,FALSE)) ->  | V34: 0 | W34: 0 | X34: 0
C35: 18 | F35: =IF(ISERROR(VLOOKUP(""&E35,'High Risk Postcodes'!$B$5:$B$199,1,FALSE)),"","Pause, Talk to BDM") ->  | O35: =IFERROR(VLOOKUP(G35,'Security LBVR LookUP Table'!Z:AB,3,FALSE),"-") -> - | P35: =IF(G35="Other","Insert BV in next column",IF(AND(D35<>"",G35<>""),N35*(VLOOKUP(G35,'Security LBVR LookUP Table'!Z:AB,3,FALSE)),"-")) -> - | S35: =IF(OR(N35="",G35=""),"",VLOOKUP(G35,'Security LBVR LookUP Table'!$Z$2:$AC$65,4,FALSE)*Security!N35) ->  | T35: =IF(D35="","",VLOOKUP(D35,'Security LBVR LookUP Table'!$F$2:$G$14,2,FALSE)) ->  | U35: =IF(D35="","",VLOOKUP(D35,'Security LBVR LookUP Table'!$F$2:$G$14,2,FALSE)) ->  | V35: 0 | W35: 0 | X35: 0
C36: 19 | F36: =IF(ISERROR(VLOOKUP(""&E36,'High Risk Postcodes'!$B$5:$B$199,1,FALSE)),"","Pause, Talk to BDM") ->  | O36: =IFERROR(VLOOKUP(G36,'Security LBVR LookUP Table'!Z:AB,3,FALSE),"-") -> - | P36: =IF(G36="Other","Insert BV in next column",IF(AND(D36<>"",G36<>""),N36*(VLOOKUP(G36,'Security LBVR LookUP Table'!Z:AB,3,FALSE)),"-")) -> - | S36: =IF(OR(N36="",G36=""),"",VLOOKUP(G36,'Security LBVR LookUP Table'!$Z$2:$AC$65,4,FALSE)*Security!N36) ->  | T36: =IF(D36="","",VLOOKUP(D36,'Security LBVR LookUP Table'!$F$2:$G$14,2,FALSE)) ->  | U36: =IF(D36="","",VLOOKUP(D36,'Security LBVR LookUP Table'!$F$2:$G$14,2,FALSE)) ->  | V36: 0 | W36: 0 | X36: 0
C37: 20 | F37: =IF(ISERROR(VLOOKUP(""&E37,'High Risk Postcodes'!$B$5:$B$199,1,FALSE)),"","Pause, Talk to BDM") ->  | O37: =IFERROR(VLOOKUP(G37,'Security LBVR LookUP Table'!Z:AB,3,FALSE),"-") -> - | P37: =IF(G37="Other","Insert BV in next column",IF(AND(D37<>"",G37<>""),N37*(VLOOKUP(G37,'Security LBVR LookUP Table'!Z:AB,3,FALSE)),"-")) -> - | S37: =IF(OR(N37="",G37=""),"",VLOOKUP(G37,'Security LBVR LookUP Table'!$Z$2:$AC$65,4,FALSE)*Security!N37) ->  | T37: =IF(D37="","",VLOOKUP(D37,'Security LBVR LookUP Table'!$F$2:$G$14,2,FALSE)) ->  | U37: =IF(D37="","",VLOOKUP(D37,'Security LBVR LookUP Table'!$F$2:$G$14,2,FALSE)) ->  | V37: 0 | W37: 0 | X37: 0
M39: Total Bank Value of Securities | P39: =(SUMIFS(P18:P37,D18:D37,"<>Other"))+(SUMIF(D18:D37,Other,Q18:R37)) -> 0 | S39: LBVR | T39: =IFERROR(S11/P39,"") -> 
M40: Total Market Value of Securities | P40: =IF(V10="Yes",SUM(N18:N37),SUM(N18:N37)) -> 0 | T40: =IFERROR((S11-S16)/P40,"") -> 
P41: =SUMIFS('Financial Inputs'!J1390:J1404,'Financial Inputs'!I1390:I1404,"=Yes") -> 0
S48: .

Sheet Pre-qualifying Tool
D1: ='Financial Inputs'!D6 -> Version: | E1: ='Financial Inputs'!E6 -> 4.6 | G1: ='Financial Inputs'!G6 -> Date Modified: | I1: =Security!K6 -> 2025-04-07
B2: NAB SMALL BUSINESS LENDING: PRE-QUALIFYING TOOL
D8: PRE-QUALIFYING TOOL
D10: Aggregation Name | E10: =IF('Financial Inputs'!E10<>0,'Financial Inputs'!E10:G10,"-") -> - | I10: (NAB USE ONLY)
D12: Aggregation Number* | E12: =IF('Financial Inputs'!E12<>0,'Financial Inputs'!E12:G12,"-") -> - | I12: (NAB USE ONLY)
D14: Submission Number * | E14: =IF('Financial Inputs'!E14<>0,'Financial Inputs'!E14:G14,"-") -> - | I14: (NAB USE ONLY)
D17: Customer Background
D18: -
D20: -
D22: -
D24: -
D26: -
D28: -
G30: =IFERROR(IF(G31<>"",VLOOKUP(G31,'Dropdown Menu'!AG3:AH28,2,FALSE),""),"") -> 
D31: Select Industry | G31: ='Information Requirements'!B4 -> Please Select | I31: =IF('Information Requirements'!B7="","",'Information Requirements'!B7) -> 
G33: Select applicable dropdown
D34: Customer Status * | G34: Please select
D36: Borrower | I36: Auto Assigned | J36: Banker (NAB USE ONLY) | L36: Credit Manager (NAB USE ONLY) | M36: FINAL | S36: Alerts
G37: Select applicable dropdown | J37: Initial Adjustment | K37: Secondary Adjustment | L37: Overridden | S37: Rating adjusted - commentary required
G38: Please select | I38: =IF(I39="Very High", $S$42,"") ->  | S38: Rating overridden - commentary required
D39: Industry Experience* | I39: =IF(G38<>0,VLOOKUP(G38,'Dropdown Menu'!B3:C8,2,FALSE),"-") -> - | M39: =UPPER(IF(L39<>"",L39,IF(AND(L39="",K39<>""),K39,IF(AND(L39="",K39="",J39<>""),J39,I39)))) -> - | S39: Select 'Loan Purpose' on Financial Inputs tab
J40: =IF(OR(AND(J39<>0,J39<>I39),AND(K39<>0,K39<>J39)),$S$37,"") ->  | L40: =IF(AND(L39<>"",J39<>"",K39<>"",L39<>K39),$S$38,IF(AND(L39<>"",J39<>"",K39="",L39<>J39),$S$38,IF(AND(L39<>"",J39="",K39="",L39<>I39),$S$38,""))) ->  | S40: SoP calculation based on business assets - further commentary required
G42: Please select | I42: =IF(I43="Very High", $S$42,"") -> 
D43: Length of time in Business * | I43: =IF(G42<>0,VLOOKUP(G42,'Dropdown Menu'!AD3:AE8,2,FALSE),"") -> - | M43: =UPPER(IF(L43<>"",L43,IF(AND(L43="",K43<>""),K43,IF(AND(L43="",K43="",J43<>""),J43,I43)))) -> -
J44: =IF(OR(AND(J43<>0,J43<>I43),AND(K43<>0,K43<>J43)),$S$37,"") ->  | L44: =IF(AND(L43<>"",J43<>"",K43<>"",L43<>K43),$S$38,IF(AND(L43<>"",J43<>"",K43="",L43<>J43),$S$38,IF(AND(L43<>"",J43="",K43="",L43<>I43),$S$38,""))) -> 
G46: Please select | I46: =IF(I47="Very High", $S$42,"") -> 
D47: Bank Account Conduct * | I47: =IF(Lookups!AA2="Yes",'Dropdown Menu'!Z6,IF(G46<>0,VLOOKUP(G46,'Dropdown Menu'!D3:E8,2,FALSE),"")) -> - | M47: =UPPER(IF(L47<>"",L47,IF(AND(L47="",K47<>""),K47,IF(AND(L47="",K47="",J47<>""),J47,I47)))) -> -
J48: =IF(OR(AND(J47<>0,J47<>I47),AND(K47<>0,K47<>J47)),$S$37,"") ->  | L48: =IF(AND(L47<>"",J47<>"",K47<>"",L47<>K47),$S$38,IF(AND(L47<>"",J47<>"",K47="",L47<>J47),$S$38,IF(AND(L47<>"",J47="",K47="",L47<>I47),$S$38,""))) -> 
G50: Please select | I50: =IF(I51="Very High", $S$42,"") -> 
D51: Statutory Obligations * | I51: =IF(G50<>0,VLOOKUP(G50,'Dropdown Menu'!F3:G8,2,FALSE),"") -> - | M51: =UPPER(IF(L51<>"",L51,IF(AND(L51="",K51<>""),K51,IF(AND(L51="",K51="",J51<>""),J51,I51)))) -> -
J52: =IF(OR(AND(J51<>0,J51<>I51),AND(K51<>0,K51<>J51)),$S$37,"") ->  | L52: =IF(AND(L51<>"",J51<>"",K51<>"",L51<>K51),$S$38,IF(AND(L51<>"",J51<>"",K51="",L51<>J51),$S$38,IF(AND(L51<>"",J51="",K51="",L51<>I51),$S$38,""))) -> 
G54: Please select | I54: =IF(I55="Very High", $S$42,"") -> 
D55: Credit History * | I55: =IF(G54<>0,VLOOKUP(G54,'Dropdown Menu'!N3:O8,2,FALSE),"") -> - | M55: =UPPER(IF(L55<>"",L55,IF(AND(L55="",K55<>""),K55,IF(AND(L55="",K55="",J55<>""),J55,I55)))) -> -
J56: =IF(OR(AND(J55<>0,J55<>I55),AND(K55<>0,K55<>J55)),$S$37,"") ->  | L56: =IF(AND(L55<>"",J55<>"",K55<>"",L55<>K55),$S$38,IF(AND(L55<>"",J55<>"",K55="",L55<>J55),$S$38,IF(AND(L55<>"",J55="",K55="",L55<>I55),$S$38,""))) -> 
D58: Borrower Risk Grade | I58: =UPPER(IF(AND(I39<>"-",I43<>"-",I47<>"-",I51<>"-",I55<>"-",I39<>"",I43<>"",I47<>"",I51<>"",I55<>""),'MSBCA Calculator 2'!D85,"-")) -> - | J58: =IF(OR(I58="High",I58="Very High"),"Please provide commentary",IF(OR(I58="",I58="-"),"","Meets pre-qualifying criteria")) ->  | M58: =UPPER(IF(I58<>"-",'MSBCA Calculator 2'!J85,"-")) -> -
D62: Commentary
D63: -
D65: -
D67: -
D69: -
D71: -
D73: -
D75: -
D79: Purpose | I79: =I36 -> Auto Assigned | J79: Banker (NAB USE ONLY) | L79: Credit Manager (NAB USE ONLY) | M79: =M36 -> FINAL
G80: =IF(OR(G81="",G81="Please select loan purpose"),$S$39,"") ->  | I80: =I37 -> 0 | J80: =J37 -> Initial Adjustment | K80: =K37 -> Secondary Adjustment | L80: =L37 -> Overridden
G81: =IFERROR('MSBCA Calculator 2'!D96,"-") -> - | I81: =IF(I82="Very High", $S$41,"") -> 
D82: Purpose | I82: =IFERROR('MSBCA Calculator 2'!E96,"-") -> - | M82: =UPPER(IF(L82<>"",L82,IF(AND(L82="",K82<>""),K82,IF(AND(L82="",K82="",J82<>""),J82,I82)))) -> -
I83: =IF(OR(I82="High",I82="Very High"),"Please provide commentary",IF(OR(I82="",I82="-"),"","Meets pre-qualifying criteria")) ->  | J83: =IF(OR(AND(J82<>0,J82<>I82),AND(K82<>0,K82<>J82)),$S$37,"") ->  | L83: =IF(AND(L82<>"",J82<>"",K82<>"",L82<>K82),$S$38,IF(AND(L82<>"",J82<>"",K82="",L82<>J82),$S$38,IF(AND(L82<>"",J82="",K82="",L82<>I82),$S$38,""))) -> 
D85: Commentary
D86: -
D88: -
D90: -
D92: -
D94: -
D96: -
D98: -
D102: Servicability | I102: =I36 -> Auto Assigned | J102: Banker (NAB USE ONLY) | L102: Credit Manager (NAB USE ONLY) | M102: =M36 -> FINAL
I103: =I37 -> 0 | J103: =J37 -> Initial Adjustment | K103: =K37 -> Secondary Adjustment | L103: =L37 -> Overridden
G104: =IFERROR('Financial Inputs'!G1459:H1459/'Financial Inputs'!G1460:H1460,"-") -> - | I104: =IF(I105="Very High", $S$42,"") -> 
D105: Debt Service Cover (DSC) | I105: =IFERROR(IF(AND(G104>-10000,Q106<>0),IF(G104="-","-",IF(G104<=Lookups!AA22,Lookups!AB22,VLOOKUP(G104,Lookups!AA22:AB26,2,TRUE))),IF(E106="","-",IF(E106<=Lookups!AA22,Lookups!AB22,VLOOKUP(E106,Lookups!AA22:AB26,2,TRUE)))),"-") -> - | M105: =UPPER(IF(L105<>"",L105,IF(AND(L105="",K105<>""),K105,IF(AND(L105="",K105="",J105<>""),J105,I105)))) -> -
D106: Manual DSC | E106: - | F106: 3 | I106: =IF(OR(I105="High",I105="Very High"),"Please provide commentary",IF(OR(I105="",I105="-"),"","Meets pre-qualifying criteria")) ->  | J106: =IF(OR(AND(J105<>0,J105<>I105),AND(K105<>0,K105<>J105)),$S$37,"") ->  | L106: =IF(AND(L105<>"",J105<>"",K105<>"",L105<>K105),$S$38,IF(AND(L105<>"",J105<>"",K105="",L105<>J105),$S$38,IF(AND(L105<>"",J105="",K105="",L105<>I105),$S$38,""))) ->  | Q106: =IF('Financial Inputs'!E16:G16="MSBCA debt servicing",1,0) -> 0 | R106: 0 | S106: 0
D108: Commentary
D109: -
D111: -
D113: -
D115: -
D117: -
D119: -
D121: -
D125: Statement of Position | I125: =I36 -> Auto Assigned | J125: Banker (NAB USE ONLY) | L125: Credit Manager (NAB USE ONLY) | M125: =M36 -> FINAL
I126: =I37 -> 0 | J126: =J37 -> Initial Adjustment | K126: =K37 -> Secondary Adjustment | L126: =L37 -> Overridden | R126: 1st | S126: =IFERROR('Financial Inputs'!K1380/'Financial Inputs'!I1406,"-") -> -
G127: =IFERROR(IF(AND('Financial Inputs'!I1406=0,'Financial Inputs'!K1381<>0),1.5,'Financial Inputs'!K1381/'Financial Inputs'!I1406),"-") -> - | I127: =IF(I128="Very High", $S$42,"") ->  | R127: 2nd | S127: =IFERROR('Financial Inputs'!K1381/'Financial Inputs'!I1406,"-") -> -
D128: Net Worth Ratio (Risk Adjusted) | I128: =IF(G127="-","-",VLOOKUP(G127,Lookups!$Z$21:$AB$26,3,TRUE)) -> - | M128: =UPPER(IF(L128<>"",L128,IF(AND(L128="",K128<>""),K128,IF(AND(L128="",K128="",J128<>""),J128,I128)))) -> - | S128: SOP calc based on only total asset value
I129: =IF(OR(I128="High",I128="Very High"),"Please provide commentary",IF(OR(I128="",I128="-"),"","Meets pre-qualifying criteria")) ->  | J129: =IF(OR(AND(J128<>0,J128<>I128),AND(K128<>0,K128<>J128)),$S$37,"") ->  | L129: =IF(AND(L128<>"",J128<>"",K128<>"",L128<>K128),$S$38,IF(AND(L128<>"",J128<>"",K128="",L128<>J128),$S$38,IF(AND(L128<>"",J128="",K128="",L128<>I128),$S$38,""))) -> 
D131: Commentary
D132: -
D134: -
D136: -
D138: -
D140: -
D142: -
D144: -
D148: Security | I148: =I36 -> Auto Assigned | J148: Banker (NAB USE ONLY) | L148: Credit Manager (NAB USE ONLY) | M148: =M36 -> FINAL
I149: =I37 -> 0 | J149: =J37 -> Initial Adjustment | K149: =K37 -> Secondary Adjustment | L149: =L37 -> Overridden
G150: =IFERROR(VLOOKUP(R152,'Security LBVR LookUP Table'!A3:B12,2,TRUE),"-") -> -
D151: Security | I151: =IF(OR('Information Requirements'!B3="Purchase Asset/Refinance – Commercial Investment Property, Commercial/Residential Development Property", 'Information Requirements'!B3="SMSF Commercial Property Purchase"), IF(category="E","High",IF(G150<>0,VLOOKUP(G150,'Dropdown Menu'!AB3:AC13,2,FALSE),"-")), IF(G150<>0,VLOOKUP(G150,'Dropdown Menu'!AB3:AC13,2,FALSE),"-")) -> - | M151: =UPPER(IF(I151="Very High",I151,IF(L151<>"",L151,IF(AND(L151="",K151<>""),K151,IF(AND(L151="",K151="",J151<>""),J151,I151))))) -> -
I152: =IF(OR(I151="High",I151="Very High"),"Please provide commentary",IF(OR(I151="",I151="-"),"","Meets pre-qualifying criteria")) ->  | J152: =IF(OR(AND(J151<>0,J151<>I151),AND(K151<>0,K151<>J151)),$S$37,"") ->  | L152: =IF(AND(L151<>"",J151<>"",K151<>"",L151<>K151),$S$38,IF(AND(L151<>"",J151<>"",K151="",L151<>J151),$S$38,IF(AND(L151<>"",J151="",K151="",L151<>I151),$S$38,""))) ->  | R152: =Security!T39 -> 
D154: Commentary
D155: -
D157: -
D159: -
D161: -
D163: -
D165: -
D167: -
I171: =I36 -> Auto Assigned | J171: Banker (NAB USE ONLY) | L171: Credit Manager (NAB USE ONLY) | M171: =M36 -> FINAL
I172: =I21 -> 0 | J172: =J37 -> Initial Adjustment | K172: =K37 -> Secondary Adjustment | L172: =L37 -> Overridden
G174: Borrower | I174: =UPPER(I58) -> - | J174: =IF(OR(J39<>"",J43<>"",J47<>"",J51<>"",J55<>""),"Adjustment Made","") ->  | K174: =IF(OR(K39<>"",K43<>"",K47<>"",K51<>"",K55<>""),"Adjustment Made","") ->  | L174: =IF(OR(L39<>"",L43<>"",L47<>"",L51<>"",L55<>""),"Adjustment Made","") ->  | M174: =M58 -> -
G176: Purpose | I176: =UPPER(I82) -> - | J176: =IF(J82<>"",J82,"") ->  | K176: =IF(K82<>"",K82,"") ->  | M176: =M82 -> -
G178: Serviceability | I178: =UPPER(I105) -> - | J178: =IF(J105<>"",J105,"") ->  | K178: =IF(K105<>"",K105,"") ->  | M178: =M105 -> -
G180: Statement of Position | I180: =UPPER(I128) -> - | J180: =IF(J128<>"",J128,"") ->  | K180: =IF(K128<>"",K128,"") ->  | M180: =M128 -> -
G182: Security | I182: =UPPER(I151) -> - | J182: =IF(J151<>"",J151,"") ->  | K182: =IF(K151<>"",K151,"") ->  | M182: =M151 -> -
D185: Overall Risk Grade
I186: =UPPER(IF(AND(I82<>"-",I105<>"-",I128<>"-",I151<>"-",I82<>"",I105<>"",I128<>"",I151<>""),'MSBCA Calculator 2'!D72,"-")) -> - | J186: =IF(OR(I186="HIGH",I186="VERY HIGH"),"PLEASE DISCUSS FURTHER WITH BDM",IF(OR(I186="",I186="-"),"","Meets pre-qualifying criteria")) ->  | M186: =IF(AND(I186="-",OR(M176="-",M178="-",M180="-",M182="-")),"-",UPPER('MSBCA Calculator 2'!H72)) -> -
D191: NAB USE ONLY
D193: =IF(Lookups!AA2="Yes","Is the eCRS rating 19 or worse","Is the eCRS rating 21 or worse") -> Is the eCRS rating 21 or worse | G193: Please select | H193: < Select applicable dropdown | K193: =IF(M186<>"-","Save Worksheet as: 'MSBCA - Aggregation Number - Submission Number'. Attach to eBL as a credit memorandum.","") -> 
D194: Is there an adverse credit | G194: =IF(OR(I55="High", I55="Very High",M55="High",M55="Very High"),"Yes","No") -> No
D195: Is DSC less than 1x ? | G195: =IF(OR(M105="High", M105="Very High"), "Yes","No") -> No | I195: =IF(AND(G197="Yes",Lookups!AA2="Yes"),"Yes","No") -> No
D196: Are ATO Arrears requirements outside Banker DCA per LEN020? | G196: Please Select
D197: =IF(Lookups!AA2="Yes","BAS less than Gross Sales by 20%?","") ->  | G197: Please select | I197: =IF(OR(G193="Yes",G194="Yes",G195="Yes",I195="Yes",G196="Yes"),"Care: escalation to Level 3 DCA is required","") -> 
D202: Additional Commentary
D203: -
D205: - | S205: =S211=IF(OR(I174="HIGH",I174="VERY HIGH"),"The Borrower risk grade is: "&I174&". ","") -> TRUE
S206: =IF(OR(I176="HIGH",I176="VERY HIGH"),"The Purpose risk grade is: "&I176&". ","") -> 
D207: - | S207: =IF(OR(I178="HIGH",I178="VERY HIGH"),"The Serviceability risk grade is: "&I178&". ","") -> 
S208: =IF(OR(I180="HIGH",I180="VERY HIGH"),"The Statement of Position risk grade is: "&I180&". ","") -> 
D209: - | S209: =IF(OR(I182="HIGH",I182="VERY HIGH"),"The Security risk grade is: "&I182&". ","") -> 
D211: -
E214: When you complete a Pre-Qualifying Worksheet, the Worksheet will inform you whether or not an application, based on the information set out in the worksheet, would meet NAB qualifying criteria for the facility to which the information relates. It is not an approval for that facility. NAB will consider approving a facility only after considering the information provided in a formal application for that facility.
D224: ©2017 National Australia Bank Limited ABN 12 004 044 937 AFSL and Australian Credit Licence

Sheet Lookups (hidden)
C1: Facilities | J1: Volume Facilities | M1: Financials | P1: Property | T1: Home Loan Interest rate Loading | Y1: Facilities (switcheable with Fast Track) | AE1: Taxable income | AJ1: Volume Entities | AM1: Start | AN1: End | AO1: Tax on this income | AT1: Medicare Levy | AV1: Rate | BD1: Business Entity Assumed Tax Rate | BF1: 0.3 | BJ1: 0.3
C2: Name | D2: Years | E2: Rate | F2: Interest Only | G2: Loading | H2: Business Lending Facility | J2: Volume | M2: Type | P2: Rental Type | T2: Hl No. | U2: Cust. Entered Rate | V2: With 3.0% Loading | Y2: Is the submission Fast Track | AA2: =IF('Information Requirements'!B4='Dropdown Menu'!AK4,"Yes","No") -> No | AE2: Start | AF2: End | AG2: Tax on this income | AJ2: Volume | AM2: 0 | AN2: 18200 | AO2: =IF($AF$10="Exclude",AG3,AG3+$AH$10) -> 0 | AP2: 0 | AT2: 0 | AU2: 21335 | AV2: 0
A3: 30 | C3: Home Loan | D3: 30 | E3: 0.0575 | F3: No | G3: 0 | H3: N | J3: 0 | M3: Tax Returns | P3: New | T3: HL 1 | U3: ='Financial Inputs'!P1390 -> 0 | V3: =(U3+0.03) -> 0.03 | Y3: What is the min Security Type? | AA3: =IF(ISERROR(VLOOKUP(Security!T16,'Security LBVR LookUP Table'!G18:H20,2,FALSE)),"",VLOOKUP(Security!T16,'Security LBVR LookUP Table'!G18:H20,2,FALSE)) -> Commercial | AE3: 0 | AF3: 1 | AG3: 0 | AH3: 0 | AJ3: 0 | AM3: =AN2+1 -> 18201 | AN3: 45000 | AO3: =IF($AF$10="Exclude",AG5,AG5+$AH$10) -> 0.16 | AP3: =(AN3-AM3)*AO3 -> 4287.84 | AT3: =AU2+0.01 -> 21335.01 | AU3: 26668 | AV3: 0.1 | AW3: =" on the difference between actual income and "&TEXT(AT3,"$0,000.00") -> on the difference between actual income and $21,335.01 | BH3: Property Rental Expense | BI3: New | BJ3: 0.2
A4: 7 | C4: Personal Loan | D4: 7 | E4: 0.1565 | F4: No | G4: 0 | H4: N | J4: 1 | M4: Management | P4: Existing | T4: HL 2 | U4: ='Financial Inputs'!P1391 -> 0 | V4: =(U4+0.03) -> 0.03 | AE4: 0 | AF4: 18200 | AG4: 0 | AH4: 0 | AJ4: 1 | AM4: 45001 | AN4: 120000 | AO4: =IF($AF$10="Exclude",AG6,AG6+$AH$10) -> 0.3 | AP4: =((AN4-AM4)*AO4)+AP3 -> 26787.54 | AT4: =AU3+0.01 -> 26668.01 | AV4: 0.02 | AW4: on everything | BH4: Property Rental Expense | BI4: Existing | BJ4: 0.2
A5: 30 | C5: Bus - (Cat. A-D) - Term, OD - 15 years | D5: 15 | E5: 0.0785 | F5: No | G5: 0 | H5: Y | J5: 2 | L5: 1 | M5: Account. Prep | T5: HL 3 | U5: ='Financial Inputs'!P1392 -> 0 | V5: 0.03 | AE5: =AF4+1 -> 18201 | AF5: 45000 | AG5: 0.16 | AH5: =(AF5-AE5)*AG5 -> 4287.84 | AJ5: 2 | AM5: 120001 | AN5: 180000 | AO5: =IF($AF$10="Exclude",AG7,AG7+$AH$10) -> 0.37 | AP5: =((AN5-AM5)*AO5)+AP4 -> 48987.17
A6: 15 | C6: Bus - (Cat. E-J) - Term, OD - 10 years | D6: 10 | E6: 0.0785 | F6: No | G6: 0 | H6: Y | J6: 3 | L6: 1 | M6: Projected | T6: HL 4 | U6: ='Financial Inputs'!P1393 -> 0 | V6: 0.03 | AE6: 45001 | AF6: 135000 | AG6: 0.3 | AH6: =((AF6-AE6)*AG6)+AH5 -> 31287.54 | AJ6: 3 | AM6: =AN5+1 -> 180001 | AO6: =IF(AF11="Exclude",IF($AF$10="Exclude",AG8,AG8+$AH$10),IF($AF$10="Exclude",AG8,AG8+$AH$10)+AH11) -> 0.45
A7: 10 | C7: Bus Options Loan (P&I ≤ 30 years) | E7: 0.0785 | F7: No | H7: Y | J7: 4 | L7: 2 | M7: Annualised | T7: HL 5 | U7: ='Financial Inputs'!P1394 -> 0 | V7: 0.03 | Y7: Name | Z7: Default Years | AA7: Commercial | AB7: Residential | AC7: Selection | AE7: =AF6+1 -> 135001 | AF7: 190000 | AG7: 0.37 | AH7: =((AF7-AE7)*AG7)+AH6 -> 51637.17 | AJ7: 4
C8: Fast Track BOL (Interest Only) - Residential | D8: 30 | E8: 0.0785 | F8: No | H8: Y | J8: 5 | T8: HL 6 | U8: ='Financial Inputs'!P1395 -> 0 | V8: 0.03 | Y8: Home Loan | Z8: 30 | AA8: =Z8 -> 30 | AB8: =Z8 -> 30 | AC8: =IF(AND($AA$2="Yes",$AA$3=$AA$7),AA8,Z8) -> 30 | AE8: =AF7+1 -> 190001 | AG8: 0.45
A9: 5 | C9: Fast Track BOL (Interest Only) - Commercial | D9: 20 | E9: 0.0785 | F9: No | H9: Y | J9: 6 | T9: HL 7 | U9: ='Financial Inputs'!P1396 -> 0 | V9: 0.03 | Y9: Personal Loan | Z9: 7 | AA9: =Z9 -> 7 | AB9: =Z9 -> 7 | AC9: 7
A10: 15 | C10: Equipment Finance (New/Existing) | D10: 5 | E10: 0 | F10: No | H10: N | J10: 7 | M10: Structure | P10: Funding Calculator | T10: HL 8 | U10: ='Financial Inputs'!P1397 -> 0 | V10: 0.03 | Y10: Bus Lending - Term, OD - Fully Secured Residential | Z10: 30 | AA10: 30 | AB10: 30 | AC10: 30 | AE10: Medicare Levy Low | AF10: Exclude | AG10: 22801 | AH10: 0.1 | AJ10: BAS Variance | AK10: -0.2
A11: 15 | C11: Equipment Finance (Undrawn Revolving Lease Limit) | D11: 5 | E11: 0.0975 | F11: No | G11: 0 | H11: N | J11: 8 | M11: Company | N11: 1 | P11: Property Purchase | T11: HL 9 | U11: ='Financial Inputs'!P1398 -> 0 | V11: 0.03 | Y11: Bus Lending - Term, OD, CC - Fully Secured Commerical / Other | Z11: 15 | AA11: 20 | AB11: 15 | AC11: =IF(AND($AA$2="Yes",$AA$3=$AA$7),AA11,Z11) -> 15 | AE11: Medicare Levy High | AF11: Exclude | AG11: 28501 | AH11: 0.02
A12: 1 | C12: International | D12: 15 | E12: 0.0065 | F12: Yes | G12: 0 | H12: Y | J12: 9 | M12: Small Business | N12: =0.25/BF1 -> 0.8333333333 | P12: Business Purchase | T12: HL 10 | U12: ='Financial Inputs'!P1399 -> 0 | V12: 0.03 | Y12: Bus Lending - Term, OD, CC - Partially Secured / Unsecured | Z12: 10 | AA12: 15 | AB12: 10 | AC12: =IF(AND($AA$2="Yes",$AA$3=$AA$7),AA12,Z12) -> 10
C13: Margin Lending | D13: 15 | E13: 0.0065 | F13: Yes | G13: 0 | H13: Y | J13: 10 | M13: Trust | N13: 0 | P13: Refinance | T13: HL 11 | U13: ='Financial Inputs'!P1400 -> 0 | V13: 0.03 | Y13: Leasing (Existing) | AC13: 0
A14: 0 | C14: Business/Personal Credit Card/Personal O'draft | D14: 1 | E14: 0.038 | F14: Yes | G14: 0 | H14: N | J14: 11 | M14: Partnership | N14: 0 | T14: HL 12 | U14: ='Financial Inputs'!P1401 -> 0 | V14: 0.03 | Y14: Leasing (New/Undrawn) | Z14: 5 | AA14: =Z14 -> 5 | AB14: 5 | AC14: 5
C15: Other Debt | D15: 0 | E15: 0 | F15: No | H15: Y | J15: 12 | T15: HL 13 | U15: ='Financial Inputs'!P1402 -> 0 | V15: 0.03 | Y15: International | Z15: 15 | AA15: =Z15 -> 15 | AB15: 15 | AC15: 15
C16: Bank Guarantee (Cat. A-D) | D16: 30 | E16: 0.0975 | F16: No | H16: N | J16: 13 | T16: HL 14 | U16: ='Financial Inputs'!P1403 -> 0 | V16: 0.03 | Y16: Margin Lending | Z16: 15 | AA16: 15 | AB16: 15 | AC16: 15
C17: Bank Guarantee (Cat. E-J) | D17: 10 | E17: 0.0975 | F17: No | H17: N | J17: 14 | T17: HL 15 | U17: ='Financial Inputs'!P1404 -> 0 | V17: 0.03 | Y17: Personal Credit Card | Z17: 1 | AA17: 1 | AB17: 1 | AC17: 1
C18: QuickBiz Term Loan | D18: 15 | E18: 0 | F18: No | H18: N | J18: 15 | Y18: Other Debt | Z18: 0 | AA18: 0 | AB18: 0 | AC18: 0
C19: NAB Flex Flow Loan | D19: 1 | E19: 0 | F19: No | H19: N | T19: Need to control the selection of interest type, based on the following parameters
C20: BOL IO/Combination Loan (Cat. A-D Residential) | D20: 30 | E20: 0.0785 | F20: No | G20: 0 | H20: Y
C21: BOL IO/Combination Loan (Cat. A-D Comm/Other) | D21: 15 | E21: 0.0785 | F21: No | G21: 0 | H21: Y | Z21: NWR | AA21: DSC | AB21: Outcome
C22: BOL IO/Combination Loan (Cat. E-J) | D22: 10 | E22: 0.0785 | F22: No | G22: 0 | H22: Y | M22: Frequency | T22: Worst Case LCC | U22: =VLOOKUP(category,'Security LBVR LookUP Table'!D2:E11,2,FALSE) ->  | V22: =IF(U22<5,"Yes",IF(U22=5,"No","")) ->  | Z22: 0 | AA22: 0 | AB22: Very High
M23: Frequency | Z23: 1.001 | AA23: 0.501 | AB23: High
M24: Weekly | N24: 52 | T24: Interest Type | V24: Int Type Cat A-D | W24: Int Type Cat E | X24: Int_Type_Fast_Track | Z24: 1.251 | AA24: 1.001 | AB24: Medium
M25: Fortnightly | N25: 26 | T25: Interest_Type_All | Z25: 1.501 | AA25: 1.501 | AB25: Low
M26: Monthly | N26: 12 | Z26: 2.001 | AA26: 3.001 | AB26: Very Low
M27: Annual | N27: 1 | T27: P&I | V27: P&I | W27: P&I | X27: =IF(ISERROR($U$33),T27,IF(category="-",OFFSET(U33,0,$U$33),IF($V$22="Yes",V27,IF(W27="","",W27)))) -> P&I | AA27: - | AB27: -
T28: IO | V28: IO | X28: =IF(IF(ISERROR($U$33),T28,IF(category="-",OFFSET(U34,0,$U$33),IF($V$22="Yes",V28,IF(W28="","",W28))))=0,"",IF(ISERROR($U$33),T28,IF(category="-",OFFSET(U34,0,$U$33),IF($V$22="Yes",V28,IF(W28="","",W28))))) -> IO
T29: Line of Credit | X29: =IF(ISERROR($U$33),T29,"") -> Line of Credit
M31: Times Interest Cover | N31: 1.5 | U31: Interest_Type_All | Z31: 3.1 | AA31: =VLOOKUP(Z31,AA22:AB26,2,TRUE) -> Very Low
U32: Int_Type_Fast_Track
U33: =VLOOKUP('Financial Inputs'!#REF!,Lookups!C5:L7,8,FALSE) ->  | V33: P&I | W33: P&I | X33: =OFFSET(U33,0,$U$33) -> 
V34: IO | X34: =OFFSET(U34,0,$U$33) -> 
M36: People earning below or equal to $21,335 do not pay the Medicare Levy; | P36: 21335
M37: People earning between $21,335.01 and $26,668 pay partial Medicare Levy; and
M38: People earning over $26,668 need to pay the full 2% levy.
C54: Messages
C55: Pause, talk to your BDM

Sheet Dropdown Menu (hidden)
A1: MSBCA | B1: Borrower | P1: Purpose | S1: Serviceability | V1: SOP | Y1: Security | AB1: Security | AD1: Borrower | AG1: Select Industry List | AN1: Loan Purposes for Info Req
A2: Risk Band | B2: Time in Industry | D2: Bank accounts Conduct | F2: Statutory Payments | J2: Financial management | N2: Credit History | AD2: Time In Business | AG2: Please Select | AI2: Please Select (no Fast Track) | AK2: Please Select (with Fast Track)
A3: - | B3: Please select | C3: - | D3: Please select | E3: - | F3: Please select | G3: - | J3: Please select | K3: - | N3: Please select | O3: - | AB3: - | AC3: - | AD3: Please select | AE3: - | AG3: =IF($AG$33="No",AI3,AK3) -> New and/or Increased Lending – up to $2 million aggregated business lending | AH3: =IF(IF($AG$33="No",AJ3,AL3)=0,"",IF($AG$33="No",AJ3,AL3)) ->  | AI3: New and/or Increased Lending – up to $2 million aggregated business lending | AK3: New and/or Increased Lending – up to $1 million aggregated business lending | AN3: Please select loan purpose | AO3: Fast Track available | AP3: My Bank
A4: Very Low | B4: New to Industry | C4: Very High | D4: Current arrears/excess of >$2k with no arrangement made with banker | E4: Very High | F4: ATO not lodged and/or no arrangements are in place | G4: Very High | J4: No financial information is available. No accountant prepared financials. Business insolvent/under administration/clearly in distress. | K4: High | N4: Adverse credit check (unpaid defaults, judgements). Current NAB eCRS is above 21 | O4: Very High | P4: Please select loan purpose | Q4: - | R4: Value | S4: <= 0.5 x | T4: Very High | V4: < 1.0x | W4: Very High | AB4: A | AC4: Low | AD4: =IF(Lookups!$AA$2="Yes",'Dropdown Menu'!AD11,'Dropdown Menu'!AD17) -> Business operating 10+ years | AE4: =IF(Lookups!$AA$2="Yes",'Dropdown Menu'!AE11,'Dropdown Menu'!AE17) -> Very Low | AG4: Interest or Fees Capitalisation | AH4: =IF(IF($AG$33="No",AJ4,AL4)=0,"",IF($AG$33="No",AJ4,AL4)) -> Pause, Discuss with BDM | AI4: Interest or Fees Capitalisation | AJ4: Pause, Discuss with BDM | AK4: Fast Track (<= $1 million) | AN4: Working Capital | AO4: No | AP4: =IF($AH$34="No","No",AO4) -> No
A5: Low | B5: Less than 1 year | C5: High | D5: - Bank accounts have history of excesses or arrears - Current arrears <$2k - Excess / arrears is within arrangement made with banker | E5: High | F5: Arrangements in place with ATO for outstanding payments | G5: High | J5: Financials are prepared by accountant and up to date. Uses proven accounting system and a registered accountant. | K5: Medium | N5: Adverse Credit Check but defaults are paid | O5: High | P5: Working Capital | Q5: Medium | R5: No | S5: 0.5 > 1 x | T5: High | V5: 1.0x>=1.25x | W5: High | Y5: Cat E - J | Z5: High | AB5: B | AC5: Low | AD5: =IF(Lookups!$AA$2="Yes",'Dropdown Menu'!AD12,'Dropdown Menu'!AD18) -> Business operating 5+ years | AE5: =IF(Lookups!$AA$2="Yes",'Dropdown Menu'!AE12,'Dropdown Menu'!AE18) -> Low | AG5: Dental Practice | AH5: Pause, Discuss with BDM | AI5: Dental Practice | AJ5: Pause, Discuss with BDM | AK5: Interest or Fees Capitalisation | AL5: Pause, Discuss with BDM | AN5: Working Capital - Simple Trade Finance (accredited brokers only) | AO5: No | AP5: =IF($AH$34="No","No",AO5) -> No
A6: Medium | B6: 1+ years | C6: Medium | D6: Bank accounts have no excesses over the past 6 months | E6: Medium | F6: - ATO payments are lodged - ATO payments are up to date | G6: Medium | J6: Financial data is regularly monitored through preparation of management reports. Internal accountant / bookkeeper used. Financials are prepared by accountant and up to date. | K6: Low | N6: Clear Credit Check | O6: Medium | P6: Working Capital - Simple Trade Finance (accredited brokers only) | Q6: Medium | R6: No | S6: 1 >=1.5 x | T6: Medium | V6: +1.25x>=1.5 x | W6: Medium | Y6: Cat C/D | Z6: Medium | AB6: C | AC6: Medium | AD6: =IF(Lookups!$AA$2="Yes",'Dropdown Menu'!AD13,'Dropdown Menu'!AD19) -> Business operating 1-5 years | AE6: =IF(Lookups!$AA$2="Yes",'Dropdown Menu'!AE13,'Dropdown Menu'!AE19) -> Medium | AG6: General Medical Practice | AH6: Pause, Discuss with BDM | AI6: General Medical Practice | AJ6: Pause, Discuss with BDM | AK6: Dental Practice | AL6: Pause, Discuss with BDM | AN6: Refinance owner occupied (excl. comm investment/ development) | AO6: No | AP6: =IF($AH$34="No","No",AO6) -> No
A7: High | B7: 5+ years | C7: Low | E7: Low | G7: Low | O7: Low | P7: Refinance owner occupied (excl. comm investment/ development) | Q7: Medium | R7: No | S7: 1.5>=3 x | T7: Low | V7: +1.5x>=2x | W7: Low | Y7: Cat A/B | Z7: Low | AB7: D | AC7: Medium | AD7: =IF(Lookups!$AA$2="Yes",'Dropdown Menu'!AD14,'Dropdown Menu'!AD20) -> Business operating < 1 year | AE7: =IF(Lookups!$AA$2="Yes",'Dropdown Menu'!AE14,'Dropdown Menu'!AE20) -> High | AG7: Construction Companies | AH7: Pause, Discuss with BDM | AI7: Construction Companies | AJ7: Pause, Discuss with BDM | AK7: General Medical Practice | AL7: Pause, Discuss with BDM | AN7: Buy Business/Fund Renovations to Business | AO7: No | AP7: No
A8: Very High | B8: 10+ years | C8: Very Low | E8: Very Low | G8: Very Low | O8: Very Low | P8: Buy Business or Fund Renovations to Business | Q8: Medium | R8: Yes | S8: >3 x | T8: Very Low | V8: >2.0 x | W8: Very Low | AB8: E | AC8: Medium | AD8: =IF(Lookups!$AA$2="Yes",'Dropdown Menu'!AD15,'Dropdown Menu'!AD21) -> Start-up business | AE8: =IF(Lookups!$AA$2="Yes",'Dropdown Menu'!AE15,'Dropdown Menu'!AE21) -> Very High | AG8: Home Builders | AH8: Pause, Discuss with BDM | AI8: Home Builders | AJ8: Pause, Discuss with BDM | AK8: Construction Companies | AL8: Pause, Discuss with BDM | AN8: Purchase Asset – Owner Occupied Property / Other Assets | AO8: No | AP8: No
P9: Purchase Asset – Owner Occupied Property/Equipment Finance | Q9: Medium | R9: Yes | AB9: F | AC9: High | AG9: Hotels | AH9: Pause, Discuss with BDM | AI9: Hotels | AJ9: Pause, Discuss with BDM | AK9: Home Builders | AL9: Pause, Discuss with BDM | AN9: Purchase Asset/Refinance – Commercial Investment Property, Commercial/Residential Development Property | AO9: No | AP9: =IF($AH$34="No","No",AO9) -> No
A10: Broker tool lookups | P10: Purchase Asset/Refinance – Commercial Investment Property, Commercial/Residential Development Property | Q10: Medium | R10: Yes | AB10: G | AC10: High | AD10: Fast Track | AG10: Housing Co-operatives | AH10: Pause, Discuss with BDM | AI10: Housing Co-operatives | AJ10: Pause, Discuss with BDM | AK10: Hotels | AL10: Pause, Discuss with BDM | AN10: Purchase Asset – Equipment Finance | AO10: No | AP10: No
A11: NWR | B11: Risk Grade | C11: Convert | E11: TEST | H11: Structure | J11: LVR Gate | P11: Debt Restructure | Q11: High | R11: No | AB11: H | AC11: High | AD11: Business operating 10+ years | AE11: Very Low | AG11: Professional Equity Partners | AH11: Pause, Discuss with BDM | AI11: Professional Equity Partners | AJ11: Pause, Discuss with BDM | AK11: Housing Co-operatives | AL11: Pause, Discuss with BDM | AN11: Debt Restructure | AO11: No | AP11: No
A12: 2 | B12: Very Low | C12: Yes | E12: A | J12: 0.7 | P12: To Address Unexpected Cash Shortfall / Slow Paying Debtors | Q12: High | R12: No | AB12: I | AC12: High | AD12: Business operating 5+ years | AE12: Low | AG12: Self Managed Superannuation Funds | AI12: Self Managed Superannuation Funds | AK12: Professional Equity Partners | AL12: Pause, Discuss with BDM | AN12: Funding to address unexpected cash shortfall and/or slow-paying debtors | AO12: No | AP12: No
A13: 1.5 | B13: Low | C13: Yes | E13: B | P13: Debt Consolidation to Manage Financial Distress | Q13: Very High | R13: No | AB13: J | AC13: High | AD13: Business operating 2-5 years | AE13: Medium | AG13: Accounting Industry | AH13: Pause, Discuss with BDM | AI13: Accounting Industry | AJ13: Pause, Discuss with BDM | AK13: Self Managed Superannuation Funds | AN13: Debt consolidation to manage financial distress | AO13: No | AP13: No
A14: 1.25 | B14: Medium | C14: Yes | E14: C | P14: Refinance Debt to Manage Financial Distress | Q14: Very High | R14: No | AD14: Business operating 1 - 2 years | AE14: Medium | AG14: Financial Planning Industry | AH14: Pause, Discuss with BDM | AI14: Financial Planning Industry | AJ14: Pause, Discuss with BDM | AK14: Accounting Industry | AL14: Pause, Discuss with BDM | AN14: Refinance debt to manage financial distress | AO14: No | AP14: No
A15: 1 | B15: High | C15: Discuss with BDM | E15: D | P15: Clearing ATO Arrears | Q15: Very High | R15: Yes | AB15: Cat E | AD15: Startup or Business operating < 1 Year | AE15: Very High | AG15: Franchising Sector (Accredited Brand Franchisee) | AH15: Pause, Discuss with BDM | AI15: Franchising Sector (Accredited Brand Franchisee) | AJ15: Pause, Discuss with BDM | AK15: Financial Planning Industry | AL15: Pause, Discuss with BDM | AN15: Clearing ATO arrears | AO15: No | AP15: No
A16: ='Pre-qualifying Tool'!G127 -> - | B16: Very High | C16: Discuss with BDM | P16: Loan Amount | Q16: =VLOOKUP('Financial Inputs'!J10,P5:Q15,2,FALSE) ->  | AB16: Fast Track | AC16: Medium | AD16: Normal | AG16: Mining Industry and Mining Services | AH16: Pause, Discuss with BDM | AI16: Mining Industry and Mining Services | AJ16: Pause, Discuss with BDM | AK16: Franchising Sector (Accredited Brand Franchisee) | AL16: Pause, Discuss with BDM | AN16: SMSF Commercial Property Purchase | AO16: No | AP16: No
AB17: All Other | AC17: High | AD17: Business operating 10+ years | AE17: Very Low | AG17: Pharmacy Industry | AH17: Pause, Discuss with BDM | AI17: Pharmacy Industry | AJ17: Pause, Discuss with BDM | AK17: Mining Industry and Mining Services | AL17: Pause, Discuss with BDM
AD18: Business operating 5+ years | AE18: Low | AF18: 1 Year | AG18: Real Estate Industry | AH18: Pause, Discuss with BDM | AI18: Real Estate Industry | AJ18: Pause, Discuss with BDM | AK18: Pharmacy Industry | AL18: Pause, Discuss with BDM
AD19: Business operating 1-5 years | AE19: Medium | AG19: Residential Aged Care Industry | AH19: Pause, Discuss with BDM | AI19: Residential Aged Care Industry | AJ19: Pause, Discuss with BDM | AK19: Real Estate Industry | AL19: Pause, Discuss with BDM
AD20: Business operating < 1 year | AE20: High | AG20: Roman Catholic Church | AH20: Pause, Discuss with BDM | AI20: Roman Catholic Church | AJ20: Pause, Discuss with BDM | AK20: Residential Aged Care Industry | AL20: Pause, Discuss with BDM
AD21: Start-up business | AE21: Very High | AG21: Uniting Church | AH21: Pause, Discuss with BDM | AI21: Uniting Church | AJ21: Pause, Discuss with BDM | AK21: Roman Catholic Church | AL21: Pause, Discuss with BDM
AG22: Veterinary Industry | AH22: Pause, Discuss with BDM | AI22: Veterinary Industry | AJ22: Pause, Discuss with BDM | AK22: Uniting Church | AL22: Pause, Discuss with BDM
AG23: NAB Microenterprise Loans | AH23: Pause, Discuss with BDM | AI23: NAB Microenterprise Loans | AJ23: Pause, Discuss with BDM | AK23: Veterinary Industry | AL23: Pause, Discuss with BDM
AG24: Environmental Risk and the Nuclear Industry | AH24: Pause, Discuss with BDM | AI24: Environmental Risk and the Nuclear Industry | AJ24: Pause, Discuss with BDM | AK24: NAB Microenterprise Loans | AL24: Pause, Discuss with BDM
AG25: Property Lending | AH25: Pause, Discuss with BDM | AI25: Property Lending | AJ25: Pause, Discuss with BDM | AK25: Environmental Risk and the Nuclear Industry | AL25: Pause, Discuss with BDM
AG26: Stratum Titles | AH26: Pause, Discuss with BDM | AI26: Stratum Titles | AJ26: Pause, Discuss with BDM | AK26: Property Lending | AL26: Pause, Discuss with BDM
AG27: Management Rights - Qld | AH27: Pause, Discuss with BDM | AI27: Management Rights - Qld | AJ27: Pause, Discuss with BDM | AK27: Stratum Titles | AL27: Pause, Discuss with BDM
AG28: Other | AI28: Other | AK28: Management Rights - Qld | AL28: Pause, Discuss with BDM
AG29: =IF(IF($AG$33="No",AI29,AK29)=0,"",IF($AG$33="No",AI29,AK29)) ->  | AK29: Other
AG33: =IF(AH33="No","No",IF(ISERROR(VLOOKUP('Information Requirements'!A6,'Dropdown Menu'!AG37:AG43,1,FALSE)),"No","Yes")) -> No | AH33: =IF(ISERROR(VLOOKUP('Information Requirements'!B3,AN4:AO16,2,FALSE)),"No",VLOOKUP('Information Requirements'!B3,AN4:AO16,2,FALSE)) -> No | AI33: this shows if fast track is enabled
AG34: Fast Track - Yes or No | AH34: =IF('Information Requirements'!B4='Dropdown Menu'!AK4,"Yes","No") -> No | AI34: this shows if fast track is selected
AG36: Valid BUIDs
AG37: 420353213
A50: No. of … | B50: Cust / prop / Sec | C50: Non-ind Ent | D50: Ind Ent | E50: Cash Drivers | F50: Fin types | G50: Frequency | H50: Assets | I50: Owner Type | J50: Transaction Type
A53: Please Select | B53: New | C53: Company | D53: Individual | F53: Accountant prepared | G53: Weekly | H53: Property (Residential) | I53: Individual/Sole Trader | J53: Existing Consumer Tran Only Customer, New Lend
A54: 1 | B54: Existing | C54: Small Business | D54: Sole Trader | E54: Sales/Revenue | F54: Tax returns | G54: Fortnightly | H54: Property (Commercial) | I54: Business | J54: Existing Business Tran Only Customer, New Lend
A55: 2 | C55: Trust | E55: Gross Margin | F55: Management | G55: Monthly | H55: Cash & Cash Equivalent | J55: New to Bank Customer, New Lend
A56: 3 | C56: Partnership | E56: Operating Expenses | F56: Projected | G56: Annual | H56: Motor Vehicle | J56: New to Bank Customer, Refinancing to NAB
A57: 4 | C57: Individual | E57: Accounts Receivable | F57: Annualised | H57: Investments (Shares, Managed Funds) | J57: Existing (Split Bankg) Customer, Refinancing to NAB
A58: 5 | C58: Sole Trader | E58: Accounts Payable | H58: Plant & Machinery | J58: Existing NAB Customer, Increasing their (NAB) Lending
A59: 6 | E59: Inventory | H59: Inventory | J59: Start-Up Business (Existing/NtB)
A60: 7 | E60: Capital Expenditure | H60: Debtors/Account Receivable | J60: Commercial Property Investment, PAYG Customer (outside Fast Track)
A61: 8 | H61: Prepaid Expenses | J61: New to Bank Customer, Purchasing a Business
A62: 9 | J62: Existing NAB Customer, Purchasing a Business
A63: 10 | J63: New to Bank Customer, Purchasing Commercial Property
A64: 11 | J64: Existing NAB Customer, Purchasing Commercial Property
A65: 12 | J65: Equipment Finance (outside Matrix)
A66: 13 | J66: Cash-Secured GBB
A67: 14 | J67: Commercial Card (in conjunction with other BL products) *CCDT applies for standalone
A68: 15
A69: 16
A70: 17
A71: 18
A72: 19
A73: 20
A74: 21
A75: 22
A76: 23
A77: 24
A78: 25
A506: Aphanumeric | B506: Auto | D506: Man | F506: Man | H506: Man
A510: Aphanumeric | B510: Auto | D510: Man | F510: Man | H510: Man
B514: Auto | D514: Man | F514: Man | H514: Man
A515: Aphanumeric | B515: Auto | D515: Man | F515: Man | H515: Man
B516: Auto | D516: Man | F516: Man | H516: Man
A520: Aphanumeric | B520: Auto | D520: Man | F520: Man | H520: Man
B521: Auto | D521: Man | F521: Man | H521: Man
A525: Aphanumeric | B525: Auto | D525: Man | F525: Man | H525: Man
A532: Aphanumeric | B532: Auto | D532: Man | F532: Man | H532: Man
A539: Aphanumeric | B539: Auto | D539: Man | F539: Man | H539: Man
A546: Aphanumeric | B546: Auto | D546: Man | F546: Man | H546: Man
A553: Aphanumeric | B553: Auto | D553: Man | F553: Man | H553: Man
B559: Auto | D559: Auto | F559: Auto | H559: Auto

Sheet Security LBVR LookUP Table (hidden)
A1: LBVR Table | D1: Cat | E1: Val | F1: Security Type | G1: Security Ranking | H1: Commercial | I1: Debentures | J1: Deposit | K1: Licence | L1: Residential | M1: Rural | N1: Other | O1: Guarantee_Commercial | P1: Guarantee_Debentures | Q1: Guarantee_Deposit | R1: Guarantee_License | S1: Guarantee_Residential | T1: Guarantee_Rural | Y1: Security Type | Z1: Security Subtype | AA1: Security subtype 2 | AB1: BV | AC1: Fast Track LVR
A2: Security | D2: A | E2: 1 | F2: Commercial | G2: 0 | H2: Cluster (QLD) & community titles (NSW, QLD & SA) | I2: Debentures | J2: Term Deposit | K2: Taxi Licences | L2: Cluster (QLD) & community titles (NSW, QLD & SA) (Residential) | M2: Rural Crown Leasehold (Perpetual rural leasehold, excluding Australian Capital Territory (ACT): broadacre) | N2: Other | O2: Cluster (QLD) & community titles (NSW, QLD & SA) (Residential) | P2: Debentures | Q2: Term Deposit | R2: Taxi Licences | S2: Cluster (QLD) & community titles (NSW, QLD & SA) (Residential) | T2: Rural Crown Leasehold (Perpetual rural leasehold, excluding Australian Capital Territory (ACT): broadacre) | X2: =Y2&Z2 -> CommercialCluster (QLD) & community titles (NSW, QLD & SA) | Y2: Commercial | Z2: Cluster (QLD) & community titles (NSW, QLD & SA) | AA2: Commercial | AB2: 0.7 | AC2: 0.8
A3: 0.0001 | B3: A | C3: Very Low | D3: B | E3: 2 | F3: Debentures | G3: 4 | H3: Commercial & industrial property (Lease term is 50 years or more) | L3: Hamilton Island (Structures 1 & 2 Hamilton Island residential properties) | M3: Rural Crown Leasehold (Perpetual rural leasehold, excluding Australian Capital Territory (ACT): specialised type 1 (nut and wine grape production)) | O3: Commercial & industrial property (Lease term is 50 years or more) | S3: Hamilton Island (Structures 1 & 2 Hamilton Island residential properties) | T3: Rural Crown Leasehold (Perpetual rural leasehold, excluding Australian Capital Territory (ACT): specialised type 1 (nut and wine grape production)) | X3: =Y3&Z3 -> CommercialCommercial & industrial property (Lease term is 50 years or more) | Y3: Commercial | Z3: Commercial & industrial property (Lease term is 50 years or more) | AA3: if the remaining lease term is 50 years or more | AB3: 0.7 | AC3: 0.8
A4: 0.30001 | B4: B | C4: Low | D4: C | E4: 3 | F4: Deposit | G4: 4 | H4: Commercial and industrial property (Lease term is between 25 & 50 years) | L4: Residential Crown Leashold (owner occupied or non-owner occupied (investment), excluding inner city apartments) | M4: Rural Crown Leasehold (Perpetual rural leasehold, excluding Australian Capital Territory (ACT): specialised type 2 (all other rural specialised properties)) | O4: Commercial and industrial property (Lease term is between 25 & 50 years) | S4: Residential Crown Leashold (owner occupied or non-owner occupied (investment), excluding inner city apartments) | T4: Rural Crown Leasehold (Perpetual rural leasehold, excluding Australian Capital Territory (ACT): specialised type 2 (all other rural specialised properties)) | X4: CommercialCommercial and industrial property (Lease term is between 25 & 50 years) | Y4: Commercial | Z4: Commercial and industrial property (Lease term is between 25 & 50 years) | AA4: if the lease term is between 25 and 50 years | AB4: 0.5 | AC4: 0
A5: 0.70001 | B5: C | C5: Medium | D5: D | E5: 4 | F5: Licence | G5: 4 | H5: Commercial property freehold | L5: Residential Crown Leashold (non-owner occupied inner city apartments) | M5: Rural property freehold (Broadacre) | O5: Commercial property freehold | S5: Residential Crown Leashold (non-owner occupied inner city apartments) | T5: Rural property freehold (Broadacre) | X5: CommercialCommercial property freehold | Y5: Commercial | Z5: Commercial property freehold | AB5: 0.7 | AC5: 0.8
A6: 0.850001 | B6: D | C6: Medium | D6: E | E6: 5 | F6: Residential | G6: 1 | H6: Hotels (non-owner occupied freehold/ ACT Crown leasehold valued subject to the lease) | L6: Residential property freehold (excluding non-owner occupied inner city apartments) | M6: Rural property freehold (specialised type 1 (nut and wine grape production)) | O6: Hotels (non-owner occupied freehold/ ACT Crown leasehold valued subject to the lease) | S6: Residential property freehold (excluding non-owner occupied inner city apartments) | T6: Rural property freehold (specialised type 1 (nut and wine grape production)) | X6: CommercialHotels (non-owner occupied freehold/ ACT Crown leasehold valued subject to the lease) | Y6: Commercial | Z6: Hotels (non-owner occupied freehold/ ACT Crown leasehold valued subject to the lease) | AA6: non-owner occupied freehold/ ACT Crown leasehold valued subject to the lease. | AB6: 0.7 | AC6: 0
A7: 1.00001 | B7: E | C7: High | D7: F | E7: 6 | F7: Rural | G7: 4 | H7: Hotels (Owner occupied freehold/ ACT Crown leasehold when the Bank’s security does not include a charge over business assets and liquor licence – valued on a ‘vacant possession – existing use’ basis) | L7: Residential property freehold (non-owner occupied inner city apartments) | M7: Rural property freehold (specialised type 2 (all other rural specialised properties)) | O7: Hotels (Owner occupied freehold/ ACT Crown leasehold when the Bank’s security does not include a charge over business assets and liquor licence – valued on a ‘vacant possession – existing use’ basis) | S7: Residential property freehold (non-owner occupied inner city apartments) | T7: Rural property freehold (specialised type 2 (all other rural specialised properties)) | X7: CommercialHotels (Owner occupied freehold/ ACT Crown leasehold when the Bank’s security does not include a charge over business assets and liquor licence – valued on a ‘vacant possession – existing use’ basis) | Y7: Commercial | Z7: Hotels (Owner occupied freehold/ ACT Crown leasehold when the Bank’s security does not include a charge over business assets and liquor licence – valued on a ‘vacant possession – existing use’ basis) | AA7: Owner occupied freehold/ ACT Crown leasehold when the Bank’s security does not include a charge over business assets and liquor licence – valued on a ‘vacant possession – existing use’ basis. | AB7: 0.7 | AC7: 0
A8: 1.33001 | B8: F | C8: Very High | D8: G | E8: 7 | F8: Other | G8: 4 | H8: Hotels (Crown leaseholds in all states or territories excluding ACT, valued on a ‘vacant possession – existing use’ basis: remaining lease term greater than 50 years) | L8: Serviced Apartments (Acceptable Residential Security) | O8: Hotels (Crown leaseholds in all states or territories excluding ACT, valued on a ‘vacant possession – existing use’ basis: remaining lease term greater than 50 years) | S8: Serviced Apartments (Acceptable Residential Security) | X8: CommercialHotels (Crown leaseholds in all states or territories excluding ACT, valued on a ‘vacant possession – existing use’ basis: remaining lease term greater than 50 years) | Y8: Commercial | Z8: Hotels (Crown leaseholds in all states or territories excluding ACT, valued on a ‘vacant possession – existing use’ basis: remaining lease term greater than 50 years) | AA8: Crown leaseholds in all states or territories excluding ACT, valued on a ‘vacant possession – existing use’ basis: remaining lease term greater than 50 years | AB8: 0.7 | AC8: 0
A9: 1.66001 | B9: G | C9: Very High | D9: H | E9: 8 | F9: Guarantee_Commercial | G9: 0 | H9: Hotels (Crown leaseholds in all states or territories excluding ACT, valued on a ‘vacant possession – existing use’ basis: remaining lease term 25–50 years) | L9: Strata Titles (Residential) | O9: Hotels (Crown leaseholds in all states or territories excluding ACT, valued on a ‘vacant possession – existing use’ basis: remaining lease term 25–50 years) | S9: Strata Titles (Residential) | X9: CommercialHotels (Crown leaseholds in all states or territories excluding ACT, valued on a ‘vacant possession – existing use’ basis: remaining lease term 25–50 years) | Y9: Commercial | Z9: Hotels (Crown leaseholds in all states or territories excluding ACT, valued on a ‘vacant possession – existing use’ basis: remaining lease term 25–50 years) | AA9: Crown leaseholds in all states or territories excluding ACT, valued on a ‘vacant possession – existing use’ basis: remaining lease term 25–50 years | AB9: 0.5 | AC9: 0
A10: 2.00001 | B10: H | C10: Very High | D10: I | E10: 9 | F10: Guarantee_Debentures | G10: 4 | H10: Industrial property freehold | O10: Industrial property freehold | X10: CommercialIndustrial property freehold | Y10: Commercial | Z10: Industrial property freehold | AB10: 0.7 | AC10: 0.8
A11: 4.00001 | B11: I | C11: Very High | D11: J | E11: 10 | F11: Guarantee_Deposit | G11: 4 | H11: Serviced Apartments (Treated as commercial property for business lending products only) | O11: Serviced Apartments (Treated as commercial property for business lending products only) | X11: CommercialServiced Apartments (Treated as commercial property for business lending products only) | Y11: Commercial | Z11: Serviced Apartments (Treated as commercial property for business lending products only) | AA11: if treated as a commercial property (business lending products only) | AB11: 0.7 | AC11: 0
A12: 10.00001 | B12: J | C12: Very High | F12: Guarantee_License | G12: 4 | H12: Strata Titles (Commercial & industrial) | O12: Strata Titles (Commercial & industrial) | X12: CommercialStrata Titles (Commercial & industrial) | Y12: Commercial | Z12: Strata Titles (Commercial & industrial) | AA12: Commercial & industrial | AB12: 0.7 | AC12: 0.8
F13: Guarantee_Residential | G13: 1 | H13: Student Accommodation (on entire blocks) | O13: Student Accommodation (on entire blocks) | X13: CommercialStudent Accommodation (on entire blocks) | Y13: Commercial | Z13: Student Accommodation (on entire blocks) | AA13: on entire blocks | AB13: 0.7 | AC13: 0
F14: Guarantee_Rural | G14: 4 | X14: DebenturesDebentures | Y14: Debentures | Z14: Debentures | AB14: 0.8 | AC14: 0
X15: DepositTerm Deposit | Y15: Deposit | Z15: Term Deposit | AB15: 1 | AC15: 1
X16: LicenceTaxi Licences | Y16: Licence | Z16: Taxi Licences | AB16: 0.0001 | AC16: 0.0001
X17: ResidentialCluster (QLD) & community titles (NSW, QLD & SA) (Residential) | Y17: Residential | Z17: Cluster (QLD) & community titles (NSW, QLD & SA) (Residential) | AA17: Residential | AB17: 0.8 | AC17: 1
G18: 0 | H18: Commercial | X18: ResidentialHamilton Island (Structures 1 & 2 Hamilton Island residential properties) | Y18: Residential | Z18: Hamilton Island (Structures 1 & 2 Hamilton Island residential properties) | AA18: Structures 1 and 2 Hamilton Island residential properties | AB18: 0.8 | AC18: 0
G19: 1 | H19: Residential | X19: ResidentialResidential Crown Leashold (owner occupied or non-owner occupied (investment), excluding inner city apartments) | Y19: Residential | Z19: Residential Crown Leashold (owner occupied or non-owner occupied (investment), excluding inner city apartments) | AA19: owner occupied and non-owner occupied (investment), excluding inner city apartments. | AB19: 0.8 | AC19: 1
X20: ResidentialResidential Crown Leashold (non-owner occupied inner city apartments) | Y20: Residential | Z20: Residential Crown Leashold (non-owner occupied inner city apartments) | AA20: non-owner occupied inner city apartments | AB20: 0.7 | AC20: 0
X21: ResidentialResidential property freehold (excluding non-owner occupied inner city apartments) | Y21: Residential | Z21: Residential property freehold (excluding non-owner occupied inner city apartments) | AA21: all residential property, excluding non-owner occupied inner city apartments | AB21: 0.8 | AC21: 1
X22: ResidentialResidential property freehold (non-owner occupied inner city apartments) | Y22: Residential | Z22: Residential property freehold (non-owner occupied inner city apartments) | AA22: non-owner occupied inner city apartments | AB22: 0.7 | AC22: 0
X23: ResidentialServiced Apartments (Acceptable Residential Security) | Y23: Residential | Z23: Serviced Apartments (Acceptable Residential Security) | AA23: if Acceptable Residential Security | AB23: 0.8 | AC23: 0
X24: ResidentialStrata Titles (Residential) | Y24: Residential | Z24: Strata Titles (Residential) | AA24: Residential | AB24: 0.8 | AC24: 1
X25: RuralRural Crown Leasehold (Perpetual rural leasehold, excluding Australian Capital Territory (ACT): broadacre) | Y25: Rural | Z25: Rural Crown Leasehold (Perpetual rural leasehold, excluding Australian Capital Territory (ACT): broadacre) | AA25: Perpetual rural leasehold, excluding Australian Capital Territory (ACT): broadacre | AB25: 0.7 | AC25: 0
X26: RuralRural Crown Leasehold (Perpetual rural leasehold, excluding Australian Capital Territory (ACT): specialised type 1 (nut and wine grape production)) | Y26: Rural | Z26: Rural Crown Leasehold (Perpetual rural leasehold, excluding Australian Capital Territory (ACT): specialised type 1 (nut and wine grape production)) | AA26: Perpetual rural leasehold, excluding Australian Capital Territory (ACT): specialised type 1 (nut and wine grape production) | AB26: 0.6 | AC26: 0
X27: RuralRural Crown Leasehold (Perpetual rural leasehold, excluding Australian Capital Territory (ACT): specialised type 2 (all other rural specialised properties)) | Y27: Rural | Z27: Rural Crown Leasehold (Perpetual rural leasehold, excluding Australian Capital Territory (ACT): specialised type 2 (all other rural specialised properties)) | AA27: Perpetual rural leasehold, excluding Australian Capital Territory (ACT): specialised type 2 (all other rural specialised properties) | AB27: 0.5 | AC27: 0
X28: RuralRural property freehold (Broadacre) | Y28: Rural | Z28: Rural property freehold (Broadacre) | AA28: broadacre | AB28: 0.7 | AC28: 0
X29: RuralRural property freehold (specialised type 1 (nut and wine grape production)) | Y29: Rural | Z29: Rural property freehold (specialised type 1 (nut and wine grape production)) | AA29: specialised type 1 (nut and wine grape production) | AB29: 0.6 | AC29: 0
X30: RuralRural property freehold (specialised type 2 (all other rural specialised properties)) | Y30: Rural | Z30: Rural property freehold (specialised type 2 (all other rural specialised properties)) | AA30: specialised type 2 (all other rural specialised properties) | AB30: 0.5 | AC30: 0
X31: OtherOther | Y31: Other | Z31: Other | AA31: Other | AB31: Insert BV >>>
X32: Guarantee-CommercialCluster (QLD) & community titles (NSW, QLD & SA) | Y32: Guarantee-Commercial | Z32: Cluster (QLD) & community titles (NSW, QLD & SA) | AA32: Commercial | AB32: 0.7 | AC32: 0.8
X33: Guarantee-CommercialCommercial & industrial property (Lease term is 50 years or more) | Y33: Guarantee-Commercial | Z33: Commercial & industrial property (Lease term is 50 years or more) | AA33: if the remaining lease term is 50 years or more | AB33: 0.7 | AC33: 0.8
X34: Guarantee-CommercialCommercial and industrial property (Lease term is between 25 & 50 years) | Y34: Guarantee-Commercial | Z34: Commercial and industrial property (Lease term is between 25 & 50 years) | AA34: if the lease term is between 25 and 50 years | AB34: 0.5 | AC34: 0
X35: Guarantee-CommercialCommercial property freehold | Y35: Guarantee-Commercial | Z35: Commercial property freehold | AB35: 0.7 | AC35: 0.8
X36: Guarantee-CommercialHotels (non-owner occupied freehold/ ACT Crown leasehold valued subject to the lease) | Y36: Guarantee-Commercial | Z36: Hotels (non-owner occupied freehold/ ACT Crown leasehold valued subject to the lease) | AA36: non-owner occupied freehold/ ACT Crown leasehold valued subject to the lease. | AB36: 0.7 | AC36: 0
X37: Guarantee-CommercialHotels (Owner occupied freehold/ ACT Crown leasehold when the Bank’s security does not include a charge over business assets and liquor licence – valued on a ‘vacant possession – existing use’ basis) | Y37: Guarantee-Commercial | Z37: Hotels (Owner occupied freehold/ ACT Crown leasehold when the Bank’s security does not include a charge over business assets and liquor licence – valued on a ‘vacant possession – existing use’ basis) | AA37: Owner occupied freehold/ ACT Crown leasehold when the Bank’s security does not include a charge over business assets and liquor licence – valued on a ‘vacant possession – existing use’ basis. | AB37: 0.7 | AC37: 0
X38: Guarantee-CommercialHotels (Crown leaseholds in all states or territories excluding ACT, valued on a ‘vacant possession – existing use’ basis: remaining lease term greater than 50 years) | Y38: Guarantee-Commercial | Z38: Hotels (Crown leaseholds in all states or territories excluding ACT, valued on a ‘vacant possession – existing use’ basis: remaining lease term greater than 50 years) | AA38: Crown leaseholds in all states or territories excluding ACT, valued on a ‘vacant possession – existing use’ basis: remaining lease term greater than 50 years | AB38: 0.7 | AC38: 0
X39: Guarantee-CommercialHotels (Crown leaseholds in all states or territories excluding ACT, valued on a ‘vacant possession – existing use’ basis: remaining lease term 25–50 years) | Y39: Guarantee-Commercial | Z39: Hotels (Crown leaseholds in all states or territories excluding ACT, valued on a ‘vacant possession – existing use’ basis: remaining lease term 25–50 years) | AA39: Crown leaseholds in all states or territories excluding ACT, valued on a ‘vacant possession – existing use’ basis: remaining lease term 25–50 years | AB39: 0.5 | AC39: 0
X40: Guarantee-CommercialIndustrial property freehold | Y40: Guarantee-Commercial | Z40: Industrial property freehold | AB40: 0.7 | AC40: 0.8
X41: Guarantee-CommercialServiced Apartments (Treated as commercial property for business lending products only) | Y41: Guarantee-Commercial | Z41: Serviced Apartments (Treated as commercial property for business lending products only) | AA41: if treated as a commercial property (business lending products only) | AB41: 0.7 | AC41: 0
X42: Guarantee-CommercialStrata Titles (Commercial & industrial) | Y42: Guarantee-Commercial | Z42: Strata Titles (Commercial & industrial) | AA42: Commercial & industrial | AB42: 0.7 | AC42: 0.8
X43: Guarantee-CommercialStudent Accommodation (on entire blocks) | Y43: Guarantee-Commercial | Z43: Student Accommodation (on entire blocks) | AA43: on entire blocks | AB43: 0.7 | AC43: 0
X44: Guarantee-DebenturesDebentures | Y44: Guarantee-Debentures | Z44: Debentures | AB44: 0.8 | AC44: 0
X45: Guarantee-DepositTerm Deposit | Y45: Guarantee-Deposit | Z45: Term Deposit | AB45: 1 | AC45: 1
X46: Guarantee-LicenseTaxi Licences | Y46: Guarantee-License | Z46: Taxi Licences | AB46: 0.65 | AC46: 0
X47: Guarantee-ResidentialCluster (QLD) & community titles (NSW, QLD & SA) (Residential) | Y47: Guarantee-Residential | Z47: Cluster (QLD) & community titles (NSW, QLD & SA) (Residential) | AA47: Residential | AB47: 0.8 | AC47: 1
X48: Guarantee-ResidentialHamilton Island (Structures 1 & 2 Hamilton Island residential properties) | Y48: Guarantee-Residential | Z48: Hamilton Island (Structures 1 & 2 Hamilton Island residential properties) | AA48: Structures 1 and 2 Hamilton Island residential properties | AB48: 0.8 | AC48: 0
X49: Guarantee-ResidentialResidential Crown Leashold (owner occupied or non-owner occupied (investment), excluding inner city apartments) | Y49: Guarantee-Residential | Z49: Residential Crown Leashold (owner occupied or non-owner occupied (investment), excluding inner city apartments) | AA49: owner occupied and non-owner occupied (investment), excluding inner city apartments. | AB49: 0.8 | AC49: 1
X50: Guarantee-ResidentialResidential Crown Leashold (non-owner occupied inner city apartments) | Y50: Guarantee-Residential | Z50: Residential Crown Leashold (non-owner occupied inner city apartments) | AA50: non-owner occupied inner city apartments | AB50: 0.7 | AC50: 0
X51: Guarantee-ResidentialResidential property freehold (excluding non-owner occupied inner city apartments) | Y51: Guarantee-Residential | Z51: Residential property freehold (excluding non-owner occupied inner city apartments) | AA51: all residential property, excluding non-owner occupied inner city apartments | AB51: 0.8 | AC51: 1
X52: Guarantee-ResidentialResidential property freehold (non-owner occupied inner city apartments) | Y52: Guarantee-Residential | Z52: Residential property freehold (non-owner occupied inner city apartments) | AA52: non-owner occupied inner city apartments | AB52: 0.7 | AC52: 0
X53: Guarantee-ResidentialServiced Apartments (Acceptable Residential Security) | Y53: Guarantee-Residential | Z53: Serviced Apartments (Acceptable Residential Security) | AA53: if Acceptable Residential Security | AB53: 0.8 | AC53: 0
X54: Guarantee-ResidentialStrata Titles (Residential) | Y54: Guarantee-Residential | Z54: Strata Titles (Residential) | AA54: Residential | AB54: 0.8 | AC54: 1
X55: Guarantee-RuralRural Crown Leasehold (Perpetual rural leasehold, excluding Australian Capital Territory (ACT): broadacre) | Y55: Guarantee-Rural | Z55: Rural Crown Leasehold (Perpetual rural leasehold, excluding Australian Capital Territory (ACT): broadacre) | AA55: Perpetual rural leasehold, excluding Australian Capital Territory (ACT): broadacre | AB55: 0.7 | AC55: 0
X56: Guarantee-RuralRural Crown Leasehold (Perpetual rural leasehold, excluding Australian Capital Territory (ACT): specialised type 1 (nut and wine grape production)) | Y56: Guarantee-Rural | Z56: Rural Crown Leasehold (Perpetual rural leasehold, excluding Australian Capital Territory (ACT): specialised type 1 (nut and wine grape production)) | AA56: Perpetual rural leasehold, excluding Australian Capital Territory (ACT): specialised type 1 (nut and wine grape production) | AB56: 0.6 | AC56: 0
X57: Guarantee-RuralRural Crown Leasehold (Perpetual rural leasehold, excluding Australian Capital Territory (ACT): specialised type 2 (all other rural specialised properties)) | Y57: Guarantee-Rural | Z57: Rural Crown Leasehold (Perpetual rural leasehold, excluding Australian Capital Territory (ACT): specialised type 2 (all other rural specialised properties)) | AA57: Perpetual rural leasehold, excluding Australian Capital Territory (ACT): specialised type 2 (all other rural specialised properties) | AB57: 0.5 | AC57: 0
X58: Guarantee-RuralRural property freehold (Broadacre) | Y58: Guarantee-Rural | Z58: Rural property freehold (Broadacre) | AA58: broadacre | AB58: 0.7 | AC58: 0
X59: Guarantee-RuralRural property freehold (specialised type 1 (nut and wine grape production)) | Y59: Guarantee-Rural | Z59: Rural property freehold (specialised type 1 (nut and wine grape production)) | AA59: specialised type 1 (nut and wine grape production) | AB59: 0.6 | AC59: 0
X60: Guarantee-RuralRural property freehold (specialised type 2 (all other rural specialised properties)) | Y60: Guarantee-Rural | Z60: Rural property freehold (specialised type 2 (all other rural specialised properties)) | AA60: specialised type 2 (all other rural specialised properties) | AB60: 0.5 | AC60: 0
X61: Guarantee-RuralRural property freehold (specialised type 1 (nut and wine grape production)) | Y61: Guarantee-Rural | Z61: Rural property freehold (specialised type 1 (nut and wine grape production)) | AA61: specialised type 1 (nut and wine grape production) | AB61: 0.6 | AC61: 0
X62: Guarantee-RuralRural property freehold (specialised type 2 (all other rural specialised properties)) | Y62: Guarantee-Rural | Z62: Rural property freehold (specialised type 2 (all other rural specialised properties)) | AA62: specialised type 2 (all other rural specialised properties) | AB62: 0.5 | AC62: 0
X63: Guarantee-RuralRural property freehold (specialised type 2 (all other rural specialised properties)) | Y63: Guarantee-Rural | Z63: Rural property freehold (specialised type 2 (all other rural specialised properties)) | AA63: specialised type 2 (all other rural specialised properties) | AB63: 0.5 | AC63: 0
X64: Guarantee-RuralRural property freehold (specialised type 2 (all other rural specialised properties)) | Y64: Guarantee-Rural | Z64: Rural property freehold (specialised type 2 (all other rural specialised properties)) | AA64: specialised type 2 (all other rural specialised properties) | AB64: 0.5 | AC64: 0
X65: Guarantee-RuralRural property freehold (specialised type 2 (all other rural specialised properties)) | Y65: Guarantee-Rural | Z65: Rural property freehold (specialised type 2 (all other rural specialised properties)) | AA65: specialised type 2 (all other rural specialised properties) | AB65: 0.5 | AC65: 0

Sheet Minimum Commentary (hidden)
A1: MSBCA Minimum Commentary Requirements
A2: The Minimum Commentary Requirements provides you a guide as to the commentary required in the MSBCA worksheet to support the grade assigned under each of the risks within the framework.
A3: as at 10/05/16 Please refer to the MSBCA Intranet to ensure that you are using the most up to date version of this guide
A4: The Minimum Commentary Requirements provides you a guide as to the commentary required in the MSBCA worksheet to support the grade assigned under each of the risks within the framework.
A5: Using the Minimum Commentary Requirements | D5: Customer Background
A6: The minimum commentary requirements have been designed to help you with the minimum amount of commentary you need to provide to justify a risk grade. | D6: • Name of customer (borrowing entity) • Industry & business activities • Entity Structure – Related entities, Key People, Decision Makers, Key Employees • Year commenced in industry • Year commenced in business • Year relationship established with main bank & products held (New or Existing Customer)
A7: Where to enter Minimum Commentary Requirements
A8: The minimum commentary requirements are to be entered under each of the risks within the MSBCA worksheet.
A9: Where to enter Minimum Commentary Requirements
A10: The minimum commentary requirements are to be entered under each of the risks within the MSBCA worksheet.
A11: If you have questions or feedback please contact your Credit Consultant or People Leader.
A12: Where Risk Mitigation is applied, additional commentary detailing the rational for the adjustment is required.
A13: Refer to the Non Standard transaction guide for additional commentary needed for transactions that represent a higher or specific risk.
A15: Borrower
A17: This guide provides Bankers with key information and guidance as to the commentary that is to be provided to support the risk grade recorded against a customer Business lending application.
B19: VERY LOW | C19: LOW | D19: MEDIUM | E19: HIGH | F19: VERY HIGH
A20: Attributes | B20: VL | C20: L | D20: M | E20: H | F20: VH
A21: Industry Experience | B21: 10+ years | C21: 5+ years | D21: 1+ years | E21: Less than 1 year | F21: New to Industry
B22: Customer X has been in the X industry for X years in X roles. | D22: Customer X started in the X industry as X after a previous role in X doing X. | E22: Customer X has been in the industry since X. They started because of X after previously doing X. | F22: Customer X is new to industry X after previously doing X.
A23: Length of time in Business | B23: Business Operating 10+ yrs | C23: Business Operating 5+ yrs | D23: Business operating 1-5 yrs | E23: Business operating <1yr | F23: Start up Business
B24: Business X has been operating since X in X location. | E24: Business X has been operating since X in X location. Business X started because of X. Business X has been operating since X in X location. Business X was bought by X in X. | F24: Business X is a new business which was started because of X. They will provide X service/product that is different to X in the existing industry/market.
A25: Bank Account Conduct | B25: Bank accounts have no excesses over the past 6 months | E25: Bank Accounts have current arrears <$2k or excess / arrears is within arrangement made with banker | F25: Bank accounts have current arrears or excess of >$2k with no arrangement made with banker
B26: Customer X’s accounts are currently in order and have been for X months as per limit enquiry/guarantor information report. | E26: Customers X’s accounts are currently in arrears by $X due to X. This was arranged/not arranged with banker prior to excess occurring and will be in order by X. This excess was approved due to X. | F26: Customers X’s accounts are currently in arrears by $X due to X. This occurred X days ago and will be in order by X. This was arranged/not arranged with banker prior to excess occurring and customer has done X to prevent it from re-occurring.
A27: Statutory Payments | B27: ATO Payments are lodged and up to date | E27: ATO payments are lodged with arrangements in place | F27: ATO payments are not lodged and/or no arrangements are in place
B28: Customer has verbally confirmed that their statutory payments are currently up to date with ATO and do not need to provide documentation to confirm this due to X. | E28: Customer is currently in arrears with their ATO obligations however a plan has been negotiated with X document provided to confirm that the plan is in place and up to date. This was originally caused by X and customer is doing X to ensure it does not happen again. | F28: Customer is currently in arrears with their ATO obligations though non-payment/non-lodgement. This has happened due to X and the customers plan is to do X to rectify it.
B29: Customer is currently up to date with ATO and this has been verified by X document dated X
A30: Financial Management | B30: Financials are prepared by accountant and up to date. Financial data is regularly monitored through preparation of management reports (eg cashflows, aged debtors/creditors). Internal accountant / bookkeeper used . | D30: Financials are prepared by accountant and up to date. Uses proven accounting system and a registered accountant. | E30: No financial information is available. Accountant prepared financials are not available. Business is insolvent, under administration or clearly in distress .
B31: Customer is able to provide X documents to verify their financial position for period X. This information is reviewed weekly/fortnightly/monthly to monitor the business performance and has been prepared by their internal bookkeeper/accountant. | D31: Customer has provided X document to verify their financial position for X period. The customer uses X software for their accounting and their figures were prepared by X accountant. | E31: Customer has only been able to present X information to verify their financial position. This document provides X information and is relevant to the application due to X. | F31: No financial information is able to be provided by customer X due to X.
A32: Credit History | B32: Clear Credit Check (No adverse credit check as per credit policy) | E32: Adverse Credit Check but defaults are paid. | F32: Adverse credit check (unpaid defaults, judgements) . Current NAB eCRS is above 21.
B33: Customer Xs credit check is clear of any adverse listing and there is no evidence of excess enquiries. | E33: Customer X’s credit check has revealed paid default of X with X on X date. Customer has advised that this is due to X and it was paid within X days. | F33: Customer X’s credit check has revealed unpaid default of X with X on X date. Customer has advised that this is due to X and X is being done to address it.
B34: Customer Xs credit check is clear of any adverse but there have been a number of enquiries which is due to X.
B35: Customer Xs credit check shows paid defaults of X which was due to X. This was X amount on X date with X provider.
A36: Business Risks | B36: Customer understands the risks within their business
B37: Customer has advised that the biggest risk/s to their business and industry are X.
A38: Risk Cover | B38: Customer has appropriate risk cover in place
B39: Customer has X insurance in place to mitigate their personal/business X risk.
B40: Customer doesn’t have any insurance in place and has no interest in obtaining cover
B41: Customer doesn’t have any insurance in place and has been referred to a specialist for advice.
A43: Purpose
A45: This guide provides Bankers with key information and guidance as to the commentary that is to be provided to support the risk grade recorded against a customer Business lending application.
B47: VERY LOW | C47: LOW | D47: MEDIUM | E47: HIGH | F47: VERY HIGH
A48: Attributes | B48: VL | C48: L | D48: M | E48: H | F48: VH
D49: Working capital | E49: Debt Restructure | F49: Debt consolidation to manage financial distress
D50: Customer is seeking funding of $X for X that has been identified as a working capital need. This has been driven by X cash driver. The trend of this cash driver is X and was due to X. Funding table has been constructed as per X. Product X has been chosen due to X reason. The term is X due to X. | E50: Customer X is seeking to restructure their current debt due to X from NAB/Non-NAB facilities. This was prompted by X. This will see $X facility X. Funding table has been constructed as per X. Product X has been chosen due to X reason. The term is X due to X. | F50: Customer X is seeking to restructure their current debt due to X from NAB/Non-NAB facilities. The current financial performance is stressed due to X which was prompted by X. This will see $X facility X. The compelling reason to accommodate this request is X. Funding table has been constructed as per X and shows X benefit. Product X has been chosen due to X reason and the term is X due to X.
D52: Refinance | E52: Funding to address unexpected cash shortfall and/or slow paying debtors | F52: Refinance debt to manage financial distress
D53: Customer is seeking to refinance X facility from X institution. Customer originally borrowed for X reason and is seeking to move to NAB due to X. Funding table has been constructed as per X. Product X has been chosen due to X reason. The term is X due to X. | E53: Customer is seeking funding of $X for in X facility due to an unexpected cash shortfall. This has been caused by X and it is expected that this will last X duration. The customer was unaware of this shortfall due to X and it relates to X performance of X cash driver. Funding table has been constructed as per X. Product X has been chosen due to X reason and the term is X due to X. | F53: Customer is seeking to refinance X facility from X institution. Customer originally borrowed for X reason and is seeking to move to NAB due to X. Application with current financier was unable to be completed due to X. The compelling reason to continue with this transaction is X. Funding table has been constructed as per X. Product X has been chosen due to X reason. The term is X due to X.
E54: Customer is seeking funding of $X for in X facility due to slow paying debtors. Normal terms are X and X customer/s have not met this arrangement. The history of X customer is X. It is expected that the monies will be collected by X. The customer was unable to see this issue coming due to X. Funding table has been constructed as per X. Product X has been chosen due to X reason and the term is X due to X.
D56: Buy Business or Fund Renovations to business | F56: Clearing ATO Arrears
D57: Customer is seeking funding for X purchase/renovation. The motivation for this is X and it will have the effect of X. The risk of doing this is X and the benefits of doing it are X. Funding table has been constructed as per X. Product X has been chosen due to X reason. The term is X due to X. | F57: Customer X is seeking $X to payout ATO arrears. A payment plan could not be secured due to X but the transaction is worth our support due to X. Funding table has been constructed as per X. Product X has been chosen due to X reason. The term is X due to X.
D59: Finance/Purchase of any asset
D60: Customer is seeking to purchase X asset. The asset will be used for X and is new/replacement. Funding table has been constructed as per X. Product X has been chosen due to X reason. The term of the loan is X due to <lease term/X> .
A63: Serviceability
A65: This guide provides Bankers with key information and guidance as to the commentary that is to be provided to support the risk grade recorded against a customer Business lending application.
B67: VERY LOW | C67: LOW | D67: MEDIUM | E67: HIGH | F67: VERY HIGH
B68: VL | C68: L | D68: M | E68: H | F68: VH
B69: Debt Servicing Cover Ratio is >3.01 x | C69: Debt Servicing Cover Ratio is 1.51>=3.0 x | D69: Debt Servicing Cover is Ratio is 1.01 >=1.50 x | E69: Debt Servicing Cover Ratio is 0.51 > 1.0x | F69: Debt Servicing Cover Ratio is <= 0.50 x
B70: The debt servicing cover ratio was calculated as X using X documents. | E70: The debt servicing cover ratio was calculated as X using X documents. | F70: The debt servicing cover ratio was calculated as X using X documents.
B72: AND | E72: AND | F72: AND
B74: Concentration Risk | E74: Concentration Risk | F74: Concentration Risk
B75: This is considered normal performance for customer and there is no concentration risk for suppliers or customers. | E75: This is considered normal performance for customer and there is no concentration risk for suppliers or customers. | F75: This is considered normal performance for customer and there is no concentration risk for suppliers or customers.
B76: There is a supplier/customer concentration risk of over 25% due to X which is mitigated by X. | E76: There is a supplier/customer concentration risk of over 25% due to X which is mitigated by X. | F76: There is a supplier/customer concentration risk of over 25% due to X which is mitigated by X.
B78: Performance | E78: Performance | F78: Performance
B79: Performance is considered normal with no commentary needed. | E79: Performance is considered normal with no commentary needed. | F79: Performance is considered normal with no commentary needed.
B80: This performance was due to X and is not considered normal performance. Normal performance would be X | E80: This performance was due to X and is not considered normal performance. Normal performance would be X | F80: This performance was due to X and is not considered normal performance. Normal performance would be X
B82: Seasonality | E82: Seasonality | F82: Seasonality
B83: The customers trading cycle is not considered seasonal. | E83: The customers trading cycle is not considered seasonal. | F83: The customers trading cycle is not considered seasonal.
B84: The customer experiences X in their income on a seasonal basis which has X effect. | E84: The customer experiences X in their income on a seasonal basis which has X effect. | F84: The customer experiences X in their income on a seasonal basis which has X effect.
E86: Asset Sale | F86: Asset Sale
B87: . | E87: Asset sale of X will reduce debt and bring the DSC to X. | F87: Asset sale of X will reduce debt and bring the DSC to X.
E89: Assumptions | F89: Assumptions
E90: This was based on X assumptions and changes of X to the customers income/expenses position. | F90: This was based on X assumptions and changes of X to the customers income/expenses position.
A93: Statement of Position
A94: This guide provides Bankers with key information and guidance as to the commentary that is to be provided to support the risk grade recorded against a customer Business lending application.
B96: VERY LOW | C96: LOW | D96: MEDIUM | E96: HIGH | F96: VERY HIGH
B97: VL | C97: L | D97: M | E97: H | F97: VH
B98: Net Worth Ratio (Risk Adjusted) is >2.01x | C98: Net Worth Ratio (Risk Adjusted) is 1.51x >= 2.0x | D98: Net Worth Ratio (Risk Adjusted) is +1.26x>=1.50 x | E98: Net Worth Ratio (Risk Adjusted) is 1.01x >= 1.25x | F98: Net Worth Ratio (Risk Adjusted) is < 1.0x
B99: Customer’s personal/business SoP has been used to calculate a ratio of X. This includes X main assets of material value that are confirmed by X that could be readily sold in the current market. The ratio and dollar value of these assets & liabilities is an appropriate representation of the customers risk position. | E99: Customer’s personal/business SoP has been used to calculate a ratio of X. This includes X main assets of material value that are confirmed by X that could be readily sold in the current market. This ratio is considered X for the customer’s life stage/life events. | F99: Customer’s personal/business SoP has been used to calculate a ratio of X. This includes X main assets of material value that are confirmed by X that could be readily sold in the current market. This ratio is considered X for the customer’s life stage/life events and the dollar value of these assets and liabilities is an appropriate/nonappropriate representation of the customer’s position.
E100: Customer’s personal/business SoP has been used to calculate a ratio of X. This includes X main assets of material value that are confirmed by X that could be readily sold in the current market. The dollar value of these assets & liabilities is an appropriate/non-appropriate representation of the customer’s position.
A103: Security
A104: This guide provides Bankers with key information and guidance as to the commentary that is to be provided to support the risk grade recorded against a customer Business lending application.
B106: VERY LOW | C106: LOW | D106: MEDIUM | E106: HIGH | F106: VERY HIGH
A107: Attributes | B107: VL | C107: L | D107: M | E107: H | F107: VH
A108: Non Commercial Real Estate | C108: Lending Category A, B | D108: Lending Category C,D,E | E108: Lending Category F, G, H, I , J
A109: Commercial Real Estate | C109: Lending Category A, B | D109: Lending Category C,D | E109: Lending Category E, F, G, H, I , J
C110: Security will be Lending Category X with structure X proposed. There is no risk factors within the valuation of these securities that require comment. | D110: Security will be Lending Category X with structure X proposed. There are no risk factors within valuation of these securities that require comment. It is expected that the facilities will be category D by X.
C111: Security will be Lending Category X with structure X proposed. There is no risk factors within the valuation of these securities that require comment however X has been noted as a concentration risk for our securities. | D111: Security will be Lending Category X with structure X proposed. Valuation has identified X risk factors which are mitigated by X. It is expected that the facilities will be category D by X

Sheet Change Log (hidden)
A1: No | B1: Date | C1: Version | D1: Tab | E1: Change Requested | F1: Requestor | G1: Approver | H1: Implementor | I1: Implemented
A2: 1 | B2: 2016-09-29 | C2: 1 | D2: ALL | E2: Design
A3: 2 | B3: 2016-10-11 | C3: 1 | D3: ALL | E3: Feedback from Brokers during first round of testing | F3: N/A | G3: N/A
A4: 3 | B4: 2017-01-24 | C4: 1 | D4: Financial Inputs | E4: Allow for Actual Repayment to be incorporated when the facility is Leasing. Change calc in Q1390 to be ...,IF(OR(D1390=Lookups!$C$8,D1390=Lookups!$C$13… and then copied down. | F4: John Longo | G4: John Longo | I4: Yes
A5: 4 | B5: 2017-02-06 | C5: 1 | D5: Lookups | E5: Two inconsistencies between Banker and Broker tools. Home loan affordability rate (broker tool reset from 7.4% to 7.25%, and Home Loan Loading rate reset to 0% | F5: Kevin O'Sullivan | G5: John Longo | I5: Yes
A6: 5 | B6: 2017-02-13 | C6: 1 | D6: Security | E6: 1. Delete (NAB ONLY) texts 2. Amend ‘Existing Secured Lending*’ to read ‘Existing NAB Secured Lending*’ 3. Amend ‘Proposed New Lending*’ to read ‘Proposed NAB New Lending*’ | F6: Amanda Phiri | G6: John Longo | I6: Yes
A7: 6 | B7: 2017-02-15 | C7: 1.1 | D7: Lookups | E7: Increment tax threshold from 37001 - 80,000 to 37,001 - 87,000 | F7: Trent Smith | G7: John Longo | I7: Yes
A8: 7 | B8: 2017-02-16 | C8: 1.2 | D8: Lookups | E8: Change medicare threshold from $20,542 to $21,335.01 as an interim fix for the government changes | F8: Trent Smith | G8: Trent Smith | I8: Yes
A9: 8 | B9: 2017-02-17 | C9: 1.2 | D9: Financial Inputs | E9: Error in cell E1546. It had originally been copied down from cell E1517 but some of the lookup references had not been locked. | F9: Trent Smith | G9: Trent Smith | I9: Yes
A10: 9 | B10: 2017-02-22 | C10: 1.3 | D10: Financial Inputs | E10: Added formula to ensure that the "Last Modified Date" is actually referenced from the last date in the change log. It was actually a static data entry | F10: Amanda Phiri | G10: Amanda Phiri | I10: Yes
A11: 10 | B11: 2017-03-08 | C11: 1.4 | D11: Pre-qualifying | E11: DCA Escalation section will become visible on the Broker Tool This section will be renamed from ‘DCA Escalation Guidance’ to ‘NAB USE ONLY’ The following text will be removed from the section ‘Please refer to policy for all DCA escalation’ | F11: Amanda Phiri | G11: Trent Smith | I11: Yes
A12: 11 | B12: 2017-03-08 | C12: 1.4 | D12: Pre-qualifying | E12: Added missing formula to error trap for above change (10) in cell D203 =IF(OR(G197="Yes",G198="Yes",G199="Yes"),"Care: escalation to Level 3 DCA is required","") | F12: Amanda Phiri | G12: Trent Smith | I12: Yes
A13: 12 | B13: 2017-04-07 | C13: 1.5 | D13: Information Requirements | E13: Add Fast Track for Brokers (term lending <= $1 million) | F13: Lily Lam | G13: Trent Smith | I13: Yes
A14: 13 | B14: 2017-04-07 | C14: 1.5 | D14: Information Requirements | E14: Where Management Rights selected "Pause, Discuss with BDM" to apply | F14: Lily Lam | G14: Trent Smith | I14: Yes
A15: 14 | B15: 2017-04-07 | C15: 1.5 | D15: Information Requirements | E15: Where Fast Track is selected: Income Verification is • 1 Year management accounts from an accounting package covering 12 months trading income and no older than 6 months. • 1 Year Personal Tax Returns (same narrative as existing) • Retain Income Verification • Minimum 1 Business Activity Statement (BAS) no older than 4 months old. | F15: Lily Lam | G15: Trent Smith | I15: Yes
A16: 15 | B16: 2017-04-07 | C16: 1.5 | D16: Information Requirements | E16: Added in field for capturing Broker BUID for Fast Track | F16: Lily Lam | G16: Trent Smith | I16: Yes
A17: 16 | B17: 2017-04-07 | C17: 1.5 | D17: Security + High Risk Postcodes | E17: Added in High risk Postcodes tab Added in additional Postcode field in the Securities tab which will generate a "pause, discuss with BDM" if a high risk postcode is entered | F17: Lily Lam | G17: Trent Smith | I17: Yes
A18: 17 | B18: 2017-04-28 | C18: 1.5 (4) | D18: Lookups | E18: Updated Servicing table where Loan term increases for Fast Track applications: Resi securities: - 30y Cat D - P/I or I/O repayment options remain - 15y Cat E - P/I only Commercial securities: - 20y Cat D - P/I or I/O repayment options remain - 15y Cat E - P/I only | F18: Lily Lam | G18: Trent Smith | I18: Yes
A19: 18 | B19: 2017-04-28 | C19: 1.5 (4) | D19: Lookups + Security LBVR LookUP Table | E19: As above, need to reflect the Repayment options (P/I or I/O) according to LCC. In Security LBVR lookup Table, inserted a table to assign a value against LCC | F19: Lily Lam | G19: Trent Smith | I19: Yes
A20: 19 | B20: 2017-04-28 | C20: 1.5 (4) | D20: Financial Inputs | E20: In Liabilities (Bank Facilities & Other Debts) section, added in ability for "Interest Type" to be dynamic and provide the repayment types options according to LCC. | F20: Lily Lam | G20: Trent Smith | I20: Yes
A21: 20 | B21: 2017-05-09 | C21: 1.6 | D21: Financial Inputs | E21: Cell I1406 (Existing Total Liabilities) needs to revert to $1 if the total liabilities is actually $0. | F21: Trent Smith | G21: Trent Smith | I21: Yes
A22: 21 | B22: 2017-05-09 | C22: 1.6 | D22: Pre-qualifying | E22: NWR and DSC formulas were incorrect. Have replaced both formula with a lookup that provides accurate outcome and easier maintenance. | F22: Trent Smith | G22: Trent Smith | I22: Yes
A23: 22 | B23: 2017-05-12 | C23: 1.6 | D23: Information Requirements | E23: Add "My Bank" requirement for Fast track as follows "Confirmation that Customer meets or will meet NAB's My Bank Requirements" | F23: Lily Lam | G23: Trent Smith | I23: Yes
A24: 23 | B24: 2017-05-12 | C24: 1.6 | D24: Dropdown Menu | E24: Added a trigger to determine whether Fast Track applies for the various loan purposes eg Fast Track option would not be available if broker selected "clearing ATO arrears" as a loan purpose. | F24: Lily Lam | G24: Trent Smith | I24: Yes
A25: 24 | B25: 2017-05-18 | C25: 1.6 | D25: Information Requirements | E25: Amend requrements for Fast Track applications: • for Application Form, addition of Customer Consents and Statement of Position as an option • for Living Expense Calculator, only required for home loans • for Tax Returns and Personal income verification requirements [required where entered into financial inputs and for home loans] • for BAS, [not required if Accountant prepared year end financials] • remove Bank Statements requirements, Include only as a requirement for Refinance applications purpose (for loan account only) | F25: Trent Smith | G25: Trent Smith | I25: Yes
A26: 25 | B26: 2017-05-18 | C26: 1.6 | D26: Information Requirements | E26: Amend Fast Track acceptable securities - not accepteable (nil LVR extended) Non-Owner Occ Inner City Apartments, Serviced Apartments, Hamilton Island, Student Accommodation resulting in | F26: Trent Smith | G26: Trent Smith | I26: Yes
A27: 26 | B27: 2017-05-18 | C27: 1.6 | D27: Pre-qualifying | E27: Amend requrements for Fast Track applications: • Length of Time in Business - - New Venture and < 1 Year - retain Very High (not accepted for Fast Track) - < 2 Years amended to 1 to 2 Years and Risk Grade changed from High to Medium • 'black out' Bank Account Conduct - set at Medium for all applications (unable to remove | F27: Trent Smith | G27: Trent Smith | I27: Yes
A28: 27 | B28: 2017-06-16 | C28: 1.7 | D28: Pre-qualifying | E28: Addition of drop down box for credit approval relevant to fast track | F28: Trent Smith | G28: Trent Smith | I28: Yes
A29: 28 | B29: 2017-06-16 | C29: 1.7 | D29: Information Requirements | E29: Correction of spelling - vairance to variance | F29: Trent Smith | G29: Trent Smith | I29: Yes
A30: 29 | B30: 2017-06-16 | C30: 1.7 | D30: Lookups | E30: Change rate on personal cards from 2.5 to 3% | F30: Trent Smith | G30: Trent Smith | I30: Yes
A31: 30 | B31: 2017-08-07 | C31: 1.8 | D31: Pre-qualifying | E31: MSBCA Mitigation - Very High Risk adjustment permitted. | F31: Trent Smith | G31: Trent Smith | I31: Yes
A32: 31 | B32: 2017-08-27 | C32: 1.8 | D32: Pre-qualifying | E32: MSBCA Mitgation - DSC < 1.0x based on Serviceability Final Risk Grade in lieu of Auto Assigned Risk Grade. Where Banker performs an Adjustment of Serviceability and Medium, represents greater 1.0x DSC. | F32: Trent Smith | G32: Trent Smith | I32: Yes
A33: 32 | B33: 2017-08-27 | C33: 1.8 | D33: Information Requirements | E33: Add 'Working Capital - Simple Trade Finance' loan purposes, add information requirement for Simple Trade Finance Job Aid. | F33: Trent Smith | G33: Trent Smith | I33: Yes
A34: 33 | B34: 2017-08-27 | C34: 1.8 | D34: Financial Inputs | E34: Add Working Capital - Simple Trade Finance loan purpose. Add 'Trade' in Business Loan facilities | F34: Trent Smith | G34: Trent Smith | I34: Yes
A35: 34 | B35: 2017-11-21 | C35: 1.9 | D35: Financial Inputs | E35: 1 – Update Borrower risk grade matrix to limit rating to Medium where risk rating adjustments are made. 2 – Update Taxi Bank Value to 0% | F35: Trent Smith | G35: Trent Smith | I35: Yes
A36: 35 | B36: 2017-12-01 | C36: 2 | D36: Information Requirements | E36: Updated ‘ Loan Purpose’ drop down options: Renamed: "Refinance " -> Refinance owner occupied (excl. comm investment/ development) Deleted: "Purchase Asset – Property/Other" Added: Purchase Asset – Owner Occupied Property/Equipment Finance Added: Purchase Asset/Refinance – Commercial Investment Property, Commercial/Residential Development Property | F36: Trent Smith | G36: Trent Smith | H36: Kang Chai Lim | I36: Yes
A37: 36 | B37: 2017-12-01 | C37: 2 | D37: Information Requirements | E37: Updated InformationR (macro) to display Information requirements for updated loan options | F37: Trent Smith | G37: Trent Smith | H37: Kang Chai Lim | I37: Yes
A38: 37 | B38: 2017-12-01 | C38: 2 | D38: Financial Inputs | E38: Updated Loan Purpose selections inline with above | F38: Trent Smith | G38: Trent Smith | H38: Kang Chai Lim | I38: Yes
A39: 38 | B39: 2017-12-01 | C39: 2 | D39: Pre-qualifying Tool | E39: Update Security Risk Rating outcomes: Cat E to rating of Medium Added logic to check: If Loan purpose selected on ‘Information Requirements’ tab = ‘Purchase Asset/Refinance – Commercial Investment Property, Commercial/Residential Development Property’ selected And Cat E Then rating of High | F39: Trent Smith | G39: Trent Smith | H39: Kang Chai Lim | I39: Yes
A40: 39 | B40: 2017-12-07 | C40: 2.1 | D40: Information Requirements | E40: Updated ‘ Loan Purpose’ drop down options: Renamed: Debt Consolidation to managed financial distress -> Debt consolidation to manage financial distress Renamed: Purchase Asset – Owner Occupied Property/Equipment Finance -> Purchase Asset – Owner Occupied Property / Other Assets | F40: Trent Smith | G40: Trent Smith | H40: Kang Chai Lim | I40: Yes
A41: 40 | B41: 2017-12-07 | C41: 2.1 | D41: Information Requirements | E41: Updated InformationR (macro) to reflect above | F41: Trent Smith | G41: Trent Smith | H41: Kang Chai Lim | I41: Yes
A42: 41 | B42: 2017-12-07 | C42: 2.1 | D42: Information Requirements | E42: Updated information required for "Purchase Asset/Refinance –Commercial Investment Property, Commercial/Residential Development Property". 6 Months Statements of Non-Nab Transaction & Loan Accounts -> 6 Months Statements of Non-Nab Transaction & Loan Accounts (if applicable, include statements for facilities being refinanced) (Now separate to "Purchase Asset – Owner Occupied Property / Other Assets") | F42: Trent Smith | G42: Trent Smith | H42: Kang Chai Lim | I42: Yes
A43: 42 | B43: 2017-12-07 | C43: 2.1 | D43: Financial Inputs | E43: Amend "Finance/Purchase of Any Asset" narrative to match the Loan Purposes selected: Purchase Asset – Owner Occupied Property/Equipment Finance Purchase Asset/Refinance – Commercial Investment Property, Commercial/Residential Development Property | F43: Trent Smith | G43: Trent Smith | H43: Kang Chai Lim | I43: Yes
A44: 43 | B44: 2017-12-07 | C44: 2.1 | D44: Pre-qualifying Tool | E44: Remove broken hyperlink in G84 (near to Purpose) | F44: Trent Smith | G44: Trent Smith | H44: Kang Chai Lim | I44: Yes
A45: 44 | B45: 2017-12-07 | C45: 2.1 | D45: Pre-qualifying Tool | E45: Update Security Risk Rating (cell I155) for "SMSF Loan Purpose Security" for Cat E | F45: Trent Smith | G45: Trent Smith | H45: Kang Chai Lim | I45: Yes
A46: 45 | B46: 2017-12-07 | C46: 2.1 | D46: Pre-qualifying Tool | E46: Update Risk Grade Summary (cell M86): change to upper case for Purpose | F46: Trent Smith | G46: Trent Smith | H46: Kang Chai Lim | I46: Yes
A47: 46 | B47: 2017-12-21 | C47: 2.2 | D47: MSBCA Calculator 2 | E47: Changed cell H11 to use the adjusted Borrower grade calculation (when applicable), so the Overall Risk Grade will now calculate correctly | F47: Trent Smith | G47: Trent Smith | H47: Kang Chai Lim | I47: Yes
A48: 47 | B48: 2017-12-21 | C48: 2.3 | D48: Financial Inputs | E48: Corrected ranges to display when "Buy Business or Fund Renovations to Business" selected | F48: Trent Smith | G48: Trent Smith | H48: Kang Chai Lim | I48: Yes
A49: 48 | B49: 2017-12-22 | C49: 2.4 | D49: MSBCA Calculator 2 | E49: - Updated cell H11 to use EITHER Auto Assigned, or Adjusted value - Updated cells D78, D79, H78, H79 to include logic to prevent NTB cust from getting better than Medium | F49: Trent Smith | G49: Trent Smith | H49: Kang Chai Lim | I49: Yes
A50: 49 | B50: 2018-10-11 | C50: 2.6 | D50: Financial Inputs | E50: Updated Affordability Repayment Calculations, such that credit cards were based off rates in lookups & International, Trade Fiance is now calculated on a IO basis | F50: Trent Smith | G50: Trent Smith | H50: Chanuka Perera | I50: Yes
A51: 50 | B51: 2018-10-11 | C51: 2.6 | D51: Security LBVR LookUP Table | E51: Updated the LBVR table such that the Vlookups used to idenitfy Risk grades accurately takes the correct value to the 5th decimal | F51: Trent Smith | G51: Trent Smith | H51: Chanuka Perera | I51: Yes
A52: 51 | B52: 2018-10-12 | C52: 2.6 | D52: Lookups | E52: Amended Personal Credit Cards rate from 3.0% to 3.8%, Added a new facility, Commercial Credit Cards which mirrors Personal Credit Cards. Bus Lending renamed so that Trade & CC are removed from titles. International retitled to Internatioanl, Trade Finance with IO of 8.5%. Margin Lending changes to IO with 8.5%. Updated Tax rates bringing 3rd tax bracket up to 90K from 87K and moving tax rate of 5th Tax bracket from 47% to 45%. Medicare levy limit increased to 21980 and Budget Repair levy reduced to 0% | F52: Trent Smith | G52: Trent Smith | H52: Chanuka Perera | I52: Yes
A53: 52 | B53: 2018-11-23 | C53: 2.7 | D53: MSBCA Calculator 2 | E53: Two specific exceptions have been for borrower grading Risk grade for ‘Industry experience = Very Low AND Risk grade for ‘Length of time in business’ = Low AND Risk grade for ‘Bank account conduct’ = Medium AND Risk grade for ‘Statutory obligations’ = Medium AND Risk grade for ‘Financial management’ = Low AND Risk grade for ‘Credit history’ = Medium OR IF: Risk grade for ‘Industry experience = Low AND Risk grade for ‘Length of time in business’ = Very Low AND Risk grade for ‘Bank account conduct’ = Medium AND Risk grade for ‘Statutory obligations’ = Medium AND Risk grade for ‘Financial management’ = Low AND Risk grade for ‘Credit history’ = Medium Will now result in in a Low result | F53: Trent Smith | G53: Trent Smith | H53: Chanuka Perera | I53: Yes
A54: 53 | B54: 2019-07-23 | C54: 2.8 | D54: Lookups | E54: Home loan rate to 5.5% HL buffer to 2.5% | F54: Trent Smith | G54: Trent Smith | H54: Chanuka Perera | I54: Yes
A55: 54 | B55: 2019-07-23 | C55: 2.8 | D55: Lookups | E55: Amend ‘Personal Credit Card’ to ‘Personal Credit Card/Personal Overdraft’ | F55: Trent Smith | G55: Trent Smith | H55: Chanuka Perera | I55: Yes
A56: 55 | B56: 2019-08-26 | C56: 2.9 | D56: Pre-qualifying Tool | E56: Added Is ATO Arrears > $5k without arrangement or > $50k with arrangement? Test on Pre qualifying Tool tab | F56: Trent Smith | G56: Trent Smith | H56: Chanuka Perera | I56: Yes
A57: 56 | B57: 2019-12-16 | C57: 3 | D57: Lookups | E57: Update Business Affordability Rates in line with Credit Policy. | F57: Trent Smith | G57: Trent Smith | H57: Graeme Chang | I57: Yes
A58: 57 | B58: 2020-06-10 | C58: 3.1 | D58: Financial Inputs | E58: - Projections - update Taxable Income calculation to deduct expenses, change in calculated Taxation Expense - Input of Manual DSC Serviceability Risk Grade option (calculated DSC takes priority where both Input) - High Risk Post Code listing updated for Fast Track - Rental income shading increased from 20% to 30% per Home Lending credit policy change | F58: Trent Smith | G58: Trent Smith | H58: Nathan Trika | I58: Yes
A59: 58 | B59: 2020-11-24 | C59: 3.2 | D59: Financial Inputs | E59: - Affordability rate updates - HL floor from 5.50% to 4.95% and BL from 7.25% to 5.75%; - Individual taxation rates updated to 2020 and medicare updated. - Rental shading amended frim 30% to 20% | F59: Trent Smith | G59: Trent Smith | H59: Ben O'Meara | I59: Yes
A60: 59 | B60: 2021-03-31 | C60: 3.3 | D60: Dropdown Menu | E60: Removed Fast Track Lending from the industry dropdown via marked the "Fast Track available" flag to No for all loan purposes. For record, the column prior to the change are shown below. | F60: Trent Smith | G60: Trent Smith | H60: Liang Chen | I60: Yes
A61: 60 | B61: 2021-04-16 | C61: 3.4 | D61: Lookups | E61: Fast Track facility calculations - Business Options Loan (P&I ≤ 30 years), Fast Track BOL (Interest Only) - Resi [default 30 year term], Fast Track BOL (Interest Only) - Comm [default 20 year term]. | F61: Trent Smith | G61: Trent Smith | H61: Trent Smith | I61: Yes
A62: 61 | B62: 14/092021 | C62: 3.5 | D62: Financial Inputs | E62: Conditional formatting for negative income and percentages - CCA feedback. | F62: Trent Smith | G62: Trent Smith | H62: Trent Smith | I62: No
A63: 62 | B63: 2021-09-22 | C63: 3.6 | D63: Dropdown Menu Lookups MSBCA Calculator 2 MSBCA Framework Inputs | E63: Changed "industry experience" [Less than 2 years] to [Less than 1 year] "Time in business" from [2-5 years] to [1-5 years] Removed Financial Information questions from MSBCA framework Adjust tax rate for Small Business from 27.5% to 26% Fixed manual DSC override Added minimum commentary tab Home lending buffer 2.50% to 3.0% | F63: Trent Smith | G63: Trent Smith | H63: Tom Sheeran | I63: No
A64: 63 | B64: 2021-10-20 | C64: 3.6 | D64: Financial Inputs Pre-Qualifying Tool | E64: Added "Application Type" dropdown to cover paired lending scenarios. This will block ability to capture business income and hide debt servicing related sections. Manual DSC will unlock on PQT page. Amended affordability rate buffer to 3.00% | F64: Trent Smith | H64: Tom Sheeran | I64: Yes
A65: 64 | B65: 2022-05-10 | C65: 3.7 | D65: Lookups | E65: Amend DSC Risk Grade range value from 0.50 to 0.00, allowing Very High Serviceability Risk Grade value to surface where calculated DSC less than 0.501x | F65: Trent Smith | G65: Trent Smith | H65: Trent Smith | I65: Yes
A66: 65 | B66: 2022-07-25 | C66: 3.8 | D66: Lookups | E66: Update lookup tab rates in column E to reflect affordability rate changes as per below request from Trent Smith: | F66: Trent Smith | G66: Trent Smith | H66: Luke Boston | I66: Yes
A67: 66 | B67: 2022-08-25 | C67: 3.9 | D67: Lookups | E67: Update lookup tab rates in column E to reflect affordability rate changes as per below request. Update small business tax rate from 26% to 25%. Note this is defined in lookups tab, cell L12. To get from company tax rate of 30% to small business tax rate of 30%, enter the small business tax rate / company tax rate, i.e. 0.30/0.25 = 0.8333 | F67: Trent Smith | G67: Trent Smith | H67: Luke Boston | I67: Yes
A68: 67 | B68: 2022-11-02 | C68: 4 | D68: Lookups | E68: Update lookup tab rates in column E to reflect affordability rate changes as per below request. | F68: Trent Smith | G68: Trent Smith | H68: Luke Boston | I68: Yes
A69: 68 | B69: 2023-06-22 | C69: 4.1 | D69: Lookups | E69: Updated affordability rate to 10% and 9.4% respectively for business loans and leasing. | F69: Trent Smith | G69: Trent Smith | H69: Luke Boston | I69: Yes
A70: 69 | B70: 2024-02-14 | C70: 4.2 | D70: Lookups | E70: Updated affordability rate to 10.25% and 9.65% respectively for business loans and leasing. | F70: Trent Smith | G70: Trent Smith | H70: Luke Boston | I70: Yes
A71: 70 | B71: 2024-07-01 | C71: 4.3 | D71: Lookups Tax rate parameter updates | E71: Updated lookups tab to align tax rates to https://www.ato.gov.au/about-ato/new-legislation/in-detail/individuals/individual-income-tax-rates-and-threshold-changes | F71: Trent Smith | G71: Trent Smith | H71: Luke Boston | I71: Yes
A72: 71 | B72: 2025-01-17 | C72: 4.4 | D72: Financial Inputs & Lookups | E72: Rename Leasing to Equipment Finance. For Business Lending Facilities - change repayment methodology to be the higher of Interest Rate +2% vs Floor Rate of 7.85%. Create new facilities - Bank Guarantee (Cat. A-D), Bank Guarantee (E-J), QuickBiz Term Loan, NAB Flex Flow Loan, Business Options IO/Combination Loan (Cat. A - D Residential), Business Options IO/Combination Loan (Cat A – D Comm/Other), Business Options IO/Combination Loan (Cat. E - J) | F72: Trent Smith | G72: Trent Smith | H72: Tony Poon | I72: Yes
A73: 72 | B73: 2025-03-14 | C73: 4.5 | D73: Financial Inputs & Lookups | E73: Update Application Type toggle labels - MSBCA and Non-MSBCA Debt Servicing to cater for use of ELP DST. MSBCA Framework - allow Final Overall Risk Grade to populate in circumstances where Auto Assigned Overall Risk Grade not complete, caters for applications assessed using projections only (i.e. not historical DSC can be calculated) | F73: Trent Smith | G73: Trent Smith | H73: Tony Poon | I73: Yes
A74: 73 | B74: 2025-04-07 | C74: 4.6 | D74: Pre-qualifying Tool | E74: Amend ATO arrears question following update to LEN020 threshold (no longer $5k and $50k). | F74: Trent Smith | G74: Trent Smith | H74: Trent Smith
A75: 74
A76: 75
A77: 76
A78: 77
A79: 78
A80: 79
A81: 80
A82: 81
A83: 82
A84: 83
A85: 84
A86: 85
A87: 86
A88: 87
A89: 88
A90: 89
A91: 90
A92: 91
A93: 92
A94: 93
A95: 94
A96: 95
A97: 96
A98: 97
A99: 98
A100: 99
A101: 100

Sheet Eli (hidden)
A1: Feedback Eli (previous Westpac banker, has seen the risks and mitigants)
A3: How long would this take?
A4: I would need to test a scenario through this regarding how long this would take?
A5: LVR
A6: Calculates LVR manually
A8: Security Table - would be helpful if we're trying to mirror what they have somewhere else (trying to bring someone across and mirror, and trying to mirror what the bank can use). It would not be helpful for the straight forward conversation
A11: Positives
A12: From a credit point of view - it's all there
A14: You're aksing me to do your job
A16: Brokers will ask - is it worth my while? Why am I doing all this work for this, when I can do Resi? How much work is a Resi broker trying to do to win this business?
A17: It will become a long process of back and forth
A18: The Tool is good ffor someone who has been in this space. Someone starting in business, would see this as a nightmare
A19: Client must know Broker understands
A20: Will this deal service and do I have enough security
A21: Capability - Resi to become commercial (too complicated)
A22: Training - basic financials analysis (i.e Leases are off balance sheet but are required in the Tool) *GOLD
A23: End result needs to be positive
A24: Training preference - online training (keep going back and forth over training) - experienced this when doing a book keeping course online
A25: 2 hour live session (combination of face to face and online)
A26: Accreditation - why do you want this? Show us the need? If we want quality coming through. Otherwise it's a waste of our resources and their time
A27: Someone to talk to who knows the policy (I have a contact point and my customer has one)
A28: Conv Toolpad - Asking questions is one thing but how you ask the questions makes the difference.
A29: Conv Toolpad - It's good but if it doesn’t come from the heart, it's not useful
A30: Conversation Training - Business owners talking about their business. Talking about good, bad and ugly with their bank - talking about what's important to them. Let the business owners talk about - it will have much more impact. I.e. those who have life insurance//those who dont - those able to survive because a banker made them think about. "I have real stories"
A31: Make brokers understand these customers. Take the complication of "business" out of it *GOLD - when brokers say WHY should I do this work
A33: Collateral
A34: Risk appetite on a page - IMPORTANT AND GOOD "Policy on a page"
A35: Products feedback - Product Info - replace with why would you have this product. Link products to the purposes in the Tool. What has not worked well - "went to a financier display last week - not useful"
A36: Product information must be Direct, specific, what does my customer look like?
A37: Make it easy - GOLD
A38: Be consistent, don’t make it hard - GOLD

Sheet Sujil (hidden)
A1: Feedback Sujil (currently writes a few commercial deals)
A3: Length of time in business - give guidance on what we are asking for here
A4: DSC - uses this as a ratio
A5: When looking at resi/comm (if we are doing the resi, then most likely we'll do the commercial)
A6: Reading financials not a problem - do a lot of self employed
A7: Most of our deals are highly qualified (i.e referrals from Financial Planners); their deals don’t get knocked back
A8: How would this work with regard to BDM? Broker sending to the BDM OR a scenarios team (a preliminary/indicative review) OR send to a scenarios team
A9: Brokers like the ability to speak to a Credit Person. There are some things that the BDM can do and not - credit are the decision makers
A12: LVR
A13: Securities Table - "good idea"
A15: First impressions - when I first look it does look exhaustive
A16: How long?? A banker may take half an hour, a broker who does not do this regularly may take longer. Maximum time - we book in a client for one hour. I don’t want to spend more than an hour
A17: I do my servicing calculations when I'm with the customer. Normally send the information requirements prior
A18: WE NEED TO TRAIN THE SCENARIOS TEAM *DISCUSS WITH BC
A19: Conversations Toolpad - this will certainly help
A20: Minimum commentary requirements - "it comes down to the time". What NAB needs to make a decision should be prescribed to brokers
A21: Sometimes there is a gap between what the BDM says and "Credit Mgr". We should cut this step out
A22: Broker can even complete the commentary once they have left the client
A23: With commercial, we can never give out the rates - why??
A24: What about ongoing fees??
A25: "I find rates a challenge…ING rates are disclosed though for example". A benefit of the Tool would be to provide enough information to give an indicative priving
A27: Product Training - BDM delivering a training session (keep it simple)
A29: Training for role out - face to face sessions. I went to a Suncorp Commercial Broker Training Session (half a day) and a second follow up. It was enough but they were talking about "reading financials"
A30: The more experienced brokers were helping out the newer ones
A31: Follow up training and emails - case studies online
A32: Suncorp are making a bit dent
A34: Minimum Information Requirements - we like collecting information upfront. "I'd prefer that this is separate to the tool"
A36: Policy on a page - looks good to me
A37: Contact "BDM" and contact "Credit" - as long as the message is consistent by NAB
A39: Turnaround times - post submission - 3 days to unconditional (commercial valuation may take more time but atleast you have given unconditional)
A41: Products - the key things are 'Fees & Charges' and 'Interest Rates'
A42: Some pricing indication would be beneficial
A43: "GIVE ME ALL THIS INFORMATION, BEFORE I CAN PROVIDE YOU A RATE" - challenge

Sheet Broker Tool (not for use) (hidden)
M1: hide all these columns later
B3: Customer Profile | M3: hide later | O3: Mapping | P3: Notes | Q3: Notes
C5: Customer Status | D5: Existing | O5: transfer data to MSBCA Framework Inputs G34
C7: Industry Experience | D7: Less than 2 years | O7: transfer data to MSBCA Framework Inputs G38
C9: Length of time in Business | D9: Business operating 2-5 years | O9: transfer data to MSBCA Framework Inputs G45
C11: Bank Account Conduct | D11: - Bank accounts have history of excesses or arrears - Current arrears <$2k - Excess / arrears is within arrangement made with banker
C15: Statutory Obligations | D15: ATO not lodged and/or no arrangements are in place | O15: transfer data to MSBCA Framework Inputs G50
C18: Financial Management | D18: Financials are prepared by accountant and up to date. Uses proven accounting system and a registered accountant.
C23: Credit History | D23: Adverse Credit Check but defaults are paid | O23: transfer data to MSBCA Framework Inputs G58
C25: Borrower Risk Grade | D25: =IF('Pre-qualifying Tool'!I58="-","",VLOOKUP('Pre-qualifying Tool'!I58,'Dropdown Menu'!$B$11:$C$16,2,FALSE)) -> 
C27: Statement of Position | D27: Total Assets | F27: Total Liabilities | H27: Net Position
D28: 100000 | F28: 50000 | H28: =D28-F28 -> 50000 | O28: to Financial Inputs sheet K1359 and J1390
C30: Statement of Position Grade | D30: =IF('Pre-qualifying Tool'!I128="-","",VLOOKUP('Pre-qualifying Tool'!I128,'Dropdown Menu'!$B$11:$C$16,2,FALSE)) -> 
C32: Debt Servicing Table | D32: Total Income | F32: Total Expenses | H32: Serviceability
D33: 1000 | F33: 500 | H33: =D33-F33 -> 500 | O33: this adds into existing formula at Financial Inputs sheet G1459 & G1460
C35: Serviceability Grade | D35: =IF('Pre-qualifying Tool'!I105="-","",VLOOKUP('Pre-qualifying Tool'!I105,'Dropdown Menu'!$B$11:$C$16,2,FALSE)) -> 
C37: Overall Risk Grade | D37: =IF('Pre-qualifying Tool'!I186="-","",VLOOKUP('Pre-qualifying Tool'!I186,'Dropdown Menu'!$B$12:$C$16,2,FALSE)) -> 
B39: Deal details
C41: Loan Purpose | D41: Clearing ATO Arrears | M41: =VLOOKUP(D41,'Dropdown Menu'!P5:R15,3,FALSE) -> Yes | O41: This goes to Financial Inputs sheet according to selection made | P41: Working Capital | Q41: No security
P42: Refinance | Q42: No security
C43: Loan Required | E43: 7000 | O43: For some loan types there will be no security & LVR | P43: Buy Business or Fund Renovations to Business | Q43: Customer Contribution
M44: Cust Cont | N44: Loan Req | P44: Finance/Purchase of Any Asset | Q44: Customer Contribution
C45: Customer Contribution | E45: 5000 | M45: =IF(M41='Dropdown Menu'!$R$8,'Broker Tool (not for use)'!E45,0) -> 5000 | N45: =E43 -> 7000 | O45: We need to calculate both the security (if required) and customer contribution | P45: Debt Restructure | Q45: No security
P46: To Address Unexpected Cash Shortfall / Slow Paying Debtors | Q46: No security
C47: Loan to Bank Value (LBVR%) | F47: =IF(M41="No","",E43/N47) -> 0.5833333333 | N47: =IF(M41='Dropdown Menu'!$R$8,E43+E45,0) -> 12000 | O47: Calculated value of security | P47: Debt Consolidation to Manage Financial Distress | Q47: No security
P48: Refinance Debt to Manage Financial Distress | Q48: No security
C49: Industry | D49: Environmental Risk and the Nuclear Industry | M49: =IF(D49="","","DCA") -> DCA | N49: =IF(D49="","",VLOOKUP(D49,Industries!A3:B27,2,FALSE)) -> 2 | P49: Clearing ATO Arrears | Q49: Customer Contribution
C51: Specialised Inputs 1 | D51: A
C53: Specialised Inputs 2 | D53: C
C55: Specialised Inputs 3 | D55: D
C57: TEST | D57: =IF(F47<='Dropdown Menu'!J12,"Yes","Discuss BDM") -> Yes
C59: TEST | D59: =IF(AND(D57="Yes",D37="Yes"),"Yes","Discuss BDM") -> Discuss BDM
B62: Decision
C64: Does deal meet NAB Criteria?
C66: Commentary | D66: AUTO POPULATED
D73: FREE TEXT

Sheet JL LVR calc (hidden)
G3: Customer Deposit | H3: 10000
G4: Loan | H4: 30000
G5: M/V | H5: =H3+H4 -> 40000 | J5: Security type
G6: B/V | H6: =H5*K7 -> 28000 | J6: Resi | K6: 0.8
G7: LBV | H7: =H4/H6 -> 1.071428571 | J7: Commercial | K7: 0.7

Sheet MSBCA Calculator 2 (hidden)
D2: Auto | E2: M&SB Banker | G2: Credit Manager | H2: FINAL
A3: Grading Inputs | B3: MSBCA Risk Framework | D3: Assigned | E3: Initial | F3: Adjusted | G3: Overridden
B4: Borrower
B5: Time in Industry | C5: Man | D5: ='Pre-qualifying Tool'!I39 -> - | E5: ='Pre-qualifying Tool'!J39 -> 0 | F5: ='Pre-qualifying Tool'!K39 -> 0 | G5: ='Pre-qualifying Tool'!L39 -> 0 | H5: ='Pre-qualifying Tool'!M39 -> - | O5: Soure from original user selections
B6: Time in Business | C6: Man | D6: ='Pre-qualifying Tool'!I43 -> - | E6: ='Pre-qualifying Tool'!J43 -> 0 | F6: ='Pre-qualifying Tool'!K43 -> 0 | G6: ='Pre-qualifying Tool'!L43 -> 0 | H6: ='Pre-qualifying Tool'!M43 -> - | Q6: ='Pre-qualifying Tool'!J37 -> Initial Adjustment | R6: ='Pre-qualifying Tool'!K37 -> Secondary Adjustment | S6: ='Pre-qualifying Tool'!L37 -> Overridden
B7: Bank Account Conduct | C7: Man | D7: =IF(Lookups!AA2="Yes","Medium",'Pre-qualifying Tool'!I47) -> - | E7: ='Pre-qualifying Tool'!J47 -> 0 | F7: ='Pre-qualifying Tool'!K47 -> 0 | G7: ='Pre-qualifying Tool'!L47 -> 0 | H7: =IF(Lookups!AA2="Yes","MEDIUM",'Pre-qualifying Tool'!M47) -> - | K7: ='Dropdown Menu'!A4 -> Very Low | L7: 1 | M7: =K7 -> Very Low
B8: Statutory Payments | C8: Man | D8: ='Pre-qualifying Tool'!I51 -> - | E8: ='Pre-qualifying Tool'!J51 -> 0 | F8: ='Pre-qualifying Tool'!K51 -> 0 | G8: ='Pre-qualifying Tool'!L51 -> 0 | H8: ='Pre-qualifying Tool'!M51 -> - | K8: ='Dropdown Menu'!A5 -> Low | L8: 2 | M8: =K8 -> Low | P8: ='Pre-qualifying Tool'!D39 -> Industry Experience* | Q8: =IF('Pre-qualifying Tool'!J39="",0,1) -> 0 | R8: =IF('Pre-qualifying Tool'!K39="",0,1) -> 0 | S8: =IF('Pre-qualifying Tool'!L39="",0,1) -> 0
B9: Credit History | C9: Man | D9: ='Pre-qualifying Tool'!I55 -> - | E9: ='Pre-qualifying Tool'!J55 -> 0 | F9: ='Pre-qualifying Tool'!K55 -> 0 | G9: ='Pre-qualifying Tool'!L55 -> 0 | H9: ='Pre-qualifying Tool'!M55 -> - | J9: Test For Adjustment | K9: ='Dropdown Menu'!A6 -> Medium | L9: 3 | M9: Medium | P9: ='Pre-qualifying Tool'!D43 -> Length of time in Business * | Q9: =IF('Pre-qualifying Tool'!J43="",0,1) -> 0 | R9: =IF('Pre-qualifying Tool'!K43="",0,1) -> 0 | S9: =IF('Pre-qualifying Tool'!L43="",0,1) -> 0
B10: Borrower | C10: Calc | D10: =D85 -> Medium | E10: =E85 -> Medium | F10: =F85 -> Medium | G10: =G85 -> Medium | H10: =IF(S14>0,J85,D10) -> Medium | J10: =IF(COUNTIF(E5:G9,0)<>18,"X","") -> X | K10: ='Dropdown Menu'!A7 -> High | L10: 4 | M10: High | P10: ='Pre-qualifying Tool'!D47 -> Bank Account Conduct * | Q10: =IF('Pre-qualifying Tool'!J47="",0,1) -> 0 | R10: =IF('Pre-qualifying Tool'!K47="",0,1) -> 0 | S10: =IF('Pre-qualifying Tool'!L47="",0,1) -> 0
B11: Purpose | J11: ='Dropdown Menu'!A6 -> Medium | K11: ='Dropdown Menu'!A8 -> Very High | L11: 5 | M11: Very High | P11: ='Pre-qualifying Tool'!D51 -> Statutory Obligations * | Q11: =IF('Pre-qualifying Tool'!J51="",0,1) -> 0 | R11: =IF('Pre-qualifying Tool'!K51="",0,1) -> 0 | S11: =IF('Pre-qualifying Tool'!L51="",0,1) -> 0
B12: Purpose | C12: Auto | D12: ='Pre-qualifying Tool'!I82 -> - | E12: ='Pre-qualifying Tool'!J82 -> 0 | F12: ='Pre-qualifying Tool'!K82 -> 0 | G12: ='Pre-qualifying Tool'!L82 -> 0 | H12: ='Pre-qualifying Tool'!M82 -> - | P12: ='Pre-qualifying Tool'!D55 -> Credit History * | Q12: =IF('Pre-qualifying Tool'!J55="",0,1) -> 0 | R12: =IF('Pre-qualifying Tool'!K55="",0,1) -> 0 | S12: =IF('Pre-qualifying Tool'!L55="",0,1) -> 0
B13: Serviceability | J13: Produced | K13: =IF(J81="",3,VLOOKUP(J81,$K$7:$L$11,2,FALSE)) -> 3
B14: DSC | C14: Auto | D14: ='Pre-qualifying Tool'!I105 -> - | E14: ='Pre-qualifying Tool'!J105 -> 0 | F14: ='Pre-qualifying Tool'!K105 -> 0 | G14: ='Pre-qualifying Tool'!L105 -> 0 | H14: ='Pre-qualifying Tool'!M105 -> - | J14: Adjusted | K14: =IF(K13<L9,L9,K13) -> 3 | S14: =SUM(Q8:S12) -> 0
B15: Statement of Position | K15: =IF(K14>K13,J11,H10) -> Medium
B16: SOP | C16: Auto | D16: ='Pre-qualifying Tool'!I128 -> - | E16: ='Pre-qualifying Tool'!J128 -> 0 | F16: ='Pre-qualifying Tool'!K128 -> 0 | G16: ='Pre-qualifying Tool'!L128 -> 0 | H16: ='Pre-qualifying Tool'!M128 -> -
B17: Security
B18: LBVR | C18: Man | D18: ='Pre-qualifying Tool'!I151 -> - | E18: ='Pre-qualifying Tool'!J151 -> 0 | F18: ='Pre-qualifying Tool'!K151 -> 0 | G18: ='Pre-qualifying Tool'!L151 -> 0 | H18: ='Pre-qualifying Tool'!M151 -> -
D21: Auto | E21: M&SB Banker | G21: Credit Manager | H21: FINAL | J21: Legend
A22: Grading Convertion Table | B22: MSBCA Risk Framework | D22: Assigned | E22: Initial | F22: Adjusted | G22: Overridden | J22: Framework Categories | K22: Grades
B23: Borrower | J23: Borrower
B24: Time in Industry | C24: Man | D24: =IF(D5="Very Low",1,IF(D5="Low",2,IF(D5="Medium",3,IF(D5="High",4,IF(D5="Very High",5,""))))) ->  | E24: =IF(E5="Very Low",1,IF(E5="Low",2,IF(E5="Medium",3,IF(E5="High",4,IF(E5="Very High",5,""))))) ->  | F24: =IF(F5="Very Low",1,IF(F5="Low",2,IF(F5="Medium",3,IF(F5="High",4,IF(F5="Very High",5,""))))) ->  | G24: =IF(G5="Very Low",1,IF(G5="Low",2,IF(G5="Medium",3,IF(G5="High",4,IF(G5="Very High",5,""))))) ->  | H24: =IF(H5="Very Low",1,IF(H5="Low",2,IF(H5="Medium",3,IF(H5="High",4,IF(H5="Very High",5,""))))) ->  | J24: Time in Industry | K24: 1, 2, 3, 4, 5
B25: Time in Business | C25: Man | D25: =IF(D6="Very Low",1,IF(D6="Low",2,IF(D6="Medium",3,IF(D6="High",4,IF(D6="Very High",5,""))))) ->  | F25: =IF(F6="Very Low",1,IF(F6="Low",2,IF(F6="Medium",3,IF(F6="High",4,IF(F6="Very High",5,""))))) ->  | J25: Time in Business | K25: 1, 2, 3, 4, 5
B26: Bank Account Conduct | C26: Man | J26: Bank Account Conduct | K26: 3, 4, 5
B27: Statutory Payments | C27: Man | J27: Statutory Payments | K27: 3, 4, 5
B28: Credit History | C28: Man | D28: =IF(D9="Very Low",1,IF(D9="Low",2,IF(D9="Medium",3,IF(D9="High",4,IF(D9="Very High",5,""))))) ->  | J28: Financial Management | K28: 2, 3, 4
B29: Borrower | C29: Calc | D29: 3 | E29: 3 | F29: 3 | G29: 3 | H29: 3 | J29: Credit History | K29: 3, 4, 5
B30: Purpose | J30: Borrower | K30: 1, 2, 3, 4, 5
B31: Purpose | C31: Auto | D31: =IF(D12="Very Low",1,IF(D12="Low",2,IF(D12="Medium",3,IF(D12="High",4,IF(D12="Very High",5,""))))) ->  | E31: =IF(E12="Very Low",1,IF(E12="Low",2,IF(E12="Medium",3,IF(E12="High",4,IF(E12="Very High",5,""))))) ->  | F31: =IF(F12="Very Low",1,IF(F12="Low",2,IF(F12="Medium",3,IF(F12="High",4,IF(F12="Very High",5,""))))) ->  | G31: =IF(G12="Very Low",1,IF(G12="Low",2,IF(G12="Medium",3,IF(G12="High",4,IF(G12="Very High",5,""))))) ->  | H31: =IF(H12="Very Low",1,IF(H12="Low",2,IF(H12="Medium",3,IF(H12="High",4,IF(H12="Very High",5,""))))) ->  | J31: Purpose
B32: Serviceability | J32: Purpose | K32: 3, 4, 5
B33: DSC | C33: Auto | D33: =IF(D14="Very Low",1,IF(D14="Low",2,IF(D14="Medium",3,IF(D14="High",4,IF(D14="Very High",5,""))))) ->  | E33: =IF(E14="Very Low",1,IF(E14="Low",2,IF(E14="Medium",3,IF(E14="High",4,IF(E14="Very High",5,""))))) ->  | F33: =IF(F14="Very Low",1,IF(F14="Low",2,IF(F14="Medium",3,IF(F14="High",4,IF(F14="Very High",5,""))))) ->  | G33: =IF(G14="Very Low",1,IF(G14="Low",2,IF(G14="Medium",3,IF(G14="High",4,IF(G14="Very High",5,""))))) ->  | H33: =IF(H14="Very Low",1,IF(H14="Low",2,IF(H14="Medium",3,IF(H14="High",4,IF(H14="Very High",5,""))))) ->  | J33: Serviceability
B34: Statement of Position | J34: DSC | K34: 1, 2, 3, 4, 5
B35: SOP | C35: Auto | D35: =IF(D16="Very Low",1,IF(D16="Low",2,IF(D16="Medium",3,IF(D16="High",4,IF(D16="Very High",5,""))))) ->  | E35: =IF(E16="Very Low",1,IF(E16="Low",2,IF(E16="Medium",3,IF(E16="High",4,IF(E16="Very High",5,""))))) ->  | F35: =IF(F16="Very Low",1,IF(F16="Low",2,IF(F16="Medium",3,IF(F16="High",4,IF(F16="Very High",5,""))))) ->  | G35: =IF(G16="Very Low",1,IF(G16="Low",2,IF(G16="Medium",3,IF(G16="High",4,IF(G16="Very High",5,""))))) ->  | H35: =IF(H16="Very Low",1,IF(H16="Low",2,IF(H16="Medium",3,IF(H16="High",4,IF(H16="Very High",5,""))))) ->  | J35: Statement of Position
B36: Security | J36: SOP | K36: 1, 2, 3, 4, 5
B37: LBVR | C37: Man | D37: =IF(D18="Very Low",1,IF(D18="Low",2,IF(D18="Medium",3,IF(D18="High",4,IF(D18="Very High",5,""))))) ->  | E37: =IF(E18="Very Low",1,IF(E18="Low",2,IF(E18="Medium",3,IF(E18="High",4,IF(E18="Very High",5,""))))) ->  | F37: =IF(F18="Very Low",1,IF(F18="Low",2,IF(F18="Medium",3,IF(F18="High",4,IF(F18="Very High",5,""))))) ->  | G37: =IF(G18="Very Low",1,IF(G18="Low",2,IF(G18="Medium",3,IF(G18="High",4,IF(G18="Very High",5,""))))) ->  | H37: =IF(H18="Very Low",1,IF(H18="Low",2,IF(H18="Medium",3,IF(H18="High",4,IF(H18="Very High",5,""))))) ->  | J37: Security
J38: LBVR | K38: 2, 3, 4
A41: Rating Counters
B42: Grading | C42: Score | D42: Count - Assigned | E42: Count - Initial | F42: Count - Adjusted | G42: Count - Overridden | H42: Count - Final
A43: Count Overall | B43: VL | C43: 1 | D43: =COUNTIF($D$29:$D$37,1) -> 0 | E43: =COUNTIF($E$29:$E$37,1) -> 0 | F43: =COUNTIF($F$29:$F$37,1) -> 0 | G43: =COUNTIF($G$29:$G$37,1) -> 0 | H43: =COUNTIF($H$29:$H$37,1) -> 0 | I43: Very Low
B44: L | C44: 2 | D44: =COUNTIF($D$29:$D$37,2) -> 0 | E44: =COUNTIF($E$29:$E$37,2) -> 0 | F44: =COUNTIF($F$29:$F$37,2) -> 0 | G44: =COUNTIF($G$29:$G$37,2) -> 0 | H44: =COUNTIF($H$29:$H$37,2) -> 0 | I44: Low
B45: M | C45: 3 | D45: =COUNTIF($D$29:$D$37,3) -> 1 | E45: =COUNTIF($E$29:$E$37,3) -> 1 | F45: =COUNTIF($F$29:$F$37,3) -> 1 | G45: =COUNTIF($G$29:$G$37,3) -> 1 | H45: =COUNTIF($H$29:$H$37,3) -> 1 | I45: Medium
B46: H | C46: 4 | D46: =COUNTIF($D$29:$D$37,4) -> 0 | E46: =COUNTIF($D$29:$D$37,4) -> 0 | F46: =COUNTIF($F$29:$F$37,4) -> 0 | G46: =COUNTIF($G$29:$G$37,4) -> 0 | H46: =COUNTIF($H$29:$H$37,4) -> 0 | I46: High
B47: VH | C47: 5 | D47: =COUNTIF($D$29:$D$37,5) -> 0 | E47: =COUNTIF($E$29:$E$37,5) -> 0 | F47: =COUNTIF($F$29:$F$37,5) -> 0 | G47: =COUNTIF($G$29:$G$37,5) -> 0 | H47: =COUNTIF($H$29:$H$37,5) -> 0 | I47: Very High
A48: Count Borrower | B48: Very Low | C48: 1 | D48: =COUNTIF($D$24:$D$28,1) -> 0 | E48: =COUNTIF($E$24:$E$28,1) -> 0 | F48: =COUNTIF($F$24:$F$28,1) -> 0 | G48: =COUNTIF($G$24:$G$28,1) -> 0 | H48: =COUNTIF($H$24:$H$28,1) -> 0
B49: Low | C49: 2 | D49: =COUNTIF($D$24:$D$28,2) -> 0 | E49: =COUNTIF($E$24:$E$28,2) -> 0 | F49: =COUNTIF($F$24:$F$28,2) -> 0 | G49: =COUNTIF($G$24:$G$28,2) -> 0 | H49: =COUNTIF($H$24:$H$28,2) -> 0
B50: Medium | C50: 3 | D50: =COUNTIF($D$24:$D$28,3) -> 0 | E50: =COUNTIF($E$24:$E$28,3) -> 0 | F50: =COUNTIF($F$24:$F$28,3) -> 0 | G50: =COUNTIF($G$24:$G$28,3) -> 0 | H50: =COUNTIF($H$24:$H$28,3) -> 0
B51: High | C51: 4 | D51: =COUNTIF($D$24:$D$28,4) -> 0 | E51: =COUNTIF($E$24:$E$28,4) -> 0 | F51: =COUNTIF($F$24:$F$28,4) -> 0 | G51: =COUNTIF($G$24:$G$28,4) -> 0 | H51: =COUNTIF($H$24:$H$28,4) -> 0
B52: Very High | C52: 5 | D52: =COUNTIF($D$24:$D$28,5) -> 0 | E52: =COUNTIF($E$24:$E$28,5) -> 0 | F52: =COUNTIF($F$24:$F$28,5) -> 0 | G52: =COUNTIF($G$24:$G$28,5) -> 0 | H52: =COUNTIF($H$24:$H$28,5) -> 0
B54: Overall - Grading Rules 3
B55: VH>1, (VH) | C55: > | D55: =IF(D47>1,"Very High","") ->  | E55: =IF(E47>1,"Very High","") ->  | F55: =IF(F47>1,"Very High","") ->  | G55: =IF(G47>1,"Very High","") ->  | H55: =IF(H47>1,"Very High","") -> 
B56: VH=1, VL=0, (VH) | C56: > | D56: =IF(AND(D47=1,D43=0),"Very High","") ->  | E56: =IF(AND(E47=1,E43=0),"Very High","") ->  | F56: =IF(AND(F47=1,F43=0),"Very High","") ->  | G56: =IF(AND(G47=1,G43=0),"Very High","") ->  | H56: =IF(AND(H47=1,H43=0),"Very High","") -> 
B57: VH=1, H=1, (VL>1, OR VL>0 + L>0), (M) | C57: > | D57: =IF(AND(D47=1,D46=1,(OR(D43>1,(AND(D43>0,D44>0))))),"Medium","") ->  | E57: =IF(AND(E47=1,E46=1,(OR(E43>1,(AND(E43>0,E44>0))))),"Medium","") ->  | F57: =IF(AND(F47=1,F46=1,(OR(F43>1,(AND(F43>0,F44>0))))),"Medium","") ->  | G57: =IF(AND(G47=1,G46=1,(OR(G43>1,(AND(G43>0,G44>0))))),"Medium","") ->  | H57: =IF(AND(H47=1,H46=1,(OR(H43>1,(AND(H43>0,H44>0))))),"Medium","") -> 
B58: VH=1,H=1,VL=1,M>1, (H) | C58: > | D58: =IF(AND(D47=1,D46=1,D43=1,D45>1),"High","") ->  | E58: =IF(AND(E47=1,E46=1,E43=1,E45>1),"High","") ->  | F58: =IF(AND(F47=1,F46=1,F43=1,F45>1),"High","") ->  | G58: =IF(AND(G47=1,G46=1,G43=1,G45>1),"High","") ->  | H58: =IF(AND(H47=1,H46=1,H43=1,H45>1),"High","") -> 
B59: VH=1, VL>0, H=0, (L>0 OR M>0), (M) | C59: > | D59: =IF(AND(D47=1,D43>0,D46=0,(OR(D44>0,D45>0))),"Medium","") ->  | E59: =IF(AND(E47=1,E43>0,E46=0,(OR(E44>0,E45>0))),"Medium","") ->  | F59: =IF(AND(F47=1,F43>0,F46=0,(OR(F44>0,F45>0))),"Medium","") ->  | G59: =IF(AND(G47=1,G43>0,G46=0,(OR(G44>0,G45>0))),"Medium","") ->  | H59: =IF(AND(H47=1,H43>0,H46=0,(OR(H44>0,H45>0))),"Medium","") -> 
B60: VH=1, H=2, VL>0 (H) | C60: > | D60: =IF(AND(D47=1,D46=2,D43>0),"High","") ->  | E60: =IF(AND(E47=1,E46=2,E43>0),"High","") ->  | F60: =IF(AND(F47=1,F46=2,F43>0),"High","") ->  | G60: =IF(AND(G47=1,G46=2,G43>0),"High","") ->  | H60: =IF(AND(H47=1,H46=2,H43>0),"High","") -> 
B61: VH=0, H=1, VL=0, L=0, (H) | C61: > | D61: =IF(AND(D47=0,D46=1,D43=0,D44=0),"High","") ->  | E61: =IF(AND(E47=0,E46=1,E43=0,E44=0),"High","") ->  | F61: =IF(AND(F47=0,F46=1,F43=0,F44=0),"High","") ->  | G61: =IF(AND(G47=0,G46=1,G43=0,G44=0),"High","") ->  | H61: =IF(AND(H47=0,H46=1,H43=0,H44=0),"High","") -> 
B62: VH=0, H=1, VL=1 OR L=1, (M) | C62: > | D62: =IF(AND(D47=0,D46=1,(OR(D43>0,D44>0))),"Medium","") ->  | E62: =IF(AND(E47=0,E46=1,(OR(E43>0,E44>0))),"Medium","") ->  | F62: =IF(AND(F47=0,F46=1,(OR(F43>0,F44>0))),"Medium","") ->  | G62: =IF(AND(G47=0,G46=1,(OR(G43>0,G44>0))),"Medium","") ->  | H62: =IF(AND(H47=0,H46=1,(OR(H43>0,H44>0))),"Medium","") -> 
B63: VH=0, H=2, (VL>1 OR L>1), (M) | C63: > | D63: =IF(AND(D47=0,D46=2,(OR(D43>1,D44>1))),"Medium","") ->  | E63: =IF(AND(E47=0,E46=2,(OR(E43>1,E44>1))),"Medium","") ->  | F63: =IF(AND(F47=0,F46=2,(OR(F43>1,F44>1))),"Medium","") ->  | G63: =IF(AND(G47=0,G46=2,(OR(G43>1,G44>1))),"Medium","") ->  | H63: =IF(AND(H47=0,H46=2,(OR(H43>1,H44>1))),"Medium","") -> 
B64: VH=0, H=2, VL=1, L=1), (M) | C64: > | D64: =IF(AND(D47=0, D46=2, D43=1,D44=1),"Medium","") ->  | E64: =IF(AND(E47=0, E46=2, E43=1,E44=1),"Medium","") ->  | F64: =IF(AND(F47=0, F46=2, F43=1,F44=1),"Medium","") ->  | G64: =IF(AND(G47=0, G46=2, G43=1,G44=1),"Medium","") ->  | H64: =IF(AND(H47=0, H46=2, H43=1,H44=1),"Medium","") -> 
B65: VH=0, H=2, (VL=0 OR L=0), (H) | C65: > | D65: =IF(AND(D47=0,D46=2,D45>1),"High","") ->  | E65: =IF(AND(E47=0,E46=2,E45>1),"High","") ->  | F65: =IF(AND(F47=0,F46=2,F45>1),"High","") ->  | G65: =IF(AND(G47=0,G46=2,G45>1),"High","") ->  | H65: =IF(AND(H47=0,H46=2,H45>1),"High","") -> 
B66: VH=0, H>2, (H) | C66: > | D66: =IF(AND(D47=0,D46>2),"High","") ->  | E66: =IF(AND(E47=0,E46>2),"High","") ->  | F66: =IF(AND(F47=0,F46>2),"High","") ->  | G66: =IF(AND(G47=0,G46>2),"High","") ->  | H66: =IF(AND(H47=0,H46>2),"High","") -> 
B67: VH=0, H=0, M>1, (M) | C67: > | D67: =IF(AND(D47=0,D46=0,D45>1),"Medium","") ->  | E67: =IF(AND(E47=0,E46=0,E45>1),"Medium","") ->  | F67: =IF(AND(F47=0,F46=0,F45>1),"Medium","") ->  | G67: =IF(AND(G47=0,G46=0,G45>1),"Medium","") ->  | H67: =IF(AND(H47=0,H46=0,H45>1),"Medium","") -> 
B68: VH=0, H=0, M=1, VL<>L, (max count [VL, L]) | C68: > | D68: =IF(AND(D47=0,D46=0,D45=1,D43<>D44),(VLOOKUP((MAX(D43:D44)),D43:I44,6,FALSE)),"") ->  | E68: =IF(AND(E47=0,E46=0,E45=1,E43<>E44),(VLOOKUP((MAX(E43:E44)),E43:F44,3,FALSE)),"") ->  | F68: =IF(AND(F47=0,F46=0,F45=1,F43<>F44),(VLOOKUP((MAX(F43:F44)),F43:G44,3,FALSE)),"") ->  | G68: =IF(AND(G47=0,G46=0,G45=1,G43<>G44),(VLOOKUP((MAX(G43:G44)),G43:I44,3,FALSE)),"") ->  | H68: =IF(AND(H47=0,H46=0,H45=1,H43<>H44),(VLOOKUP((MAX(H43:H44)),H43:I44,2,FALSE)),"") -> 
B69: VH=0, H=0, M=1, VL=L, (L) | C69: > | D69: =IF(AND(D47=0,D46=0,D45=1,D43=D44),"Low","") -> Low | E69: =IF(AND(E47=0,E46=0,E45=1,E43=E44),"Low","") -> Low | F69: =IF(AND(F47=0,F46=0,F45=1,F43=F44),"Low","") -> Low | G69: =IF(AND(G47=0,G46=0,G45=1,G43=G44),"Low","") -> Low | H69: =IF(AND(H47=0,H46=0,H45=1,H43=H44),"Low","") -> Low
D71: =D55&D56&D57&D59&D61&D62&D63&D64&D66&D66&D67&D68&D69 -> Low | E71: =E55&E56&E57&E59&E61&E62&E63&E64&E66&E66&E67&E68&E69 -> Low | F71: =F55&F56&F57&F59&F61&F62&F63&F64&F66&F66&F67&F68&F69 -> Low | G71: =G55&G56&G57&G59&G61&G62&G63&G64&G66&G66&G67&G68&G69 -> Low | H71: =H55&H56&H57&H59&H61&H62&H63&H64&H66&H66&H67&H68&H69 -> Low
D72: =IF(D55<>"",D55,IF(D56<>"",D56,IF(D57<>"",D57,IF(D58<>"",D58,IF(D59<>"",D59,IF(D60<>"",D60,IF(D61<>"",D61,IF(D62<>"",D62,IF(D63<>"",D63,IF(D64<>"",D64,IF(D65<>"",D65,IF(D66<>"",D66,IF(D69<>"",D69,IF(D67<>"",D67,IF(D68<>"",D68,"Answer all questions"))))))))))))))) -> Low | E72: =IF(E55<>"",E55,IF(E56<>"",E56,IF(E57<>"",E57,IF(E58<>"",E58,IF(E59<>"",E59,IF(E60<>"",E60,IF(E61<>"",E61,IF(E62<>"",E62,IF(E63<>"",E63,IF(E64<>"",E64,IF(E65<>"",E65,IF(E66<>"",E66,IF(E69<>"",E69,IF(E67<>"",E67,IF(E68<>"",E68,"Answer all questions"))))))))))))))) -> Low | F72: =IF(F55<>"",F55,IF(F56<>"",F56,IF(F57<>"",F57,IF(F58<>"",F58,IF(F59<>"",F59,IF(F60<>"",F60,IF(F61<>"",F61,IF(F62<>"",F62,IF(F63<>"",F63,IF(F64<>"",F64,IF(F65<>"",F65,IF(F66<>"",F66,IF(F69<>"",F69,IF(F67<>"",F67,IF(F68<>"",F68,"Answer all questions"))))))))))))))) -> Low | G72: =IF(G55<>"",G55,IF(G56<>"",G56,IF(G57<>"",G57,IF(G58<>"",G58,IF(G59<>"",G59,IF(G60<>"",G60,IF(G61<>"",G61,IF(G62<>"",G62,IF(G63<>"",G63,IF(G64<>"",G64,IF(G65<>"",G65,IF(G66<>"",G66,IF(G69<>"",G69,IF(G67<>"",G67,IF(G68<>"",G68,"Answer all questions"))))))))))))))) -> Low | H72: =IF(H55<>"",H55,IF(H56<>"",H56,IF(H57<>"",H57,IF(H58<>"",H58,IF(H59<>"",H59,IF(H60<>"",H60,IF(H61<>"",H61,IF(H62<>"",H62,IF(H63<>"",H63,IF(H64<>"",H64,IF(H65<>"",H65,IF(H66<>"",H66,IF(H69<>"",H69,IF(H67<>"",H67,IF(H68<>"",H68,"Answer all questions"))))))))))))))) -> Low
B74: +
B75: Borrower - Grading Rules
B76: VH>0, (VH) | C76: > | D76: =IF(D52>0,"Very High","") ->  | E76: =IF(E52>0,"Very High","") ->  | F76: =IF(F52>0,"Very High","") ->  | G76: =IF(G52>0,"Very High","") ->  | H76: =IF(H52>0,"Very High","") -> 
B77: VH=0, H>0, (H) | C77: > | D77: =IF(AND(D51>0,D52=0),"High","") ->  | E77: =IF(AND(E51>0,E52=0),"High","") ->  | F77: =IF(AND(F51>0,F52=0),"High","") ->  | G77: =IF(AND(G51>0,G52=0),"High","") ->  | H77: =IF(AND(H51>0,H52=0),"High","") -> 
B78: Ind=L, Buss=L, Bnk=M, Stat=M, Fin=L, Crdt=M, Cust = Existing (L) | C78: > | D78: =IF(AND(D24=2,D25=2,D26=3,D27=3,D28=3,D81=""),IF(custstatus="New to Bank",K15,"Low"),"") ->  | E78: =IF(AND(E24=2,E25=2,E26=3,E27=3,E28=3),"Low","") ->  | F78: =IF(AND(F24=2,F25=2,F26=3,F27=3,F28=3),"Low","") ->  | G78: =IF(AND(G24=2,G25=2,G26=3,G27=3,G28=3),"Low","") ->  | H78: =IF(AND(H24=2,H25=2,H26=3,H27=3,H28=3,H81=""),IF(custstatus="New to Bank",K15,"Low"),"") ->  | J78: =IF(AND(H24=2,H25=2,H26=3,H27=3,H28=3,H81=""),"Low","") -> 
B79: Ind=VL, Buss=VL, Bnk=M, Stat=M, Fin=L, Crdt=M, Cust = Existing (VL) | C79: > | D79: =IF(AND(D24=1,D25=1,D26=3,D27=3,D28=3,D81=""), IF(custstatus="New to Bank",K15,"Very Low"),"") ->  | E79: =IF(AND(E24=1,E25=1,E26=3,E27=3,E28=3),"Very Low","") ->  | F79: =IF(AND(F24=1,F25=1,F26=3,F27=3,F28=3),"Very Low","") ->  | G79: =IF(AND(G24=1,G25=1,G26=3,G27=3,G28=3),"Very Low","") ->  | H79: =IF(AND(H24=1,H25=1,H26=3,H27=3,H28=3,H81=""),IF(custstatus="New to Bank",K15,"Very Low"),"") ->  | J79: =IF(AND(H24=1,H25=1,H26=3,H27=3,H28=3,H81=""),"Very Low","") -> 
B80: Ind=VL/L, Buss=L/VL, Bnk=M, Stat=M, Fin=L, Crdt=M, Cust = Existing (L) | D80: =IF(AND(D24=2,D25=1,D26=3,D27=3,D28=3,D81=""), IF(custstatus="New to Bank",K15,"Low"),IF(AND(D24=1,D25=2,D26=3,D27=3,D28=3,D81=""), IF(custstatus="New to Bank",K15,"Low"),"")) ->  | E80: =IF(AND(E24=2,E25=1,E26=3,E27=3,E28=3,E81=""), IF(custstatus="New to Bank",L15,"Low"),IF(AND(E24=1,E25=2,E26=3,E27=3,E28=3,E81=""), IF(custstatus="New to Bank",L15,"Low"),"")) ->  | F80: =IF(AND(F24=2,F25=1,F26=3,F27=3,F28=3,F81=""), IF(custstatus="New to Bank",M15,"Low"),IF(AND(F24=1,F25=2,F26=3,F27=3,F28=3,F81=""), IF(custstatus="New to Bank",M15,"Low"),"")) ->  | G80: =IF(AND(G24=2,G25=1,G26=3,G27=3,G28=3,G81=""), IF(custstatus="New to Bank",N15,"Low"),IF(AND(G24=1,G25=2,G26=3,G27=3,G28=3,G81=""), IF(custstatus="New to Bank",N15,"Low"),"")) ->  | H80: =IF(AND(H24=2,H25=1,H26=3,H27=3,H28=3,H81=""), IF(custstatus="New to Bank",O15,"Low"),IF(AND(H24=1,H25=2,H26=3,H27=3,H28=3,H81=""), IF(custstatus="New to Bank",O15,"Low"),"")) -> 
B81: Cust=NTB, VH=0, H=0, (M) | D81: =IF(AND('Pre-qualifying Tool'!$G$34="New to Bank",'MSBCA Calculator 2'!D76="",'MSBCA Calculator 2'!D77=""),"Medium","") ->  | H81: =IF(AND('Pre-qualifying Tool'!$G$34="New to Bank",'MSBCA Calculator 2'!H76="",'MSBCA Calculator 2'!H77=""),"Medium","") ->  | J81: =J78&J79 -> 
B82: All 4 rules not met, (M) | C82: > | D82: =IF(AND(D76="",D77="",D78="",D79="",D81="",D80=""),"Medium","") -> Medium | E82: =IF(AND(E76="",E77="",E78="",E79="",E81="",E80=""),"Medium","") -> Medium | F82: =IF(AND(F76="",F77="",F78="",F79="",F81="",F80=""),"Medium","") -> Medium | G82: Medium | H82: Medium
D84: =D76&D77&D78&D79&D81&D82&D80 -> Medium | E84: =E76&E77&E78&E79&E81&E82&E80 -> Medium | F84: Medium | G84: Medium | H84: =H76&H77&H78&H79&H81&H82&H80 -> Medium
D85: =IF(D80<>"",D80,IF(D76<>"",D76,IF(D77<>"",D77,IF(D78<>"",D78,IF(D79<>"",D79,IF(D81<>"",D81,IF(D82<>"",D82,""))))))) -> Medium | E85: =IF(E80<>"",E80,IF(E76<>"",E76,IF(E77<>"",E77,IF(E78<>"",E78,IF(E79<>"",E79,IF(E81<>"",E81,IF(E82<>"",E82,""))))))) -> Medium | F85: Medium | G85: Medium | H85: =IF(H80<>"",H80,IF(H76<>"",H76,IF(H77<>"",H77,IF(H78<>"",H78,IF(H79<>"",H79,IF(H81<>"",H81,IF(H82<>"",H82,"Answer all questions"))))))) -> Medium | I85: =IF(S14>0,IF(VLOOKUP(H85,$K$7:$L$11,2,FALSE)>3,VLOOKUP(H85,$K$7:$L$11,2,FALSE),3),VLOOKUP(H85,$K$7:$L$11,2,FALSE)) -> 3 | J85: =VLOOKUP(I85,L7:M11,2,FALSE) -> Medium
B89: MSBCA Framework Inpurt: Loan Purpose
D90: Loan Purpose | E90: Risk Grade | F90: Score | G90: Loan Purpose
B91: Loan Purpose 1 | C91: > | D91: =loanpurpose1 -> Please select loan purpose | E91: =IF(loanpurpose1<>"",VLOOKUP(loanpurpose1,'Dropdown Menu'!P4:Q15,2,FALSE),"-") -> - | F91: =IF(E91="-","",IF(E91="Very Low",1,IF(E91="Low",2,IF(E91="Medium",3,IF(E91="High",4,IF(E91="Very High",5,"")))))) ->  | G91: =D91 -> Please select loan purpose
B92: Loan Purpose 2 | C92: > | D92: =loanpurpose2 -> Please select loan purpose | E92: =IF(loanpurpose2<>"",VLOOKUP(loanpurpose2,'Dropdown Menu'!P4:Q15,2,FALSE),"-") -> - | F92: =IF(E92="-","",IF(E92="Very Low",1,IF(E92="Low",2,IF(E92="Medium",3,IF(E92="High",4,IF(E92="Very High",5,"")))))) ->  | G92: =D92 -> Please select loan purpose
B93: Loan Purpose 3 | C93: > | D93: =loanpurpose3 -> Please select loan purpose | E93: =IF(loanpurpose3<>"",VLOOKUP(loanpurpose3,'Dropdown Menu'!P4:Q15,2,FALSE),"-") -> - | F93: =IF(E93="-","",IF(E93="Very Low",1,IF(E93="Low",2,IF(E93="Medium",3,IF(E93="High",4,IF(E93="Very High",5,"")))))) ->  | G93: =D93 -> Please select loan purpose
B94: Loan Purpose 4 | C94: > | D94: =loanpurpose4 -> Please select loan purpose | E94: =IF(loanpurpose4<>"",VLOOKUP(loanpurpose4,'Dropdown Menu'!P4:Q15,2,FALSE),"-") -> - | F94: =IF(E94="-","",IF(E94="Very Low",1,IF(E94="Low",2,IF(E94="Medium",3,IF(E94="High",4,IF(E94="Very High",5,"")))))) ->  | G94: =D94 -> Please select loan purpose
B96: FINAL - Loan Purpose | C96: > | D96: =VLOOKUP(MAX(F91:F94),F91:G94,2,FALSE) ->  | E96: =IF(F96=0,"-",IF(F96=1,"Very Low",IF(F96=2,"Low",IF(F96=3,"Medium",IF(F96=4,"High",IF(F96=5,"Very High","")))))) -> - | F96: =MAX(F91:F94) -> 0

Sheet MSBCA Framework (hidden)
D2: MSBCA Risk Framework | E2: Very Low | F2: Low | G2: Medium | H2: High | I2: Very High
D3: Borrower
D4: Time in Industry | E4: + 10 years | F4: 5-10 years | G4: 2-5 years | H4: < 2 years | I4: New to Industry
D5: Time in Business | E5: + 10 years | F5: 5-10 years | G5: 2-5 years | H5: < 2 years | I5: Start Up Business
D6: Bank Account Conduct | G6: Bank Accounts have no history of excesses in last 6 mths | H6: Bank accounts have history of excesses or arrears | I6: Bank accounts have current arrears or excess
D7: Statutory Payments | G7: ATO payments are lodged and up to date | H7: ATO payments are lodged with arrangements in place | I7: ATO payments are not lodged and/or no arrangements are in place
D8: Financial Management | F8: More detailed financial info prepared & data monitored within business: E.g. cash flows, debtor/creditor listing Internal bookkeeper/accountant exists | G8: Financials are accountant prepared and up to date Use of proven accounting system and a registered Accountant | H8: No financial info is available Accountant prepared financials not available
D9: Credit History | G9: Clear Credit Check - May include 2 paid defaults from phone or utility cost <$500 over last 12 months | H9: Adverse Credit Check - Paid defaults | I9: Adverse Credit Check - Unpaid defaults - judgements Current NAB eCRS is above 21
D10: Purpose
D11: Purpose | G11: Working capital | H11: Debt Consolidation | I11: ATO Arrears Payout
G12: Refinance
G13: Buy Business or Fund Renovations to business
G14: Any Asset Finance/Purchase
D15: Serviceability
D16: Debt Servicing Cover | E16: >3 x | F16: 1.5>=3 x | G16: 1 >=1.5 x | H16: 0.5 > 1 x | I16: <= 0.5 x
D17: Statement of Position
D18: Risk Adjusted Basis | E18: >2.0 x | F18: +1.5x>=2x | G18: +1.25x>=1.5 x | H18: 1.0x>=1.25x | I18: < 1.0x
D19: Security
D20: Security (LBVR) | F20: Cat A/B | G20: Cat C/D | H20: Cat E-J
E22: DCA LVL 5 | H22: DCA LVL 3

Sheet Industries (hidden)
A2: Category | B2: DCA
A3: Environmental Risk and the Nuclear Industry | B3: 2
A4: Industry Sectors, Types of Customers and Credit Facilities not Actively Pursued
A5: Interest or Fees Capitalisation
A6: Lending to a Dental Practice
A7: Lending to a General Medical Practice
A8: Lending to Construction Companies | B8: 3
A9: Lending to Home Builders | B9: 5
A10: Lending to Hotels
A11: Lending to Housing Co-operatives
A12: Lending to Professional Equity Partners
A13: Lending to Self Managed Superannuation Funds
A14: Lending to the Accounting Industry
A15: Lending to the Financial Planning Industry
A16: Lending to the Franchising Sector (Accredited Brand Franchisee)
A17: Lending to the Mining Industry and Mining Services
A18: Lending to the Pharmacy Industry
A19: Lending to the Real Estate Industry
A20: Lending to the Residential Aged Care Industry
A21: Lending to the Roman Catholic Church
A22: Lending to the Uniting Church
A23: Lending to the Veterinary Industry
A24: NAB Microenterprise Loans | B24: 3
A25: New and/or Increased Lending – up to $2 million aggregated business lending | B25: 3
A26: Property Lending
A27: Stratum Titles

Sheet Sheet1 (hidden)
A1: Feedback Eli (previous Westpac banker, has seen the risks and mitigants)
A3: How long would this take?
A4: I would need to test a scenario through this regarding how long this would take?
A5: LVR
A6: Calculates LVR manually
A8: Security Table - would be helpful if we're trying to mirror what they have somewhere else (trying to bring someone across and mirror, and trying to mirror what the bank can use). It would not be helpful for the straight forward conversation
A11: Positives
A12: From a credit point of view - it's all there
A14: You're aksing me to do your job
A16: Brokers will ask - is it worth my while? Why am I doing all this work for this, when I can do Resi? How much work is a Resi broker trying to do to win this business?
A17: It will become a long process of back and forth
A18: The Tool is good ffor someone who has been in this space. Someone starting in business, would see this as a nightmare
A19: Client must know Broker understands
A20: Will this deal service and do I have enough security
A21: Capability - Resi to become commercial (too complicated)
A22: Training - basic financials analysis (i.e Leases are off balance sheet but are required in the Tool) *GOLD
A23: End result needs to be positive
A24: Training preference - online training (keep going back and forth over training) - experienced this when doing a book keeping course online
A25: 2 hour live session (combination of face to face and online)
A26: Accreditation - why do you want this? Show us the need? If we want quality coming through. Otherwise it's a waste of our resources and their time

Sheet Sheet2 (hidden)

Sheet Sheet3 (hidden)

Sheet High Risk Postcodes (hidden)
A1: click here to view source | C1: No longer published in Credit Policy, updated details to be provided by the Home Lending Credit Portfolio Management team (recommend periodically cross-checking reconciliation)
A4: State | B4: City/Postcode | C4: Suburb
A5: WA | B5: 6390 | C5: Bannister, Boddington, Crossman, Lower Hotham, Marradong, Mount Cooke, Mount Wells, North Bannister, Ranford, Upper Murray, Wuraming
A6: WA | B6: 6429 | C6: Boorabbin, Bullabulling, Coolgardie, Karramindie, Londonderry, Mount Burges, Victoria Rock, Wallaroo
A7: WA | B7: 6436 | C7: Menzies, Ularring
A8: WA | B8: 6437 | C8: Leinster, Sir Samuel
A9: WA | B9: 6438 | C9: Leonora, Lake Darlot
A10: WA | B10: 6440 | C10: Bandya, Beadell, Cosmo Newbery, Lake Wells, Laverton, Neale
A11: WA | B11: 6442 | C11: Kambalda East, Kambalda West
A12: WA | B12: 6642 | C12: Angelo River, Capricorn, Karalundi, Kumarina, Meekatharra, Peak Hill
A13: WA | B13: 6646 | C13: Wiluna, Lake Carnegie, Little Sandy Desert
A14: WA | B14: 6710 | C14: Cane, Onslow, Peedamulla, Talandji, Yannarie
A15: WA | B15: 6713 | C15: Dampier Archipelago, Dampier
A16: WA | B16: 6714 | C16: Antonymyre, Balla Balla, Banynton, Bulgarra, Burrup, Cleaverville, Cooya Pooya, Gap Ridge, Gnoorea, Karratha, Karratha Industrial Estate, Maitland, Mardie, Millars Well, Mulataga, Nickol, Pegs Creek, Sherlock, Stove Hill
A17: WA | B17: 6716 | C17: Pannawonica, Fortescue, Hamersley Range, Millstream
A18: WA | B18: 6718 | C18: Roebourne, Whim Creek
A19: WA | B19: 6720 | C19: Cossack, Point Samson, Wickham
A20: WA | B20: 6721 | C20: Indee, Mundabullangana, Pardoo, Port Hedland, Redbank, Strelley, Wallareenya, Wedgefield
A21: WA | B21: 6722 | C21: Boodarie, De Grey, Finucane, Pippingarra, South Hedland
A22: WA | B22: 6725 | C22: Bilingurr , Broome , Dampier Peninsula , Djugun , Eighty Mile Beach , Gingerah , Lagrange , Minyirr , Roebuck , Waterbank
A23: WA | B23: 6728 | C23: Camballin , Derby , Geegully Creek , King Leopold Ranges , Meda , St George Ranges , Willare
A24: WA | B24: 6751 | C24: Chichester, Innawanga, Juna Downs, Karijini, Mount Sheila, Mulga Downs, Nanutarra, Rocklea, Tom Price, Wittenoom
A25: WA | B25: 6753 | C25: Newman
A26: WA | B26: 6754 | C26: Paraburdoo
A27: WA | B27: 6758 | C27: Nullagine
A28: WA | B28: 6760 | C28: Marble Bar
A29: QLD | B29: 4413 | C29: Auburn, Baking Board, Barakula, Blackswamp, Boonarga, Burncluith, Cameby, Canaga, Chances Plain, Chinchilla, Crossroads, Durah, Fairyland, Goombi, Greenswamp, Hopeland, Kragra, Montrose, Pelican, Red Hill, Rywung, Sujeewong, Wieambilla
A30: QLD | B30: 4415 | C30: Columboola, Dalwogon, Gurulmundi, Hookswood, Kowguran, Miles, Myall Park, Pelham
A31: QLD | B31: 4420 | C31: Baroondah, Broadmere, Coorada, Eurombah, Ghinghinda, Glebe, Glenhaughton, Gwambegwine, Kinnoul, Spring Creek, Taroom
A32: QLD | B32: 4455 | C32: Ballaroo, Blythdale, Bungeworgorai, Bungil, Bymount, Cornwall, Dargal Road, Eumamurrin, Euthulla, Gunnewin, Hodgson, Mooga, Mount Abundance, Mount Bindango, Orallo, Orange Hill, Roma, Tingun, Wycombe
A33: QLD | B33: 4521 | C33: Campbells Pocket, Dayboro, King Scrub, Laceys Creek, Mount Mee, Mount Pleasant, Ocean View, Rush Creek
A34: QLD | B34: 4581 | C34: Eurong, Fraser Island, Inskip, Rainbow Beach
A35: QLD | B35: 4660 | C35: Abington, Apple Tree Creek, Buxton, Cherwell, Childers, Cordalba, Doolbi, Eureka, Fransfield, Goodwood, Gregory River, Horton, Isis Central, Isis River, Kullogum, North Gregory, North Isis, Promisedland, Redridge, South Isis, Woodgate
A36: QLD | B36: 4674 | C36: Baffle Creek, Berajondo, Deepwater, Euleilah, Mount Maria, Oyster Creek, Rosedale, Rules Beach, Taunton
A37: QLD | B37: 4678 | C37: Bororen, Foreshores, Rodds Bay, Turkey Beach
A38: QLD | B38: 4680 | C38: Gladstone
A39: QLD | B39: 4715 | C39: Biloela, Callide, Castle Creek, Dakenba, Dumgree, Greycliffe, Mount Murchison, Orange Creek, Prospect, Tarramba, Valentine Plains
A40: QLD | B40: 4717 | C40: Blackwater
A41: QLD | B41: 4720 | C41: Emerald, Yamala
A42: QLD | B42: 4737 | C42: Armstrong Beach, Blue Mountain, Campwin Beach, Freshwater Point, Sarina, Sarina Beach, Sarina Range, Sunnyside
A43: QLD | B43: 4738 | C43: Ilbilbie, Koumala
A44: QLD | B44: 4740 | C44: Mackay Region
A45: QLD | B45: 4741 | C45: Ball Bay , Brightly , Clairview , Coppabella , Epsom , Eton , Eungella Hinterland , Farleigh , Gargett , Hampden , Hazledean , Kinchant Dam , Kuttabul, Mount Charlton , Mount Ossa , Mount Pelion , North Eton , Oakenden , Owens Creek , Pinnacle , Pleystowe , Seaforth , Yalboroo
A46: QLD | B46: 4742 | C46: Burton , Eaglefield , Elphinstone , Hail Creek , Kemmis , Mount Britton , Nebo , Oxford , Strathfield , Turrawulla , Valkyrie
A47: QLD | B47: 4743 | C47: Suttor, Glenden
A48: QLD | B48: 4744 | C48: Moranbah
A49: QLD | B49: 4745 | C49: Dysart
A50: QLD | B50: 4746 | C50: May Downs, Middlemount
A51: QLD | B51: 4800 | C51: Andromache , Brandy Creek , Breadalbane , Cannon Valley , Cape Conway , Cape Gloucester , Conway , Conway Beach , Crystal Brook , Dingo Beach , Dittmer , Foxdale , Glen Isla , Goorganga Creek , Goorganga Plains , Gregory River , Gunyarra , Hamilton Plains , Hideaway Bay , Kelsey Creek , Laguna Quays , Lake Proserpine , Lethebrook , Mount Julian , Mount Marlow , Mount Pluto , Myrtlevale , Palm Grove , Pauls Pocket , Preston , Proserpine , Riordanvale , Silver Creek , Strathdickie , Sugarloaf , Thoopara , Wilson Beach
A52: QLD | B52: 4804 | C52: Collinsville , Mount Coolon , Mount Wyatt , Newlands , Scottville , Springlands
A53: QLD | B53: 4805 | C53: Bogie, Bowen, Gumlu, Guthalungra, Merinda, Queens Beach
A54: QLD | B54: 4820 | C54: Alabama Hill , Basalt , Belyando , Black Jack , Breddan , Broughton , Campaspe , Columbia , Dotswood , Grand Secret , Lissner , Llanarth , Millchester , Mosman Park , Queenton , Richmond Hill , Seventy Mile , Southern Cross , Toll , Towers Hill
A55: SA/NT | B55: 5600 | C55: Whyalla , Whyalla Playford
A56: SA/NT | B56: 5601 | C56: Backy Point , Cultana , Douglas Point , Douglas Point South , False Bay , Fitzgerald Bay , Iron Baron , Iron Knob , Mullaquana , Point Lowly , Point Lowly North , Port Bonython
A57: SA/NT | B57: 5608 | C57: Whyalla Norrie , Whyalla Stuart
A58: SA/NT | B58: 5609 | C58: Whyalla Jenkins
A59: SA/NT | B59: 5725 | C59: Olympic Dam, Roxby Downs, Roxby Downs Station
A60: SA/NT | B60: 0885 | C60: Alyangula
A200: end of range

Sheet Borrower Risk Grade Calc (hidden)
C1: Initial Score | D1: Initial Values | G1: Final Score | H1: Final Value | L1: Values Lookup Table | O1: Range Cutoffs
B2: Industry Experience | C2: ='Pre-qualifying Tool'!I39 -> - | D2: =VLOOKUP(C2,$L$2:$M$6,2,0) ->  | G2: ='Pre-qualifying Tool'!M39 -> - | H2: =VLOOKUP(G2,$L$2:$M$6,2,0) ->  | L2: Very Low | M2: 1 | O2: 0 | P2: -
B3: Time in Business | C3: ='Pre-qualifying Tool'!I43 -> - | D3: =VLOOKUP(C3,$L$2:$M$6,2,0) ->  | G3: ='Pre-qualifying Tool'!M43 -> - | H3: =VLOOKUP(G3,$L$2:$M$6,2,0) ->  | L3: Low | M3: 2 | O3: 31 | P3: Very Low
B4: Bank Account Conduct | C4: ='Pre-qualifying Tool'!I47 -> - | D4: =VLOOKUP(C4,$L$2:$M$6,2,0) ->  | G4: ='Pre-qualifying Tool'!M47 -> - | L4: Medium | M4: 9 | O4: 32 | P4: Low
B5: Statutory Obligations | C5: ='Pre-qualifying Tool'!I51 -> - | G5: ='Pre-qualifying Tool'!M51 -> - | L5: High | M5: 36 | O5: 34 | P5: Medium
B6: Financial Management | C6: ='Pre-qualifying Tool'!#REF! ->  | G6: ='Pre-qualifying Tool'!#REF! ->  | L6: Very High | M6: 200 | O6: 55 | P6: High
B7: Credit History | C7: ='Pre-qualifying Tool'!I55 -> - | G7: ='Pre-qualifying Tool'!M55 -> - | O7: 217 | P7: Very High
B8: Initial Cutoff | D8: =IFERROR(D7+D6+D5+D4+D3+D2,0) -> 0 | E8: =VLOOKUP(D8,$O$2:$P$8,2,1) -> - | H8: =IFERROR(H7+H6+H5+H4+H3+H2,0) -> 0 | I8: =VLOOKUP(H8,$O$2:$P$8,2,1) -> - | O8: 1037
